Workbook

Sheet Main
B10: 2018-09-04
B12: Sheet No. | C12: Template Name | D12: Summary
B13: 1 | C13: Future Intra | D13: For Intraday trading in F&O segment
B14: 2 | C14: Cash Intra | D14: For Intraday trading in cash market segment
B15: 3 | C15: Mid-cap Intra | D15: For Intraday trading in Mid-cap stocks
B16: 4 | C16: Bulk Deals | D16: Reveals Bulk Deals carried on NSE & BSE
B17: 5 | C17: Call Tracker

Sheet Future Intra
M5: Back to Main Page
A6: FOR INTRA DAY TRADING | L6: =Main!B10 -> 2018-09-04
A9: Sr.no | B9: Sector | C9: Scrip | D9: CLOSE RATE | E9: Pivot Point | F9: Supports | I9: Resistances
B10: Sector | D10: Point | E10: Point | F10: S1 | G10: S2 | H10: S3 | I10: R1 | J10: R2 | K10: R3 | L10: HIGH | M10: LOW | N10: OI | O10: % Change in OI
A11: 1 | B11: Index | C11: BANKNIFTY | D11: 28014.55 | E11: 28092.02 | F11: 27884.08 | G11: 27753.62 | H11: 27545.68 | I11: 28222.48 | J11: 28430.42 | K11: 28560.88 | L11: 28299.95 | M11: 27961.55 | N11: 1706400 | O11: 4.45%
A12: 2 | B12: Index | C12: NIFTY | D12: 11641.75 | E12: 11678.93 | F12: 11582.82 | G12: 11523.88 | H12: 11427.77 | I12: 11737.87 | J12: 11833.98 | K12: 11892.92 | L12: 11775.05 | M12: 11620 | N12: 25947600 | O12: 0.55%
A13: 3 | B13: Index | C13: NIFTYCPSE | D13: 2187.40 | E13: 729.13 | F13: 1458.27 | G13: 729.13 | H13: 1458.27 | I13: 1458.27 | J13: 729.13 | K13: 1458.27 | L13: 0 | M13: 0 | N13: 0 | O13: 0.00%
A14: 4 | B14: Index | C14: NIFTYINFRA | D14: 3108.75 | E14: 1036.25 | F14: 2072.50 | G14: 1036.25 | H14: 2072.50 | I14: 2072.50 | J14: 1036.25 | K14: 2072.50 | L14: 0 | M14: 0 | N14: 0 | O14: 0.00%
A15: 5 | B15: Index | C15: NIFTYIT | D15: 15826.00 | E15: 15921.67 | F15: 15713.33 | G15: 15600.67 | H15: 15392.33 | I15: 16034.33 | J15: 16242.67 | K15: 16355.33 | L15: 16130 | M15: 15809 | N15: 22400 | O15: -5.88%
A16: 6 | B16: Index | C16: NIFTYMID50 | D16: 5405.00 | E16: 5427.00 | F16: 5383.00 | G16: 5361.00 | H16: 5317.00 | I16: 5449.00 | J16: 5493.00 | K16: 5515.00 | L16: 5471 | M16: 5405 | N16: 591910 | O16: 0.06%
A17: 7 | B17: Index | C17: NIFTYPSE | D17: 3501.05 | E17: 1167.02 | F17: 2334.03 | G17: 1167.02 | H17: 2334.03 | I17: 2334.03 | J17: 1167.02 | K17: 2334.03 | L17: 0 | M17: 0 | N17: 0 | O17: 0.00%
A18: 8 | B18: Cement | C18: ACC | D18: 1668.55 | E18: 1665.87 | F18: 1643.73 | G18: 1618.92 | H18: 1596.78 | I18: 1690.68 | J18: 1712.82 | K18: 1737.63 | L18: 1688 | M18: 1641.05 | N18: 1587600 | O18: 3.20%
A19: 9 | B19: Others | C19: ADANIENT | D19: 210.70 | E19: 214.55 | F19: 200.25 | G19: 189.80 | H19: 175.50 | I19: 225.00 | J19: 239.30 | K19: 249.75 | L19: 228.85 | M19: 204.1 | N19: 16320000 | O19: -12.93%
A20: 10 | B20: Others | C20: ADANIPORTS | D20: 387.00 | E20: 387.98 | F20: 380.37 | G20: 373.73 | H20: 366.12 | I20: 394.62 | J20: 402.23 | K20: 408.87 | L20: 395.6 | M20: 381.35 | N20: 8817500 | O20: -0.90%
A21: 11 | B21: Power | C21: ADANIPOWER | D21: 33.85 | E21: 34.53 | F21: 32.72 | G21: 31.58 | H21: 29.77 | I21: 35.67 | J21: 37.48 | K21: 38.62 | L21: 36.35 | M21: 33.4 | N21: 148720000 | O21: -0.04%
A22: 12 | B22: Pharma | C22: AJANTPHARM | D22: 1254.75 | E22: 1265.23 | F22: 1233.52 | G22: 1212.28 | H22: 1180.57 | I22: 1286.47 | J22: 1318.18 | K22: 1339.42 | L22: 1296.95 | M22: 1244 | N22: 915000 | O22: -2.09%
A23: 13 | B23: Banking | C23: ALBK | D23: 43.00 | E23: 43.48 | F23: 42.02 | G23: 41.03 | H23: 39.57 | I23: 44.47 | J23: 45.93 | K23: 46.92 | L23: 44.95 | M23: 42.5 | N23: 15521000 | O23: -12.25%
A24: 14 | B24: Automobile | C24: AMARAJABAT | D24: 851.20 | E24: 856.03 | F24: 843.07 | G24: 834.93 | H24: 821.97 | I24: 864.17 | J24: 877.13 | K24: 885.27 | L24: 869 | M24: 847.9 | N24: 1114400 | O24: -4.73%
A25: 15 | B25: Cement | C25: AMBUJACEM | D25: 241.80 | E25: 243.00 | F25: 238.65 | G25: 235.50 | H25: 231.15 | I25: 246.15 | J25: 250.50 | K25: 253.65 | L25: 247.35 | M25: 239.85 | N25: 11080000 | O25: 1.16%
A26: 16 | B26: Banking | C26: ANDHRABANK | D26: 34.75 | E26: 34.82 | F26: 33.63 | G26: 32.52 | H26: 31.33 | I26: 35.93 | J26: 37.12 | K26: 38.23 | L26: 36 | M26: 33.7 | N26: 17433000 | O26: -0.07%
A27: 17 | B27: Others | C27: APOLLOHOSP | D27: 1177.60 | E27: 1182.82 | F27: 1160.48 | G27: 1143.37 | H27: 1121.03 | I27: 1199.93 | J27: 1222.27 | K27: 1239.38 | L27: 1205.15 | M27: 1165.7 | N27: 1402500 | O27: 10.69%
A28: 18 | B28: Automobile | C28: APOLLOTYRE | D28: 251.70 | E28: 252.67 | F28: 249.18 | G28: 246.67 | H28: 243.18 | I28: 255.18 | J28: 258.67 | K28: 261.18 | L28: 256.15 | M28: 250.15 | N28: 14754000 | O28: 1.28%
A29: 19 | B29: Textile | C29: ARVIND | D29: 402.60 | E29: 405.20 | F29: 398.40 | G29: 394.20 | H29: 387.40 | I29: 409.40 | J29: 416.20 | K29: 420.40 | L29: 412 | M29: 401 | N29: 10142000 | O29: 5.14%
A30: 20 | B30: Automobile | C30: ASHOKLEY | D30: 134.55 | E30: 134.67 | F30: 133.13 | G30: 131.72 | H30: 130.18 | I30: 136.08 | J30: 137.62 | K30: 139.03 | L30: 136.2 | M30: 133.25 | N30: 62088000 | O30: 5.49%
A31: 21 | B31: FMCG | C31: ASIANPAINT | D31: 1365.55 | E31: 1373.30 | F31: 1353.60 | G31: 1341.65 | H31: 1321.95 | I31: 1385.25 | J31: 1404.95 | K31: 1416.90 | L31: 1393 | M31: 1361.35 | N31: 5747400 | O31: -1.34%
A32: 22 | B32: Pharma | C32: AUROPHARMA | D32: 705.50 | E32: 712.60 | F32: 695.25 | G32: 685.00 | H32: 667.65 | I32: 722.85 | J32: 740.20 | K32: 750.45 | L32: 729.95 | M32: 702.35 | N32: 21610000 | O32: 0.43%
A33: 23 | B33: Banking | C33: AXISBANK | D33: 636.65 | E33: 642.70 | F33: 628.55 | G33: 620.45 | H33: 606.30 | I33: 650.80 | J33: 664.95 | K33: 673.05 | L33: 656.85 | M33: 634.6 | N33: 43330800 | O33: -3.58%
A34: 24 | B34: Automobile | C34: BAJAJ-AUTO | D34: 2780.70 | E34: 2782.42 | F34: 2737.83 | G34: 2694.97 | H34: 2650.38 | I34: 2825.28 | J34: 2869.87 | K34: 2912.73 | L34: 2827 | M34: 2739.55 | N34: 3448000 | O34: -2.45%
A35: 25 | B35: Others | C35: BAJAJFINSV | D35: 6686.75 | E35: 6740.45 | F35: 6603.30 | G35: 6519.85 | H35: 6382.70 | I35: 6823.90 | J35: 6961.05 | K35: 7044.50 | L35: 6877.6 | M35: 6657 | N35: 829375 | O35: 0.59%
A36: 26 | B36: Finance | C36: BAJFINANCE | D36: 2745.20 | E36: 2789.82 | F36: 2691.63 | G36: 2638.07 | H36: 2539.88 | I36: 2843.38 | J36: 2941.57 | K36: 2995.13 | L36: 2888 | M36: 2736.25 | N36: 6802500 | O36: 5.67%
A37: 27 | B37: Others | C37: BALKRISIND | D37: 1271.75 | E37: 1295.75 | F37: 1240.25 | G37: 1208.75 | H37: 1153.25 | I37: 1327.25 | J37: 1382.75 | K37: 1414.25 | L37: 1351.25 | M37: 1264.25 | N37: 1704000 | O37: 18.40%
A38: 28 | B38: Others | C38: BALRAMCHIN | D38: 76.75 | E38: 77.42 | F38: 75.28 | G38: 73.82 | H38: 71.68 | I38: 78.88 | J38: 81.02 | K38: 82.48 | L38: 79.55 | M38: 75.95 | N38: 11074000 | O38: -0.13%
A39: 29 | B39: Banking | C39: BANKBARODA | D39: 152.65 | E39: 154.05 | F39: 150.60 | G39: 148.55 | H39: 145.10 | I39: 156.10 | J39: 159.55 | K39: 161.60 | L39: 157.5 | M39: 152 | N39: 63696000 | O39: 0.67%
A40: 30 | B40: Banking | C40: BANKINDIA | D40: 100.05 | E40: 101.08 | F40: 98.42 | G40: 96.78 | H40: 94.12 | I40: 102.72 | J40: 105.38 | K40: 107.02 | L40: 103.75 | M40: 99.45 | N40: 23058000 | O40: 0.37%
A41: 31 | B41: FMCG | C41: BATAINDIA | D41: 1072.35 | E41: 1080.95 | F41: 1057.40 | G41: 1042.45 | H41: 1018.90 | I41: 1095.90 | J41: 1119.45 | K41: 1134.40 | L41: 1104.5 | M41: 1066 | N41: 1769900 | O41: -4.62%
A42: 32 | B42: Capital_Goods | C42: BEL | D42: 113.25 | E42: 114.07 | F42: 111.93 | G42: 110.62 | H42: 108.48 | I42: 115.38 | J42: 117.52 | K42: 118.83 | L42: 116.2 | M42: 112.75 | N42: 30581100 | O42: 5.81%
A43: 33 | B43: Infrastructure | C43: BEML | D43: 838.45 | E43: 847.68 | F43: 826.37 | G43: 814.28 | H43: 792.97 | I43: 859.77 | J43: 881.08 | K43: 893.17 | L43: 869 | M43: 835.6 | N43: 2001500 | O43: 3.87%
A44: 34 | B44: Others | C44: BERGEPAINT | D44: 327.55 | E44: 330.27 | F44: 322.78 | G44: 318.02 | H44: 310.53 | I44: 335.03 | J44: 342.52 | K44: 347.28 | L44: 337.75 | M44: 325.5 | N44: 1892000 | O44: -2.27%
A45: 35 | B45: Finance | C45: BHARATFIN | D45: 1167.40 | E45: 1168.05 | F45: 1160.00 | G45: 1152.60 | H45: 1144.55 | I45: 1175.45 | J45: 1183.50 | K45: 1190.90 | L45: 1176.1 | M45: 1160.65 | N45: 4533500 | O45: -0.37%
A46: 36 | B46: Automobile | C46: BHARATFORG | D46: 672.65 | E46: 678.62 | F46: 664.33 | G46: 656.02 | H46: 641.73 | I46: 686.93 | J46: 701.22 | K46: 709.53 | L46: 692.9 | M46: 670.3 | N46: 8456400 | O46: -1.73%
A47: 37 | B47: Telecom | C47: BHARTIARTL | D47: 384.90 | E47: 385.53 | F47: 381.87 | G47: 378.83 | H47: 375.17 | I47: 388.57 | J47: 392.23 | K47: 395.27 | L47: 389.2 | M47: 382.5 | N47: 47430000 | O47: -0.47%
A48: 38 | B48: Capital_Goods | C48: BHEL | D48: 81.15 | E48: 81.40 | F48: 80.25 | G48: 79.35 | H48: 78.20 | I48: 82.30 | J48: 83.45 | K48: 84.35 | L48: 82.55 | M48: 80.5 | N48: 35452500 | O48: -1.71%
A49: 39 | B49: Pharma | C49: BIOCON | D49: 619.70 | E49: 624.37 | F49: 613.33 | G49: 606.97 | H49: 595.93 | I49: 630.73 | J49: 641.77 | K49: 648.13 | L49: 635.4 | M49: 618 | N49: 7938900 | O49: 3.48%
A50: 40 | B50: Automobile | C50: BOSCHLTD | D50: 21540.35 | E50: 21830.68 | F50: 21160.67 | G50: 20780.98 | H50: 20110.97 | I50: 22210.37 | J50: 22880.38 | K50: 23260.07 | L50: 22500.7 | M50: 21451 | N50: 122370 | O50: 1.70%
A51: 41 | B51: Oil_Gas | C51: BPCL | D51: 362.10 | E51: 363.33 | F51: 359.67 | G51: 357.23 | H51: 353.57 | I51: 365.77 | J51: 369.43 | K51: 371.87 | L51: 367 | M51: 360.9 | N51: 10693800 | O51: 0.19%
A52: 42 | B52: FMCG | C52: BRITANNIA | D52: 6601.05 | E52: 6662.27 | F52: 6500.08 | G52: 6399.12 | H52: 6236.93 | I52: 6763.23 | J52: 6925.42 | K52: 7026.38 | L52: 6824.45 | M52: 6561.3 | N52: 1268200 | O52: 0.59%
A53: 43 | B53: Pharma | C53: CADILAHC | D53: 406.65 | E53: 410.17 | F53: 399.08 | G53: 391.52 | H53: 380.43 | I53: 417.73 | J53: 428.82 | K53: 436.38 | L53: 421.25 | M53: 402.6 | N53: 13748800 | O53: -2.52%
A54: 44 | B54: Banking | C54: CANBK | D54: 286.60 | E54: 288.38 | F54: 281.77 | G54: 276.93 | H54: 270.32 | I54: 293.22 | J54: 299.83 | K54: 304.67 | L54: 295 | M54: 283.55 | N54: 10832000 | O54: 8.26%
A55: 45 | B55: Others | C55: CANFINHOME | D55: 323.30 | E55: 325.85 | F55: 318.25 | G55: 313.20 | H55: 305.60 | I55: 330.90 | J55: 338.50 | K55: 343.55 | L55: 333.45 | M55: 320.8 | N55: 4445000 | O55: 2.60%
A56: 46 | B56: Finance | C56: CAPF | D56: 651.10 | E56: 654.07 | F56: 643.13 | G56: 635.17 | H56: 624.23 | I56: 662.03 | J56: 672.97 | K56: 680.93 | L56: 665 | M56: 646.1 | N56: 5671200 | O56: -1.56%
A57: 47 | B57: Oil_Gas | C57: CASTROLIND | D57: 159.40 | E57: 160.32 | F57: 157.88 | G57: 156.37 | H57: 153.93 | I57: 161.83 | J57: 164.27 | K57: 165.78 | L57: 162.75 | M57: 158.8 | N57: 10813600 | O57: 0.52%
A58: 48 | B58: Automobile | C58: CEATLTD | D58: 1394.55 | E58: 1403.72 | F58: 1378.03 | G58: 1361.52 | H58: 1335.83 | I58: 1420.23 | J58: 1445.92 | K58: 1462.43 | L58: 1429.4 | M58: 1387.2 | N58: 1255800 | O58: 0.76%
A59: 49 | B59: Textile | C59: CENTURYTEX | D59: 972.40 | E59: 978.25 | F59: 958.50 | G59: 944.60 | H59: 924.85 | I59: 992.15 | J59: 1011.90 | K59: 1025.80 | L59: 998 | M59: 964.35 | N59: 5567100 | O59: -0.82%
A60: 50 | B60: Power | C60: CESC | D60: 1023.40 | E60: 1020.30 | F60: 996.30 | G60: 969.20 | H60: 945.20 | I60: 1047.40 | J60: 1071.40 | K60: 1098.50 | L60: 1044.3 | M60: 993.2 | N60: 5464250 | O60: 4.18%
A61: 51 | B61: Power | C61: CGPOWER | D61: 58.80 | E61: 59.17 | F61: 58.13 | G61: 57.47 | H61: 56.43 | I61: 59.83 | J61: 60.87 | K61: 61.53 | L61: 60.2 | M61: 58.5 | N61: 39996000 | O61: 5.88%
A62: 52 | B62: Others | C62: CHENNPETRO | D62: 310.20 | E62: 312.55 | F62: 306.15 | G62: 302.10 | H62: 295.70 | I62: 316.60 | J62: 323.00 | K62: 327.05 | L62: 318.95 | M62: 308.5 | N62: 1167000 | O62: 0.52%
A63: 53 | B63: Others | C63: CHOLAFIN | D63: 1519.90 | E63: 1513.62 | F63: 1483.78 | G63: 1447.67 | H63: 1417.83 | I63: 1549.73 | J63: 1579.57 | K63: 1615.68 | L63: 1543.45 | M63: 1477.5 | N63: 833000 | O63: -1.01%
A64: 54 | B64: Pharma | C64: CIPLA | D64: 653.30 | E64: 659.52 | F64: 644.93 | G64: 636.57 | H64: 621.98 | I64: 667.88 | J64: 682.47 | K64: 690.83 | L64: 674.1 | M64: 651.15 | N64: 10138000 | O64: -0.42%
A65: 55 | B65: Others | C65: COALINDIA | D65: 288.95 | E65: 288.98 | F65: 287.07 | G65: 285.18 | H65: 283.27 | I65: 290.87 | J65: 292.78 | K65: 294.67 | L65: 290.9 | M65: 287.1 | N65: 19085000 | O65: 0.49%
A66: 56 | B66: FMCG | C66: COLPAL | D66: 1182.35 | E66: 1187.02 | F66: 1167.88 | G66: 1153.42 | H66: 1134.28 | I66: 1201.48 | J66: 1220.62 | K66: 1235.08 | L66: 1206.15 | M66: 1172.55 | N66: 1858500 | O66: -4.53%
A67: 57 | B67: Others | C67: CONCOR | D67: 649.80 | E67: 651.57 | F67: 645.23 | G67: 640.67 | H67: 634.33 | I67: 656.13 | J67: 662.47 | K67: 667.03 | L67: 657.9 | M67: 647 | N67: 2357500 | O67: 2.28%
A68: 58 | B68: Capital_Goods | C68: CUMMINSIND | D68: 764.45 | E68: 768.42 | F68: 755.48 | G68: 746.52 | H68: 733.58 | I68: 777.38 | J68: 790.32 | K68: 799.28 | L68: 781.35 | M68: 759.45 | N68: 741300 | O68: 10.08%
A69: 59 | B69: FMCG | C69: DABUR | D69: 470.05 | E69: 474.18 | F69: 464.87 | G69: 459.68 | H69: 450.37 | I69: 479.37 | J69: 488.68 | K69: 493.87 | L69: 483.5 | M69: 469 | N69: 13807500 | O69: 2.73%
A70: 60 | B70: Cement | C70: DALMIABHA | D70: 2602.55 | E70: 2629.40 | F70: 2563.80 | G70: 2525.05 | H70: 2459.45 | I70: 2668.15 | J70: 2733.75 | K70: 2772.50 | L70: 2695 | M70: 2590.65 | N70: 449400 | O70: -0.99%
A71: 61 | B71: Banking | C71: DCBBANK | D71: 171.25 | E71: 174.15 | F71: 167.35 | G71: 163.45 | H71: 156.65 | I71: 178.05 | J71: 184.85 | K71: 188.75 | L71: 180.95 | M71: 170.25 | N71: 4549500 | O71: 9.65%
A72: 62 | B72: Finance | C72: DHFL | D72: 681.70 | E72: 679.98 | F72: 664.07 | G72: 646.43 | H72: 630.52 | I72: 697.62 | J72: 713.53 | K72: 731.17 | L72: 695.9 | M72: 662.35 | N72: 27124500 | O72: 0.18%
A73: 63 | B73: Media | C73: DISHTV | D73: 71.30 | E73: 71.60 | F73: 70.70 | G73: 70.10 | H73: 69.20 | I73: 72.20 | J73: 73.10 | K73: 73.70 | L73: 72.5 | M73: 71 | N73: 48760000 | O73: -0.59%
A74: 64 | B74: Pharma | C74: DIVISLAB | D74: 1296.55 | E74: 1306.10 | F74: 1278.25 | G74: 1259.95 | H74: 1232.10 | I74: 1324.40 | J74: 1352.25 | K74: 1370.55 | L74: 1333.95 | M74: 1287.8 | N74: 3372000 | O74: -0.43%
A75: 65 | B75: Realty | C75: DLF | D75: 212.85 | E75: 213.75 | F75: 210.10 | G75: 207.35 | H75: 203.70 | I75: 216.50 | J75: 220.15 | K75: 222.90 | L75: 217.4 | M75: 211 | N75: 26652500 | O75: -1.79%
A76: 66 | B76: Pharma | C76: DRREDDY | D76: 2605.55 | E76: 2586.00 | F76: 2528.10 | G76: 2450.65 | H76: 2392.75 | I76: 2663.45 | J76: 2721.35 | K76: 2798.80 | L76: 2643.9 | M76: 2508.55 | N76: 4539750 | O76: 0.86%
A77: 67 | B77: Automobile | C77: EICHERMOT | D77: 29034.90 | E77: 28834.32 | F77: 28450.58 | G77: 27866.27 | H77: 27482.53 | I77: 29418.63 | J77: 29802.37 | K77: 30386.68 | L77: 29218.05 | M77: 28250 | N77: 275975 | O77: -3.32%
A78: 68 | B78: Infrastructure | C78: ENGINERSIN | D78: 135.05 | E78: 133.55 | F78: 129.00 | G78: 122.95 | H78: 118.40 | I78: 139.60 | J78: 144.15 | K78: 150.20 | L78: 138.1 | M78: 127.5 | N78: 10083500 | O78: 7.78%
A79: 69 | B79: Finance | C79: EQUITAS | D79: 160.50 | E79: 160.98 | F79: 157.82 | G79: 155.13 | H79: 151.97 | I79: 163.67 | J79: 166.83 | K79: 169.52 | L79: 164.15 | M79: 158.3 | N79: 15784000 | O79: -0.65%
A80: 70 | B80: Automobile | C80: ESCORTS | D80: 838.50 | E80: 851.88 | F80: 821.67 | G80: 804.83 | H80: 774.62 | I80: 868.72 | J80: 898.93 | K80: 915.77 | L80: 882.1 | M80: 835.05 | N80: 6316200 | O80: 19.03%
A81: 71 | B81: Automobile | C81: EXIDEIND | D81: 285.15 | E81: 286.35 | F81: 282.90 | G81: 280.65 | H81: 277.20 | I81: 288.60 | J81: 292.05 | K81: 294.30 | L81: 289.8 | M81: 284.1 | N81: 7388000 | O81: -2.48%
A82: 72 | B82: Banking | C82: FEDERALBNK | D82: 81.25 | E82: 81.57 | F82: 80.68 | G82: 80.12 | H82: 79.23 | I82: 82.13 | J82: 83.02 | K82: 83.58 | L82: 82.45 | M82: 81 | N82: 67034000 | O82: -2.28%
A83: 73 | B83: Oil_Gas | C83: GAIL | D83: 370.45 | E83: 372.22 | F83: 367.93 | G83: 365.42 | H83: 361.13 | I83: 374.73 | J83: 379.02 | K83: 381.53 | L83: 376.5 | M83: 369.7 | N83: 16628745 | O83: -0.57%
A84: 74 | B84: Pharma | C84: GLENMARK | D84: 665.35 | E84: 669.20 | F84: 658.85 | G84: 652.35 | H84: 642.00 | I84: 675.70 | J84: 686.05 | K84: 692.55 | L84: 679.55 | M84: 662.7 | N84: 3817000 | O84: -7.22%
A85: 75 | B85: Infrastructure | C85: GMRINFRA | D85: 20.40 | E85: 20.75 | F85: 19.85 | G85: 19.30 | H85: 18.40 | I85: 21.30 | J85: 22.20 | K85: 22.75 | L85: 21.65 | M85: 20.2 | N85: 233190000 | O85: -0.06%
A86: 76 | B86: Others | C86: GODFRYPHLP | D86: 869.90 | E86: 876.30 | F86: 858.65 | G86: 847.40 | H86: 829.75 | I86: 887.55 | J86: 905.20 | K86: 916.45 | L86: 893.95 | M86: 865.05 | N86: 529200 | O86: 1.89%
A87: 77 | B87: FMCG | C87: GODREJCP | D87: 1436.15 | E87: 1442.37 | F87: 1419.73 | G87: 1403.32 | H87: 1380.68 | I87: 1458.78 | J87: 1481.42 | K87: 1497.83 | L87: 1465 | M87: 1425.95 | N87: 1914400 | O87: 3.15%
A88: 78 | B88: FMCG | C88: GODREJIND | D88: 632.85 | E88: 638.58 | F88: 624.57 | G88: 616.28 | H88: 602.27 | I88: 646.87 | J88: 660.88 | K88: 669.17 | L88: 652.6 | M88: 630.3 | N88: 1980000 | O88: -1.64%
A89: 79 | B89: Pharma | C89: GRANULES | D89: 115.35 | E89: 116.23 | F89: 113.77 | G89: 112.18 | H89: 109.72 | I89: 117.82 | J89: 120.28 | K89: 121.87 | L89: 118.7 | M89: 114.65 | N89: 13340000 | O89: -0.52%
A90: 80 | B90: Cement | C90: GRASIM | D90: 1069.25 | E90: 1070.47 | F90: 1059.43 | G90: 1049.62 | H90: 1038.58 | I90: 1080.28 | J90: 1091.32 | K90: 1101.13 | L90: 1081.5 | M90: 1060.65 | N90: 5429250 | O90: -0.66%
A91: 81 | B91: Others | C91: GSFC | D91: 119.65 | E91: 120.47 | F91: 117.43 | G91: 115.22 | H91: 112.18 | I91: 122.68 | J91: 125.72 | K91: 127.93 | L91: 123.5 | M91: 118.25 | N91: 14917500 | O91: 2.70%
A92: 82 | B92: Others | C92: HAVELLS | D92: 717.55 | E92: 720.88 | F92: 709.32 | G92: 701.08 | H92: 689.52 | I92: 729.12 | J92: 740.68 | K92: 748.92 | L92: 732.45 | M92: 712.65 | N92: 3562000 | O92: 0.23%
A93: 83 | B93: Others | C93: HCC | D93: 15.05 | E93: 14.83 | F93: 14.17 | G93: 13.28 | H93: 12.62 | I93: 15.72 | J93: 16.38 | K93: 17.27 | L93: 15.5 | M93: 13.95 | N93: 38268000 | O93: 3.71%
A94: 84 | B94: Technology | C94: HCLTECH | D94: 1054.00 | E94: 1057.75 | F94: 1047.60 | G94: 1041.20 | H94: 1031.05 | I94: 1064.15 | J94: 1074.30 | K94: 1080.70 | L94: 1067.9 | M94: 1051.35 | N94: 9193100 | O94: -0.94%
A95: 85 | B95: Finance | C95: HDFC | D95: 1951.15 | E95: 1947.63 | F95: 1940.42 | G95: 1929.68 | H95: 1922.47 | I95: 1958.37 | J95: 1965.58 | K95: 1976.32 | L95: 1954.85 | M95: 1936.9 | N95: 24078500 | O95: -1.04%
A96: 86 | B96: Banking | C96: HDFCBANK | D96: 2088.90 | E96: 2086.07 | F96: 2081.13 | G96: 2073.37 | H96: 2068.43 | I96: 2093.83 | J96: 2098.77 | K96: 2106.53 | L96: 2091 | M96: 2078.3 | N96: 19183500 | O96: -2.83%
A97: 88 | B97: Automobile | C97: HEROMOTOCO | D97: 3254.20 | E97: 3270.57 | F97: 3228.63 | G97: 3203.07 | H97: 3161.13 | I97: 3296.13 | J97: 3338.07 | K97: 3363.63 | L97: 3312.5 | M97: 3245 | N97: 1524600 | O97: 4.48%
A98: 89 | B98: Technology | C98: HEXAWARE | D98: 431.75 | E98: 436.75 | F98: 425.10 | G98: 418.45 | H98: 406.80 | I98: 443.40 | J98: 455.05 | K98: 461.70 | L98: 448.4 | M98: 430.1 | N98: 6382500 | O98: 2.58%
A99: 90 | B99: Metals | C99: HINDALCO | D99: 239.10 | E99: 239.60 | F99: 236.25 | G99: 233.40 | H99: 230.05 | I99: 242.45 | J99: 245.80 | K99: 248.65 | L99: 242.95 | M99: 236.75 | N99: 36984500 | O99: -0.43%
A100: 91 | B100: Oil_Gas | C100: HINDPETRO | D100: 258.65 | E100: 258.70 | F100: 255.30 | G100: 251.95 | H100: 248.55 | I100: 262.05 | J100: 265.45 | K100: 268.80 | L100: 262.1 | M100: 255.35 | N100: 27220725 | O100: -2.61%
A101: 92 | B101: FMCG | C101: HINDUNILVR | D101: 1712.40 | E101: 1738.78 | F101: 1683.17 | G101: 1653.93 | H101: 1598.32 | I101: 1768.02 | J101: 1823.63 | K101: 1852.87 | L101: 1794.4 | M101: 1709.55 | N101: 9805800 | O101: 7.03%
A102: 93 | B102: Metals | C102: HINDZINC | D102: 293.85 | E102: 294.40 | F102: 290.40 | G102: 286.95 | H102: 282.95 | I102: 297.85 | J102: 301.85 | K102: 305.30 | L102: 298.4 | M102: 290.95 | N102: 7926400 | O102: 2.78%
A103: 94 | B103: Finance | C103: IBULHSGFIN | D103: 1265.15 | E103: 1270.22 | F103: 1255.53 | G103: 1245.92 | H103: 1231.23 | I103: 1279.83 | J103: 1294.52 | K103: 1304.13 | L103: 1284.9 | M103: 1260.6 | N103: 14399500 | O103: -0.35%
A104: 95 | B104: Banking | C104: ICICIBANK | D104: 336.40 | E104: 338.58 | F104: 332.82 | G104: 329.23 | H104: 323.47 | I104: 342.17 | J104: 347.93 | K104: 351.52 | L104: 344.35 | M104: 335 | N104: 96035500 | O104: -3.57%
A105: 96 | B105: Others | C105: ICICIPRULI | D105: 382.30 | E105: 382.62 | F105: 376.83 | G105: 371.37 | H105: 365.58 | I105: 388.08 | J105: 393.87 | K105: 399.33 | L105: 388.4 | M105: 377.15 | N105: 4687800 | O105: -2.30%
A106: 97 | B106: Banking | C106: IDBI | D106: 61.45 | E106: 62.13 | F106: 60.52 | G106: 59.58 | H106: 57.97 | I106: 63.07 | J106: 64.68 | K106: 65.62 | L106: 63.75 | M106: 61.2 | N106: 56630000 | O106: -3.58%
A107: 98 | B107: Telecom | C107: IDEA | D107: 51.45 | E107: 51.42 | F107: 50.08 | G107: 48.72 | H107: 47.38 | I107: 52.78 | J107: 54.12 | K107: 55.48 | L107: 52.75 | M107: 50.05 | N107: 163492000 | O107: -1.84%
A108: 99 | B108: Finance | C108: IDFC | D108: 52.60 | E108: 52.88 | F108: 52.07 | G108: 51.53 | H108: 50.72 | I108: 53.42 | J108: 54.23 | K108: 54.77 | L108: 53.7 | M108: 52.35 | N108: 121888800 | O108: -0.28%
A109: 100 | B109: Banking | C109: IDFCBANK | D109: 48.20 | E109: 48.40 | F109: 47.60 | G109: 47.00 | H109: 46.20 | I109: 49.00 | J109: 49.80 | K109: 50.40 | L109: 49.2 | M109: 47.8 | N109: 123068000 | O109: -0.61%
A110: 101 | B110: Finance | C110: IFCI | D110: 17.40 | E110: 17.48 | F110: 17.17 | G110: 16.93 | H110: 16.62 | I110: 17.72 | J110: 18.03 | K110: 18.27 | L110: 17.8 | M110: 17.25 | N110: 60175000 | O110: -2.75%
A111: 102 | B111: Oil_Gas | C111: IGL | D111: 290.20 | E111: 291.43 | F111: 287.17 | G111: 284.13 | H111: 279.87 | I111: 294.47 | J111: 298.73 | K111: 301.77 | L111: 295.7 | M111: 288.4 | N111: 5324000 | O111: 3.42%
A112: 103 | B112: Cement | C112: INDIACEM | D112: 123.70 | E112: 124.75 | F112: 121.65 | G112: 119.60 | H112: 116.50 | I112: 126.80 | J112: 129.90 | K112: 131.95 | L112: 127.85 | M112: 122.7 | N112: 20335000 | O112: 0.14%
A113: 104 | B113: Banking | C113: INDIANB | D113: 330.75 | E113: 333.55 | F113: 326.20 | G113: 321.65 | H113: 314.30 | I113: 338.10 | J113: 345.45 | K113: 350.00 | L113: 340.9 | M113: 329 | N113: 5044000 | O113: 3.11%
A114: 105 | B114: Others | C114: INDIGO | D114: 951.90 | E114: 951.53 | F114: 940.37 | G114: 928.83 | H114: 917.67 | I114: 963.07 | J114: 974.23 | K114: 985.77 | L114: 962.7 | M114: 940 | N114: 3820800 | O114: -3.44%
A115: 106 | B115: Banking | C115: INDUSINDBK | D115: 1907.70 | E115: 1909.40 | F115: 1893.85 | G115: 1880.00 | H115: 1864.45 | I115: 1923.25 | J115: 1938.80 | K115: 1952.65 | L115: 1924.95 | M115: 1895.55 | N115: 5443500 | O115: -0.08%
A116: 107 | B116: Technology | C116: INFIBEAM | D116: 233.70 | E116: 234.55 | F116: 229.65 | G116: 225.60 | H116: 220.70 | I116: 238.60 | J116: 243.50 | K116: 247.55 | L116: 239.45 | M116: 230.5 | N116: 41308000 | O116: 2.66%
A117: 108 | B117: Telecom | C117: INFRATEL | D117: 291.30 | E117: 287.65 | F117: 281.05 | G117: 270.80 | H117: 264.20 | I117: 297.90 | J117: 304.50 | K117: 314.75 | L117: 294.25 | M117: 277.4 | N117: 6648700 | O117: -1.24%
A118: 109 | B118: Technology | C118: INFY | D118: 1439.45 | E118: 1448.73 | F118: 1424.97 | G118: 1410.48 | H118: 1386.72 | I118: 1463.22 | J118: 1486.98 | K118: 1501.47 | L118: 1472.5 | M118: 1434.25 | N118: 22804200 | O118: -0.61%
A119: 110 | B119: Oil_Gas | C119: IOC | D119: 156.10 | E119: 156.52 | F119: 155.23 | G119: 154.37 | H119: 153.08 | I119: 157.38 | J119: 158.67 | K119: 159.53 | L119: 157.8 | M119: 155.65 | N119: 29994000 | O119: 1.72%
A120: 111 | B120: Infrastructure | C120: IRB | D120: 189.75 | E120: 190.78 | F120: 187.77 | G120: 185.78 | H120: 182.77 | I120: 192.77 | J120: 195.78 | K120: 197.77 | L120: 193.8 | M120: 188.8 | N120: 15585000 | O120: 0.84%
A121: 112 | B121: FMCG | C121: ITC | D121: 314.25 | E121: 316.62 | F121: 309.63 | G121: 305.02 | H121: 298.03 | I121: 321.23 | J121: 328.22 | K121: 332.83 | L121: 323.6 | M121: 312 | N121: 81981600 | O121: 1.64%
A122: 113 | B122: Others | C122: JETAIRWAYS | D122: 286.95 | E122: 286.93 | F122: 283.57 | G122: 280.18 | H122: 276.82 | I122: 290.32 | J122: 293.68 | K122: 297.07 | L122: 290.3 | M122: 283.55 | N122: 5544000 | O122: -0.94%
A123: 114 | B123: Metals | C123: JINDALSTEL | D123: 222.00 | E123: 222.98 | F123: 219.67 | G123: 217.33 | H123: 214.02 | I123: 225.32 | J123: 228.63 | K123: 230.97 | L123: 226.3 | M123: 220.65 | N123: 30555000 | O123: 0.40%
A124: 115 | B124: Others | C124: JISLJALEQS | D124: 86.20 | E124: 86.62 | F124: 84.38 | G124: 82.57 | H124: 80.33 | I124: 88.43 | J124: 90.67 | K124: 92.48 | L124: 88.85 | M124: 84.8 | N124: 38295000 | O124: 1.62%
A125: 116 | B125: Realty | C125: JPASSOCIAT | D125: 11.80 | E125: 11.93 | F125: 11.52 | G125: 11.23 | H125: 10.82 | I125: 12.22 | J125: 12.63 | K125: 12.92 | L125: 12.35 | M125: 11.65 | N125: 147084000 | O125: -2.22%
A126: 117 | B126: Metals | C126: JSWSTEEL | D126: 398.80 | E126: 399.60 | F126: 394.50 | G126: 390.20 | H126: 385.10 | I126: 403.90 | J126: 409.00 | K126: 413.30 | L126: 404.7 | M126: 395.3 | N126: 59604000 | O126: -0.34%
A127: 118 | B127: Others | C127: JUBLFOOD | D127: 1529.80 | E127: 1539.33 | F127: 1515.67 | G127: 1501.53 | H127: 1477.87 | I127: 1553.47 | J127: 1577.13 | K127: 1591.27 | L127: 1563 | M127: 1525.2 | N127: 2804500 | O127: -0.67%
A128: 119 | B128: Others | C128: JUSTDIAL | D128: 538.60 | E128: 545.62 | F128: 524.98 | G128: 511.37 | H128: 490.73 | I128: 559.23 | J128: 579.87 | K128: 593.48 | L128: 566.25 | M128: 532 | N128: 2905000 | O128: 2.17%
A129: 120 | B129: Others | C129: KAJARIACER | D129: 476.30 | E129: 478.72 | F129: 470.13 | G129: 463.97 | H129: 455.38 | I129: 484.88 | J129: 493.47 | K129: 499.63 | L129: 487.3 | M129: 472.55 | N129: 2115000 | O129: 8.85%
A130: 121 | B130: Banking | C130: KOTAKBANK | D130: 1279.40 | E130: 1284.40 | F130: 1270.15 | G130: 1260.90 | H130: 1246.65 | I130: 1293.65 | J130: 1307.90 | K130: 1317.15 | L130: 1298.65 | M130: 1275.15 | N130: 11001600 | O130: -0.19%
A131: 122 | B131: Technology | C131: KPIT | D131: 302.90 | E131: 305.13 | F131: 299.42 | G131: 295.93 | H131: 290.22 | I131: 308.62 | J131: 314.33 | K131: 317.82 | L131: 310.85 | M131: 301.65 | N131: 8730000 | O131: -1.62%
A132: 123 | B132: Others | C132: KSCL | D132: 644.00 | E132: 647.52 | F132: 639.18 | G132: 634.37 | H132: 626.03 | I132: 652.33 | J132: 660.67 | K132: 665.48 | L132: 655.85 | M132: 642.7 | N132: 990000 | O132: -3.65%
A133: 124 | B133: Banking | C133: KTKBANK | D133: 120.85 | E133: 121.40 | F133: 119.25 | G133: 117.65 | H133: 115.50 | I133: 123.00 | J133: 125.15 | K133: 126.75 | L133: 123.55 | M133: 119.8 | N133: 17887500 | O133: -0.92%
A134: 125 | B134: Finance | C134: L&TFH | D134: 181.15 | E134: 182.33 | F134: 179.32 | G134: 177.48 | H134: 174.47 | I134: 184.17 | J134: 187.18 | K134: 189.02 | L134: 185.35 | M134: 180.5 | N134: 27922500 | O134: -1.97%
A135: 126 | B135: Finance | C135: LICHSGFIN | D135: 523.45 | E135: 524.82 | F135: 520.23 | G135: 517.02 | H135: 512.43 | I135: 528.03 | J135: 532.62 | K135: 535.83 | L135: 529.4 | M135: 521.6 | N135: 12581800 | O135: -2.03%
A136: 127 | B136: Capital_Goods | C136: LT | D136: 1367.15 | E136: 1375.10 | F136: 1356.20 | G136: 1345.25 | H136: 1326.35 | I136: 1386.05 | J136: 1404.95 | K136: 1415.90 | L136: 1394 | M136: 1364.15 | N136: 13435500 | O136: -0.44%
A137: 128 | B137: Pharma | C137: LUPIN | D137: 940.15 | E137: 943.32 | F137: 923.83 | G137: 907.52 | H137: 888.03 | I137: 959.63 | J137: 979.12 | K137: 995.43 | L137: 962.8 | M137: 927 | N137: 11127900 | O137: 1.41%
A138: 129 | B138: Automobile | C138: M&M | D138: 953.85 | E138: 961.42 | F138: 941.23 | G138: 928.62 | H138: 908.43 | I138: 974.03 | J138: 994.22 | K138: 1006.83 | L138: 981.6 | M138: 948.8 | N138: 14943000 | O138: 3.31%
A139: 130 | B139: Finance | C139: M&MFIN | D139: 486.70 | E139: 489.42 | F139: 482.83 | G139: 478.97 | H139: 472.38 | I139: 493.28 | J139: 499.87 | K139: 503.73 | L139: 496 | M139: 485.55 | N139: 9613750 | O139: -2.39%
A140: 131 | B140: Others | C140: MANAPPURAM | D140: 99.45 | E140: 100.05 | F140: 98.50 | G140: 97.55 | H140: 96.00 | I140: 101.00 | J140: 102.55 | K140: 103.50 | L140: 101.6 | M140: 99.1 | N140: 15780000 | O140: 0.61%
A141: 132 | B141: FMCG | C141: MARICO | D141: 364.00 | E141: 367.48 | F141: 359.02 | G141: 354.03 | H141: 345.57 | I141: 372.47 | J141: 380.93 | K141: 385.92 | L141: 375.95 | M141: 362.5 | N141: 7714200 | O141: 0.68%
A142: 133 | B142: Automobile | C142: MARUTI | D142: 8968.75 | E142: 9028.92 | F142: 8872.83 | G142: 8776.92 | H142: 8620.83 | I142: 9124.83 | J142: 9280.92 | K142: 9376.83 | L142: 9185 | M142: 8933 | N142: 2603250 | O142: 8.24%
A143: 134 | B143: FMCG | C143: MCDOWELL-N | D143: 613.85 | E143: 622.35 | F143: 602.70 | G143: 591.55 | H143: 571.90 | I143: 633.50 | J143: 653.15 | K143: 664.30 | L143: 642 | M143: 611.2 | N143: 10198750 | O143: 4.00%
A144: 135 | B144: Others | C144: MCX | D144: 831.80 | E144: 836.08 | F144: 823.72 | G144: 815.63 | H144: 803.27 | I144: 844.17 | J144: 856.53 | K144: 864.62 | L144: 848.45 | M144: 828 | N144: 4739700 | O144: -0.34%
A145: 136 | B145: Finance | C145: MFSL | D145: 450.35 | E145: 452.95 | F145: 444.30 | G145: 438.25 | H145: 429.60 | I145: 459.00 | J145: 467.65 | K145: 473.70 | L145: 461.6 | M145: 446.9 | N145: 2486400 | O145: 0.24%
A146: 137 | B146: Others | C146: MGL | D146: 863.85 | E146: 865.57 | F146: 856.38 | G146: 848.92 | H146: 839.73 | I146: 873.03 | J146: 882.22 | K146: 889.68 | L146: 874.75 | M146: 858.1 | N146: 3631800 | O146: -11.12%
A147: 138 | B147: Technology | C147: MINDTREE | D147: 1108.45 | E147: 1123.95 | F147: 1088.00 | G147: 1067.55 | H147: 1031.60 | I147: 1144.40 | J147: 1180.35 | K147: 1200.80 | L147: 1159.9 | M147: 1103.5 | N147: 3828000 | O147: -16.27%
A148: 139 | B148: Automobile | C148: MOTHERSUMI | D148: 306.50 | E148: 307.47 | F148: 304.53 | G148: 302.57 | H148: 299.63 | I148: 309.43 | J148: 312.37 | K148: 314.33 | L148: 310.4 | M148: 305.5 | N148: 12329600 | O148: -1.63%
A149: 140 | B149: Automobile | C149: MRF | D149: 73496.70 | E149: 73854.23 | F149: 73005.02 | G149: 72513.33 | H149: 71664.12 | I149: 74345.92 | J149: 75195.13 | K149: 75686.82 | L149: 74703.45 | M149: 73362.55 | N149: 34510 | O149: 1.74%
A150: 141 | B150: Others | C150: MRPL | D150: 80.15 | E150: 80.65 | F150: 79.20 | G150: 78.25 | H150: 76.80 | I150: 81.60 | J150: 83.05 | K150: 84.00 | L150: 82.1 | M150: 79.7 | N150: 5904000 | O150: 2.90%
A151: 142 | B151: Finance | C151: MUTHOOTFIN | D151: 407.15 | E151: 408.70 | F151: 403.90 | G151: 400.65 | H151: 395.85 | I151: 411.95 | J151: 416.75 | K151: 420.00 | L151: 413.5 | M151: 405.45 | N151: 1971000 | O151: 2.82%
A152: 143 | B152: Others | C152: NATIONALUM | D152: 75.50 | E152: 75.95 | F152: 74.70 | G152: 73.90 | H152: 72.65 | I152: 76.75 | J152: 78.00 | K152: 78.80 | L152: 77.2 | M152: 75.15 | N152: 51024000 | O152: -0.56%
A153: 144 | B153: Others | C153: NBCC | D153: 72.90 | E153: 73.07 | F153: 71.68 | G153: 70.47 | H153: 69.08 | I153: 74.28 | J153: 75.67 | K153: 76.88 | L153: 74.45 | M153: 71.85 | N153: 20976000 | O153: 1.27%
A154: 145 | B154: Infrastructure | C154: NCC | D154: 104.40 | E154: 102.92 | F154: 99.68 | G154: 94.97 | H154: 91.73 | I154: 107.63 | J154: 110.87 | K154: 115.58 | L154: 106.15 | M154: 98.2 | N154: 50336000 | O154: 8.18%
A155: 146 | B155: Others | C155: NESTLEIND | D155: 11331.50 | E155: 11442.25 | F155: 11204.55 | G155: 11077.60 | H155: 10839.90 | I155: 11569.20 | J155: 11806.90 | K155: 11933.85 | L155: 11679.95 | M155: 11315.3 | N155: 268300 | O155: -1.18%
A156: 147 | B156: Power | C156: NHPC | D156: 25.45 | E156: 25.20 | F156: 24.60 | G156: 23.75 | H156: 23.15 | I156: 26.05 | J156: 26.65 | K156: 27.50 | L156: 25.8 | M156: 24.35 | N156: 24111000 | O156: 3.36%
A157: 148 | B157: Technology | C157: NIITTECH | D157: 1372.00 | E157: 1385.60 | F157: 1354.00 | G157: 1336.00 | H157: 1304.40 | I157: 1403.60 | J157: 1435.20 | K157: 1453.20 | L157: 1417.2 | M157: 1367.6 | N157: 1300500 | O157: -8.50%
A158: 149 | B158: Metals | C158: NMDC | D158: 113.45 | E158: 113.60 | F158: 111.10 | G158: 108.75 | H158: 106.25 | I158: 115.95 | J158: 118.45 | K158: 120.80 | L158: 116.1 | M158: 111.25 | N158: 25410000 | O158: -3.92%
A159: 150 | B159: Power | C159: NTPC | D159: 167.80 | E159: 170.00 | F159: 164.20 | G159: 160.60 | H159: 154.80 | I159: 173.60 | J159: 179.40 | K159: 183.00 | L159: 175.8 | M159: 166.4 | N159: 35744000 | O159: -0.39%
A160: 151 | B160: Technology | C160: OFSS | D160: 4129.90 | E160: 4217.33 | F160: 4021.77 | G160: 3913.63 | H160: 3718.07 | I160: 4325.47 | J160: 4521.03 | K160: 4629.17 | L160: 4412.9 | M160: 4109.2 | N160: 266700 | O160: 15.01%
A161: 152 | B161: Oil_Gas | C161: OIL | D161: 211.90 | E161: 212.70 | F161: 210.10 | G161: 208.30 | H161: 205.70 | I161: 214.50 | J161: 217.10 | K161: 218.90 | L161: 215.3 | M161: 210.9 | N161: 3103287 | O161: -0.87%
A162: 153 | B162: Oil_Gas | C162: ONGC | D162: 176.70 | E162: 177.48 | F162: 175.32 | G162: 173.93 | H162: 171.77 | I162: 178.87 | J162: 181.03 | K162: 182.42 | L162: 179.65 | M162: 176.1 | N162: 45127500 | O162: 0.29%
A163: 154 | B163: Banking | C163: ORIENTBANK | D163: 84.80 | E163: 85.70 | F163: 83.00 | G163: 81.20 | H163: 78.50 | I163: 87.50 | J163: 90.20 | K163: 92.00 | L163: 88.4 | M163: 83.9 | N163: 12228000 | O163: -1.31%
A164: 155 | B164: Textile | C164: PAGEIND | D164: 33488.25 | E164: 33890.37 | F164: 32960.23 | G164: 32432.22 | H164: 31502.08 | I164: 34418.38 | J164: 35348.52 | K164: 35876.53 | L164: 34820.5 | M164: 33362.35 | N164: 130150 | O164: 7.54%
A165: 156 | B165: Others | C165: PCJEWELLER | D165: 91.35 | E165: 90.23 | F165: 85.12 | G165: 78.88 | H165: 73.77 | I165: 96.47 | J165: 101.58 | K165: 107.82 | L165: 95.35 | M165: 84 | N165: 9472500 | O165: 6.17%
A166: 157 | B166: Pharma | C166: PEL | D166: 3098.50 | E166: 3148.25 | F166: 3026.30 | G166: 2954.10 | H166: 2832.15 | I166: 3220.45 | J166: 3342.40 | K166: 3414.60 | L166: 3270.2 | M166: 3076.05 | N166: 2856920 | O166: 0.84%
A167: 158 | B167: Oil_Gas | C167: PETRONET | D167: 239.25 | E167: 240.97 | F167: 236.68 | G167: 234.12 | H167: 229.83 | I167: 243.53 | J167: 247.82 | K167: 250.38 | L167: 245.25 | M167: 238.4 | N167: 14544000 | O167: -3.04%
A168: 159 | B168: Finance | C168: PFC | D168: 85.30 | E168: 85.87 | F168: 84.03 | G168: 82.77 | H168: 80.93 | I168: 87.13 | J168: 88.97 | K168: 90.23 | L168: 87.7 | M168: 84.6 | N168: 77904000 | O168: 1.17%
A169: 160 | B169: FMCG | C169: PIDILITIND | D169: 1175.60 | E169: 1177.88 | F169: 1168.72 | G169: 1161.83 | H169: 1152.67 | I169: 1184.77 | J169: 1193.93 | K169: 1200.82 | L169: 1187.05 | M169: 1171 | N169: 3333000 | O169: 0.69%
A170: 161 | B170: Banking | C170: PNB | D170: 86.85 | E170: 87.77 | F170: 85.58 | G170: 84.32 | H170: 82.13 | I170: 89.03 | J170: 91.22 | K170: 92.48 | L170: 89.95 | M170: 86.5 | N170: 129789000 | O170: -0.23%
A171: 162 | B171: Power | C171: POWERGRID | D171: 193.10 | E171: 195.97 | F171: 189.68 | G171: 186.27 | H171: 179.98 | I171: 199.38 | J171: 205.67 | K171: 209.08 | L171: 202.25 | M171: 192.55 | N171: 41636000 | O171: 3.27%
A172: 163 | B172: Power | C172: PTC | D172: 84.40 | E172: 84.98 | F172: 83.47 | G172: 82.53 | H172: 81.02 | I172: 85.92 | J172: 87.43 | K172: 88.37 | L172: 86.5 | M172: 84.05 | N172: 14376000 | O172: -2.92%
A173: 164 | B173: Others | C173: PVR | D173: 1383.55 | E173: 1391.88 | F173: 1360.67 | G173: 1337.78 | H173: 1306.57 | I173: 1414.77 | J173: 1445.98 | K173: 1468.87 | L173: 1423.1 | M173: 1369 | N173: 922000 | O173: -11.31%
A174: 165 | B174: Cement | C174: RAMCOCEM | D174: 676.65 | E174: 682.72 | F174: 669.43 | G174: 662.22 | H174: 648.93 | I174: 689.93 | J174: 703.22 | K174: 710.43 | L174: 696 | M174: 675.5 | N174: 1111200 | O174: 3.89%
A175: 166 | B175: Others | C175: RAYMOND | D175: 843.00 | E175: 848.83 | F175: 834.27 | G175: 825.53 | H175: 810.97 | I175: 857.57 | J175: 872.13 | K175: 880.87 | L175: 863.4 | M175: 840.1 | N175: 4802400 | O175: -0.51%
A176: 167 | B176: Banking | C176: RBLBANK | D176: 629.10 | E176: 634.02 | F176: 622.13 | G176: 615.17 | H176: 603.28 | I176: 640.98 | J176: 652.87 | K176: 659.83 | L176: 645.9 | M176: 627.05 | N176: 4588800 | O176: 0.39%
A177: 168 | B177: Telecom | C177: RCOM | D177: 18.35 | E177: 18.48 | F177: 17.87 | G177: 17.38 | H177: 16.77 | I177: 18.97 | J177: 19.58 | K177: 20.07 | L177: 19.1 | M177: 18 | N177: 126336000 | O177: 3.46%
A178: 169 | B178: Power | C178: RECLTD | D178: 118.30 | E178: 119.28 | F178: 116.67 | G178: 115.03 | H178: 112.42 | I178: 120.92 | J178: 123.53 | K178: 125.17 | L178: 121.9 | M178: 117.65 | N178: 37098000 | O178: 2.15%
A179: 170 | B179: Finance | C179: RELCAPITAL | D179: 466.05 | E179: 469.10 | F179: 457.80 | G179: 449.55 | H179: 438.25 | I179: 477.35 | J179: 488.65 | K179: 496.90 | L179: 480.4 | M179: 460.85 | N179: 9708000 | O179: -1.07%
A180: 171 | B180: Oil_Gas | C180: RELIANCE | D180: 1238.15 | E180: 1246.98 | F180: 1226.22 | G180: 1214.28 | H180: 1193.52 | I180: 1258.92 | J180: 1279.68 | K180: 1291.62 | L180: 1267.75 | M180: 1235.05 | N180: 52634000 | O180: 2.70%
A181: 172 | B181: Power | C181: RELINFRA | D181: 465.60 | E181: 469.22 | F181: 455.03 | G181: 444.47 | H181: 430.28 | I181: 479.78 | J181: 493.97 | K181: 504.53 | L181: 483.4 | M181: 458.65 | N181: 8994700 | O181: -4.84%
A182: 173 | B182: Others | C182: REPCOHOME | D182: 533.30 | E182: 538.50 | F182: 525.30 | G182: 517.30 | H182: 504.10 | I182: 546.50 | J182: 559.70 | K182: 567.70 | L182: 551.7 | M182: 530.5 | N182: 869400 | O182: 11.55%
A183: 174 | B183: Power | C183: RPOWER | D183: 38.10 | E183: 38.42 | F183: 37.18 | G183: 36.27 | H183: 35.03 | I183: 39.33 | J183: 40.57 | K183: 41.48 | L183: 39.65 | M183: 37.5 | N183: 50518000 | O183: 0.96%
A184: 175 | B184: Metals | C184: SAIL | D184: 80.50 | E184: 80.70 | F184: 79.45 | G184: 78.40 | H184: 77.15 | I184: 81.75 | J184: 83.00 | K184: 84.05 | L184: 81.95 | M184: 79.65 | N184: 77940000 | O184: 0.70%
A185: 176 | B185: Banking | C185: SBIN | D185: 308.05 | E185: 309.58 | F185: 305.27 | G185: 302.48 | H185: 298.17 | I185: 312.37 | J185: 316.68 | K185: 319.47 | L185: 313.9 | M185: 306.8 | N185: 81003000 | O185: -1.45%
A186: 177 | B186: Cement | C186: SHREECEM | D186: 19130.25 | E186: 19205.03 | F186: 18976.72 | G186: 18823.18 | H186: 18594.87 | I186: 19358.57 | J186: 19586.88 | K186: 19740.42 | L186: 19433.35 | M186: 19051.5 | N186: 98500 | O186: 2.60%
A187: 178 | B187: Capital_Goods | C187: SIEMENS | D187: 1014.90 | E187: 1018.92 | F187: 1006.08 | G187: 997.27 | H187: 984.43 | I187: 1027.73 | J187: 1040.57 | K187: 1049.38 | L187: 1031.75 | M187: 1010.1 | N187: 1435000 | O187: 0.21%
A188: 179 | B188: Banking | C188: SOUTHBANK | D188: 17.65 | E188: 17.68 | F188: 17.57 | G188: 17.48 | H188: 17.37 | I188: 17.77 | J188: 17.88 | K188: 17.97 | L188: 17.8 | M188: 17.6 | N188: 147477450 | O188: 2.13%
A189: 180 | B189: Others | C189: SREINFRA | D189: 52.95 | E189: 53.82 | F189: 51.63 | G189: 50.32 | H189: 48.13 | I189: 55.13 | J189: 57.32 | K189: 58.63 | L189: 56 | M189: 52.5 | N189: 18382000 | O189: -2.63%
A190: 181 | B190: Textile | C190: SRF | D190: 2018.50 | E190: 2034.25 | F190: 1997.50 | G190: 1976.50 | H190: 1939.75 | I190: 2055.25 | J190: 2092.00 | K190: 2113.00 | L190: 2071 | M190: 2013.25 | N190: 1010500 | O190: -2.60%
A191: 182 | B191: Finance | C191: SRTRANSFIN | D191: 1323.45 | E191: 1339.98 | F191: 1300.97 | G191: 1278.48 | H191: 1239.47 | I191: 1362.47 | J191: 1401.48 | K191: 1423.97 | L191: 1379 | M191: 1317.5 | N191: 4811400 | O191: 4.50%
A192: 183 | B192: Pharma | C192: STAR | D192: 498.75 | E192: 502.70 | F192: 490.85 | G192: 482.95 | H192: 471.10 | I192: 510.60 | J192: 522.45 | K192: 530.35 | L192: 514.55 | M192: 494.8 | N192: 5070400 | O192: -4.35%
A193: 184 | B193: Pharma | C193: SUNPHARMA | D193: 656.15 | E193: 660.50 | F193: 647.15 | G193: 638.15 | H193: 624.80 | I193: 669.50 | J193: 682.85 | K193: 691.85 | L193: 673.85 | M193: 651.5 | N193: 34454200 | O193: -1.60%
A194: 185 | B194: Media | C194: SUNTV | D194: 783.05 | E194: 784.28 | F194: 770.07 | G194: 757.08 | H194: 742.87 | I194: 797.27 | J194: 811.48 | K194: 824.47 | L194: 798.5 | M194: 771.3 | N194: 6862000 | O194: 0.72%
A195: 186 | B195: Power | C195: SUZLON | D195: 7.20 | E195: 7.25 | F195: 7.15 | G195: 7.10 | H195: 7.00 | I195: 7.30 | J195: 7.40 | K195: 7.45 | L195: 7.35 | M195: 7.2 | N195: 314100000 | O195: 0.66%
A196: 187 | B196: Banking | C196: SYNDIBANK | D196: 41.20 | E196: 41.27 | F196: 40.08 | G196: 38.97 | H196: 37.78 | I196: 42.38 | J196: 43.57 | K196: 44.68 | L196: 42.45 | M196: 40.15 | N196: 26757000 | O196: -3.79%
A197: 188 | B197: Fertilisers | C197: TATACHEM | D197: 772.35 | E197: 773.90 | F197: 759.25 | G197: 746.15 | H197: 731.50 | I197: 787.00 | J197: 801.65 | K197: 814.75 | L197: 788.55 | M197: 760.8 | N197: 3610500 | O197: 1.35%
A198: 189 | B198: Telecom | C198: TATACOMM | D198: 533.85 | E198: 537.25 | F198: 526.65 | G198: 519.45 | H198: 508.85 | I198: 544.45 | J198: 555.05 | K198: 562.25 | L198: 547.85 | M198: 530.05 | N198: 3709600 | O198: 1.89%
A199: 190 | B199: Technology | C199: TATAELXSI | D199: 1455.55 | E199: 1461.87 | F199: 1441.78 | G199: 1428.02 | H199: 1407.93 | I199: 1475.63 | J199: 1495.72 | K199: 1509.48 | L199: 1481.95 | M199: 1448.1 | N199: 2251200 | O199: 1.96%
A200: 191 | B200: FMCG | C200: TATAGLOBAL | D200: 238.35 | E200: 240.15 | F200: 234.80 | G200: 231.25 | H200: 225.90 | I200: 243.70 | J200: 249.05 | K200: 252.60 | L200: 245.5 | M200: 236.6 | N200: 15237000 | O200: 3.15%
A201: 192 | B201: Automobile | C201: TATAMOTORS | D201: 267.75 | E201: 269.38 | F201: 264.87 | G201: 261.98 | H201: 257.47 | I201: 272.27 | J201: 276.78 | K201: 279.67 | L201: 273.9 | M201: 266.5 | N201: 82158000 | O201: 0.05%
A202: 193 | B202: Automobile | C202: TATAMTRDVR | D202: 145.30 | E202: 144.85 | F202: 142.90 | G202: 140.50 | H202: 138.55 | I202: 147.25 | J202: 149.20 | K202: 151.60 | L202: 146.8 | M202: 142.45 | N202: 33773600 | O202: 1.30%
A203: 194 | B203: Power | C203: TATAPOWER | D203: 78.40 | E203: 78.12 | F203: 76.93 | G203: 75.47 | H203: 74.28 | I203: 79.58 | J203: 80.77 | K203: 82.23 | L203: 79.3 | M203: 76.65 | N203: 47493000 | O203: -6.52%
A204: 195 | B204: Metals | C204: TATASTEEL | D204: 603.25 | E204: 606.33 | F204: 598.37 | G204: 593.48 | H204: 585.52 | I204: 611.22 | J204: 619.18 | K204: 624.07 | L204: 614.3 | M204: 601.45 | N204: 42498355 | O204: -0.33%
A205: 196 | B205: Technology | C205: TCS | D205: 2067.25 | E205: 2078.92 | F205: 2051.68 | G205: 2036.12 | H205: 2008.88 | I205: 2094.48 | J205: 2121.72 | K205: 2137.28 | L205: 2106.15 | M205: 2063.35 | N205: 8412500 | O205: -3.37%
A206: 197 | B206: Technology | C206: TECHM | D206: 751.40 | E206: 759.50 | F206: 739.40 | G206: 727.40 | H206: 707.30 | I206: 771.50 | J206: 791.60 | K206: 803.60 | L206: 779.6 | M206: 747.5 | N206: 15658800 | O206: -3.99%
... 35 more rows

Sheet Cash Intra
M5: Back to Main Page
A6: FOR INTRA DAY TRADING | K6: =Main!B10 -> 2018-09-04
A8: Sr.no | B8: Scrip | C8: CLOSE RATE | D8: Pivot Point | E8: Supports | H8: Resistances
C9: Point | E9: S1 | F9: S2 | G9: S3 | H9: R1 | I9: R2 | J9: R3 | K9: HIGH | L9: LOW | M9: Total Trade Quanity in Lakhs
A10: 1 | B10: Nifty 50 | C10: 11582.35 | D10: 11633.85 | E10: 11515.90 | F10: 11449.45 | G10: 11331.50 | H10: 11700.30 | I10: 11818.25 | J10: 11884.70 | K10: 11751.8 | L10: 11567.4
A11: 2 | B11: Nifty Bank | C11: 27819.5 | D11: 27933.37 | E11: 27663.53 | F11: 27507.57 | G11: 27237.73 | H11: 28089.33 | I11: 28359.17 | J11: 28515.13 | K11: 28203.2 | L11: 27777.4
A12: 3 | B12: Nifty CPSE | C12: 2375.7 | D12: 2383.13 | E12: 2363.72 | F12: 2351.73 | G12: 2332.32 | H12: 2395.12 | I12: 2414.53 | J12: 2426.52 | K12: 2402.55 | L12: 2371.15
A13: 4 | B13: Nifty Infra | C13: 3275 | D13: 3287.20 | E13: 3257.60 | F13: 3240.20 | G13: 3210.60 | H13: 3304.60 | I13: 3334.20 | J13: 3351.60 | K13: 3316.8 | L13: 3269.8
A14: 5 | B14: Nifty IT | C14: 15724.7 | D14: 15825.32 | E14: 15602.38 | F14: 15480.07 | G14: 15257.13 | H14: 15947.63 | I14: 16170.57 | J14: 16292.88 | K14: 16048.25 | L14: 15703
A15: 6 | B15: Nifty PSE | C15: 3699.6 | D15: 3713.97 | E15: 3679.48 | F15: 3659.37 | G15: 3624.88 | H15: 3734.08 | I15: 3768.57 | J15: 3788.68 | K15: 3748.45 | L15: 3693.85
A16: 7 | B16: Nifty Midcap 50 | C16: 5311.3 | D16: 5332.62 | E16: 5277.33 | F16: 5243.37 | G16: 5188.08 | H16: 5366.58 | I16: 5421.87 | J16: 5455.83 | K16: 5387.9 | L16: 5298.65
A17: 8 | B17: ABB | C17: 1305.55 | D17: 1312.48 | E17: 1295.07 | F17: 1284.58 | G17: 1267.17 | H17: 1322.97 | I17: 1340.38 | J17: 1350.87 | K17: 1329.9 | L17: 1302 | M17: 0.81094
A18: 9 | B18: ACC | C18: 1662.1 | D18: 1657.33 | E18: 1635.77 | F18: 1609.43 | G18: 1587.87 | H18: 1683.67 | I18: 1705.23 | J18: 1731.57 | K18: 1678.9 | L18: 1631 | M18: 7.87758
A19: 10 | B19: AIAENG | C19: 1714.9 | D19: 1733.63 | E19: 1687.27 | F19: 1659.63 | G19: 1613.27 | H19: 1761.27 | I19: 1807.63 | J19: 1835.27 | K19: 1780 | L19: 1706 | M19: 0.12507
A20: 11 | B20: AUBANK | C20: 730.1 | D20: 730.03 | E20: 724.22 | F20: 718.33 | G20: 712.52 | H20: 735.92 | I20: 741.73 | J20: 747.62 | K20: 735.85 | L20: 724.15 | M20: 2.715
A21: 12 | B21: ADANIENT | C21: 210.5 | D21: 214.02 | E21: 200.63 | F21: 190.77 | G21: 177.38 | H21: 223.88 | I21: 237.27 | J21: 247.13 | K21: 227.4 | L21: 204.15 | M21: 200.62123
A22: 13 | B22: ADANIPORTS | C22: 384.45 | D22: 385.28 | E22: 377.62 | F22: 370.78 | G22: 363.12 | H22: 392.12 | I22: 399.78 | J22: 406.62 | K22: 392.95 | L22: 378.45 | M22: 27.44322
A23: 14 | B23: ADANIPOWER | C23: 33.7 | D23: 34.33 | E23: 32.57 | F23: 31.43 | G23: 29.67 | H23: 35.47 | I23: 37.23 | J23: 38.37 | K23: 36.1 | L23: 33.2 | M23: 242.81514
A24: 15 | B24: ABFRL | C24: 202.05 | D24: 202.63 | E24: 199.02 | F24: 195.98 | G24: 192.37 | H24: 205.67 | I24: 209.28 | J24: 212.32 | K24: 206.25 | L24: 199.6 | M24: 14.19629
A25: 16 | B25: AJANTPHARM | C25: 1249.2 | D25: 1259.17 | E25: 1228.53 | F25: 1207.87 | G25: 1177.23 | H25: 1279.83 | I25: 1310.47 | J25: 1331.13 | K25: 1289.8 | L25: 1238.5 | M25: 2.95728
A26: 17 | B26: ALKEM | C26: 2199.2 | D26: 2179.63 | E26: 2134.57 | F26: 2069.93 | G26: 2024.87 | H26: 2244.27 | I26: 2289.33 | J26: 2353.97 | K26: 2224.7 | L26: 2115 | M26: 3.75468
A27: 18 | B27: AMARAJABAT | C27: 845.5 | D27: 849.87 | E27: 837.13 | F27: 828.77 | G27: 816.03 | H27: 858.23 | I27: 870.97 | J27: 879.33 | K27: 862.6 | L27: 841.5 | M27: 2.78207
A28: 19 | B28: AMBUJACEM | C28: 240 | D28: 241.25 | E28: 237.10 | F28: 234.20 | G28: 230.05 | H28: 244.15 | I28: 248.30 | J28: 251.20 | K28: 245.4 | L28: 238.35 | M28: 23.93818
A29: 20 | B29: APOLLOHOSP | C29: 1173.35 | D29: 1179.43 | E29: 1157.57 | F29: 1141.78 | G29: 1119.92 | H29: 1195.22 | I29: 1217.08 | J29: 1232.87 | K29: 1201.3 | L29: 1163.65 | M29: 9.69364
A30: 21 | B30: APOLLOTYRE | C30: 250.3 | D30: 251.20 | E30: 247.90 | F30: 245.50 | G30: 242.20 | H30: 253.60 | I30: 256.90 | J30: 259.30 | K30: 254.5 | L30: 248.8 | M30: 16.74997
A31: 22 | B31: ARVIND | C31: 399.7 | D31: 402.40 | E31: 395.40 | F31: 391.10 | G31: 384.10 | H31: 406.70 | I31: 413.70 | J31: 418.00 | K31: 409.4 | L31: 398.1 | M31: 26.85304
A32: 23 | B32: ASHOKLEY | C32: 133.45 | D32: 133.58 | E32: 132.17 | F32: 130.88 | G32: 129.47 | H32: 134.87 | I32: 136.28 | J32: 137.57 | K32: 135 | L32: 132.3 | M32: 327.52122
A33: 24 | B33: ASIANPAINT | C33: 1361.6 | D33: 1368.03 | E33: 1348.57 | F33: 1335.53 | G33: 1316.07 | H33: 1381.07 | I33: 1400.53 | J33: 1413.57 | K33: 1387.5 | L33: 1355 | M33: 8.17733
A34: 25 | B34: AUROPHARMA | C34: 699.9 | D34: 707.33 | E34: 689.17 | F34: 678.43 | G34: 660.27 | H34: 718.07 | I34: 736.23 | J34: 746.97 | K34: 725.5 | L34: 696.6 | M34: 37.89268
A35: 26 | B35: DMART | C35: 1604.65 | D35: 1604.88 | E35: 1589.77 | F35: 1574.88 | G35: 1559.77 | H35: 1619.77 | I35: 1634.88 | J35: 1649.77 | K35: 1620 | L35: 1590 | M35: 5.07075
A36: 27 | B36: AXISBANK | C36: 631.8 | D36: 638.95 | E36: 622.45 | F36: 613.10 | G36: 596.60 | H36: 648.30 | I36: 664.80 | J36: 674.15 | K36: 655.45 | L36: 629.6 | M36: 64.94484
A37: 28 | B37: BAJAJ-AUTO | C37: 2771.9 | D37: 2776.53 | E37: 2745.37 | F37: 2718.83 | G37: 2687.67 | H37: 2803.07 | I37: 2834.23 | J37: 2860.77 | K37: 2807.7 | L37: 2750 | M37: 8.76984
A38: 29 | B38: BAJFINANCE | C38: 2724.05 | D38: 2773.12 | E38: 2666.23 | F38: 2608.42 | G38: 2501.53 | H38: 2830.93 | I38: 2937.82 | J38: 2995.63 | K38: 2880 | L38: 2715.3 | M38: 25.1684
A39: 30 | B39: BAJAJFINSV | C39: 6652.9 | D39: 6705.97 | E39: 6571.93 | F39: 6490.97 | G39: 6356.93 | H39: 6786.93 | I39: 6920.97 | J39: 7001.93 | K39: 6840 | L39: 6625 | M39: 1.96221
A40: 31 | B40: BALKRISIND | C40: 1264.1 | D40: 1291.20 | E40: 1227.40 | F40: 1190.70 | G40: 1126.90 | H40: 1327.90 | I40: 1391.70 | J40: 1428.40 | K40: 1355 | L40: 1254.5 | M40: 27.15518
A41: 32 | B41: BANKBARODA | C41: 151.7 | D41: 153.03 | E41: 149.57 | F41: 147.43 | G41: 143.97 | H41: 155.17 | I41: 158.63 | J41: 160.77 | K41: 156.5 | L41: 150.9 | M41: 160.81701
A42: 33 | B42: BANKINDIA | C42: 99.65 | D42: 100.55 | E42: 98.10 | F42: 96.55 | G42: 94.10 | H42: 102.10 | I42: 104.55 | J42: 106.10 | K42: 103 | L42: 99 | M42: 87.51388
A43: 34 | B43: BATAINDIA | C43: 1064.1 | D43: 1073.53 | E43: 1048.57 | F43: 1033.03 | G43: 1008.07 | H43: 1089.07 | I43: 1114.03 | J43: 1129.57 | K43: 1098.5 | L43: 1058 | M43: 6.81515
A44: 35 | B44: BERGEPAINT | C44: 328.4 | D44: 331.03 | E44: 323.57 | F44: 318.73 | G44: 311.27 | H44: 335.87 | I44: 343.33 | J44: 348.17 | K44: 338.5 | L44: 326.2 | M44: 3.75021
A45: 36 | B45: BEL | C45: 112.45 | D45: 113.32 | E45: 111.13 | F45: 109.82 | G45: 107.63 | H45: 114.63 | I45: 116.82 | J45: 118.13 | K45: 115.5 | L45: 112 | M45: 77.58259
A46: 37 | B46: BHARATFIN | C46: 1159.7 | D46: 1161.40 | E46: 1153.30 | F46: 1146.90 | G46: 1138.80 | H46: 1167.80 | I46: 1175.90 | J46: 1182.30 | K46: 1169.5 | L46: 1155 | M46: 2.37726
A47: 38 | B47: BHARATFORG | C47: 669.4 | D47: 675.35 | E47: 661.05 | F47: 652.70 | G47: 638.40 | H47: 683.70 | I47: 698.00 | J47: 706.35 | K47: 689.65 | L47: 667 | M47: 17.8621
A48: 39 | B48: BHEL | C48: 81.75 | D48: 81.82 | E48: 80.73 | F48: 79.72 | G48: 78.63 | H48: 82.83 | I48: 83.92 | J48: 84.93 | K48: 82.9 | L48: 80.8 | M48: 99.35832
A49: 40 | B49: BPCL | C49: 360.1 | D49: 361.40 | E49: 357.30 | F49: 354.50 | G49: 350.40 | H49: 364.20 | I49: 368.30 | J49: 371.10 | K49: 365.5 | L49: 358.6 | M49: 21.79617
A50: 41 | B50: BHARTIARTL | C50: 383.8 | D50: 383.83 | E50: 380.42 | F50: 377.03 | G50: 373.62 | H50: 387.22 | I50: 390.63 | J50: 394.02 | K50: 387.25 | L50: 380.45 | M50: 37.64539
A51: 42 | B51: INFRATEL | C51: 289.8 | D51: 289.57 | E51: 286.23 | F51: 282.67 | G51: 279.33 | H51: 293.13 | I51: 296.47 | J51: 300.03 | K51: 292.9 | L51: 286 | M51: 11.41409
A52: 43 | B52: BIOCON | C52: 614.85 | D52: 619.30 | E52: 608.60 | F52: 602.35 | G52: 591.65 | H52: 625.55 | I52: 636.25 | J52: 642.50 | K52: 630 | L52: 613.05 | M52: 19.45329
A53: 44 | B53: BOSCHLTD | C53: 21387.2 | D53: 21690.07 | E53: 21030.13 | F53: 20673.07 | G53: 20013.13 | H53: 22047.13 | I53: 22707.07 | J53: 23064.13 | K53: 22350 | L53: 21333 | M53: 0.39269
A54: 45 | B54: BRITANNIA | C54: 6565.85 | D54: 6637.60 | E54: 6460.25 | F54: 6354.65 | G54: 6177.30 | H54: 6743.20 | I54: 6920.55 | J54: 7026.15 | K54: 6814.95 | L54: 6532 | M54: 0.85052
A55: 46 | B55: CRISIL | C55: 1759.7 | D55: 1765.22 | E55: 1744.48 | F55: 1729.27 | G55: 1708.53 | H55: 1780.43 | I55: 1801.17 | J55: 1816.38 | K55: 1785.95 | L55: 1750 | M55: 0.05694
A56: 47 | B56: CADILAHC | C56: 405.45 | D56: 409.05 | E56: 397.80 | F56: 390.15 | G56: 378.90 | H56: 416.70 | I56: 427.95 | J56: 435.60 | K56: 420.3 | L56: 401.4 | M56: 50.92585
A57: 48 | B57: CANBK | C57: 284.85 | D57: 286.57 | E57: 280.38 | F57: 275.92 | G57: 269.73 | H57: 291.03 | I57: 297.22 | J57: 301.68 | K57: 292.75 | L57: 282.1 | M57: 83.44902
A58: 49 | B58: CASTROLIND | C58: 158.85 | D58: 159.10 | E58: 158.00 | F58: 157.15 | G58: 156.05 | H58: 159.95 | I58: 161.05 | J58: 161.90 | K58: 160.2 | L58: 158.25 | M58: 10.5484
A59: 50 | B59: CENTRALBK | C59: 68.6 | D59: 68.80 | E59: 68.25 | F59: 67.90 | G59: 67.35 | H59: 69.15 | I59: 69.70 | J59: 70.05 | K59: 69.35 | L59: 68.45 | M59: 1.87006
A60: 51 | B60: CENTURYTEX | C60: 969.05 | D60: 972.72 | E60: 953.38 | F60: 937.72 | G60: 918.38 | H60: 988.38 | I60: 1007.72 | J60: 1023.38 | K60: 992.05 | L60: 957.05 | M60: 16.42186
A61: 52 | B61: CHOLAFIN | C61: 1509.7 | D61: 1502.98 | E61: 1473.92 | F61: 1438.13 | G61: 1409.07 | H61: 1538.77 | I61: 1567.83 | J61: 1603.62 | K61: 1532.05 | L61: 1467.2 | M61: 3.43382
A62: 53 | B62: CIPLA | C62: 649.1 | D62: 655.63 | E62: 640.07 | F62: 631.03 | G62: 615.47 | H62: 664.67 | I62: 680.23 | J62: 689.27 | K62: 671.2 | L62: 646.6 | M62: 19.71733
A63: 54 | B63: COALINDIA | C63: 287.65 | D63: 287.87 | E63: 285.93 | F63: 284.22 | G63: 282.28 | H63: 289.58 | I63: 291.52 | J63: 293.23 | K63: 289.8 | L63: 286.15 | M63: 16.49749
A64: 55 | B64: COLPAL | C64: 1174.65 | D64: 1172.77 | E64: 1147.13 | F64: 1119.62 | G64: 1093.98 | H64: 1200.28 | I64: 1225.92 | J64: 1253.43 | K64: 1198.4 | L64: 1145.25 | M64: 13.01037
A65: 56 | B65: CONCOR | C65: 650.8 | D65: 651.18 | E65: 645.87 | F65: 640.93 | G65: 635.62 | H65: 656.12 | I65: 661.43 | J65: 666.37 | K65: 656.5 | L65: 646.25 | M65: 4.21335
A66: 57 | B66: COROMANDEL | C66: 416.95 | D66: 417.63 | E66: 413.42 | F66: 409.88 | G66: 405.67 | H66: 421.17 | I66: 425.38 | J66: 428.92 | K66: 421.85 | L66: 414.1 | M66: 0.52186
A67: 58 | B67: CROMPTON | C67: 250.4 | D67: 251.57 | E67: 248.83 | F67: 247.27 | G67: 244.53 | H67: 253.13 | I67: 255.87 | J67: 257.43 | K67: 254.3 | L67: 250 | M67: 2.18145
A68: 59 | B68: CUMMINSIND | C68: 760.6 | D68: 763.02 | E68: 752.13 | F68: 743.67 | G68: 732.78 | H68: 771.48 | I68: 782.37 | J68: 790.83 | K68: 773.9 | L68: 754.55 | M68: 4.22511
A69: 60 | B69: DLF | C69: 212.45 | D69: 213.10 | E69: 209.65 | F69: 206.85 | G69: 203.40 | H69: 215.90 | I69: 219.35 | J69: 222.15 | K69: 216.55 | L69: 210.3 | M69: 90.75098
A70: 61 | B70: DABUR | C70: 466.35 | D70: 470.80 | E70: 460.55 | F70: 454.75 | G70: 444.50 | H70: 476.60 | I70: 486.85 | J70: 492.65 | K70: 481.05 | L70: 465 | M70: 26.67557
A71: 62 | B71: DALMIABHA | C71: 2589.35 | D71: 2615.88 | E71: 2552.47 | F71: 2515.58 | G71: 2452.17 | H71: 2652.77 | I71: 2716.18 | J71: 2753.07 | K71: 2679.3 | L71: 2579 | M71: 0.76409
A72: 63 | B72: DHFL | C72: 679.25 | D72: 677.02 | E72: 662.53 | F72: 645.82 | G72: 631.33 | H72: 693.73 | I72: 708.22 | J72: 724.93 | K72: 691.5 | L72: 660.3 | M72: 67.1617
A73: 64 | B73: DISHTV | C73: 70.9 | D73: 71.23 | E73: 70.17 | F73: 69.43 | G73: 68.37 | H73: 71.97 | I73: 73.03 | J73: 73.77 | K73: 72.3 | L73: 70.5 | M73: 14.87597
A74: 65 | B74: DIVISLAB | C74: 1287.1 | D74: 1297.37 | E74: 1267.73 | F74: 1248.37 | G74: 1218.73 | H74: 1316.73 | I74: 1346.37 | J74: 1365.73 | K74: 1327 | L74: 1278 | M74: 8.7382
A75: 66 | B75: LALPATHLAB | C75: 1040.05 | D75: 1045.43 | E75: 1020.62 | F75: 1001.18 | G75: 976.37 | H75: 1064.87 | I75: 1089.68 | J75: 1109.12 | K75: 1070.25 | L75: 1026 | M75: 0.32757
A76: 67 | B76: DRREDDY | C76: 2593.4 | D76: 2573.47 | E76: 2514.93 | F76: 2436.47 | G76: 2377.93 | H76: 2651.93 | I76: 2710.47 | J76: 2788.93 | K76: 2632 | L76: 2495 | M76: 30.39924
A77: 68 | B77: EDELWEISS | C77: 278.65 | D77: 280.12 | E77: 276.53 | F77: 274.42 | G77: 270.83 | H77: 282.23 | I77: 285.82 | J77: 287.93 | K77: 283.7 | L77: 278 | M77: 15.6886
A78: 69 | B78: EICHERMOT | C78: 28885.85 | D78: 28658.28 | E78: 28317.57 | F78: 27749.28 | G78: 27408.57 | H78: 29226.57 | I78: 29567.28 | J78: 30135.57 | K78: 28999 | L78: 28090 | M78: 1.03052
A79: 70 | B79: EMAMILTD | C79: 578.65 | D79: 577.10 | E79: 566.20 | F79: 553.75 | G79: 542.85 | H79: 589.55 | I79: 600.45 | J79: 612.90 | K79: 588 | L79: 564.65 | M79: 6.20799
A80: 71 | B80: ENDURANCE | C80: 1543.25 | D80: 1530.92 | E80: 1512.38 | F80: 1481.52 | G80: 1462.98 | H80: 1561.78 | I80: 1580.32 | J80: 1611.18 | K80: 1549.45 | L80: 1500.05 | M80: 0.39882
A81: 72 | B81: ENGINERSIN | C81: 135.8 | D81: 134.17 | E81: 129.93 | F81: 124.07 | G81: 119.83 | H81: 140.03 | I81: 144.27 | J81: 150.13 | K81: 138.4 | L81: 128.3 | M81: 70.7568
A82: 73 | B82: EXIDEIND | C82: 282.95 | D82: 284.48 | E82: 280.47 | F82: 277.98 | G82: 273.97 | H82: 286.97 | I82: 290.98 | J82: 293.47 | K82: 288.5 | L82: 282 | M82: 8.02551
A83: 74 | B83: FEDERALBNK | C83: 80.75 | D83: 81.00 | E83: 80.15 | F83: 79.55 | G83: 78.70 | H83: 81.60 | I83: 82.45 | J83: 83.05 | K83: 81.85 | L83: 80.4 | M83: 71.72556
A84: 75 | B84: GAIL | C84: 368.3 | D84: 370.48 | E84: 365.17 | F84: 362.03 | G84: 356.72 | H84: 373.62 | I84: 378.93 | J84: 382.07 | K84: 375.8 | L84: 367.35 | M84: 22.63662
A85: 76 | B85: GMRINFRA | C85: 20.25 | D85: 20.60 | E85: 19.70 | F85: 19.15 | G85: 18.25 | H85: 21.15 | I85: 22.05 | J85: 22.60 | K85: 21.5 | L85: 20.05 | M85: 429.73913
A86: 77 | B86: GSKCONS | C86: 7611.1 | D86: 7671.03 | E86: 7492.07 | F86: 7373.03 | G86: 7194.07 | H86: 7790.07 | I86: 7969.03 | J86: 8088.07 | K86: 7850 | L86: 7552 | M86: 0.25129
A87: 78 | B87: GLAXO | C87: 3470.6 | D87: 3476.52 | E87: 3436.08 | F87: 3401.57 | G87: 3361.13 | H87: 3511.03 | I87: 3551.47 | J87: 3585.98 | K87: 3516.95 | L87: 3442 | M87: 0.50807
A88: 79 | B88: GLENMARK | C88: 663 | D88: 666.42 | E88: 656.58 | F88: 650.17 | G88: 640.33 | H88: 672.83 | I88: 682.67 | J88: 689.08 | K88: 676.25 | L88: 660 | M88: 9.4653
A89: 80 | B89: GODREJCP | C89: 1433.55 | D89: 1439.55 | E89: 1414.10 | F89: 1394.65 | G89: 1369.20 | H89: 1459.00 | I89: 1484.45 | J89: 1503.90 | K89: 1465 | L89: 1420.1 | M89: 7.11944
A90: 81 | B90: GODREJIND | C90: 629.95 | D90: 635.67 | E90: 620.28 | F90: 610.62 | G90: 595.23 | H90: 645.33 | I90: 660.72 | J90: 670.38 | K90: 651.05 | L90: 626 | M90: 4.62628
A91: 82 | B91: GRUH | C91: 331.55 | D91: 334.70 | E91: 326.80 | F91: 322.05 | G91: 314.15 | H91: 339.45 | I91: 347.35 | J91: 352.10 | K91: 342.6 | L91: 329.95 | M91: 3.68353
A92: 83 | B92: GPPL | C92: 109.1 | D92: 109.97 | E92: 107.93 | F92: 106.77 | G92: 104.73 | H92: 111.13 | I92: 113.17 | J92: 114.33 | K92: 112 | L92: 108.8 | M92: 0.97173
A93: 84 | B93: GSPL | C93: 191.8 | D93: 191.90 | E93: 189.00 | F93: 186.20 | G93: 183.30 | H93: 194.70 | I93: 197.60 | J93: 200.40 | K93: 194.8 | L93: 189.1 | M93: 9.17925
A94: 85 | B94: HCLTECH | C94: 1049.15 | D94: 1051.58 | E94: 1042.17 | F94: 1035.18 | G94: 1025.77 | H94: 1058.57 | I94: 1067.98 | J94: 1074.97 | K94: 1061 | L94: 1044.6 | M94: 22.27153
A95: 86 | B95: HDFCBANK | C95: 2075.05 | D95: 2072.50 | E95: 2066.05 | F95: 2057.05 | G95: 2050.60 | H95: 2081.50 | I95: 2087.95 | J95: 2096.95 | K95: 2078.95 | L95: 2063.5 | M95: 19.15402
A96: 87 | B96: HAVELLS | C96: 716.4 | D96: 717.45 | E96: 706.15 | F96: 695.90 | G96: 684.60 | H96: 727.70 | I96: 739.00 | J96: 749.25 | K96: 728.75 | L96: 707.2 | M96: 11.60743
A97: 88 | B97: HEROMOTOCO | C97: 3242.45 | D97: 3257.73 | E97: 3219.72 | F97: 3196.98 | G97: 3158.97 | H97: 3280.47 | I97: 3318.48 | J97: 3341.22 | K97: 3295.75 | L97: 3235 | M97: 2.92015
A98: 89 | B98: HEXAWARE | C98: 429.95 | D98: 434.67 | E98: 423.58 | F98: 417.22 | G98: 406.13 | H98: 441.03 | I98: 452.12 | J98: 458.48 | K98: 445.75 | L98: 428.3 | M98: 26.4651
A99: 90 | B99: HINDALCO | C99: 239.4 | D99: 239.62 | E99: 236.38 | F99: 233.37 | G99: 230.13 | H99: 242.63 | I99: 245.87 | J99: 248.88 | K99: 242.85 | L99: 236.6 | M99: 83.08169
A100: 91 | B100: HINDPETRO | C100: 257.5 | D100: 257.45 | E100: 254.15 | F100: 250.80 | G100: 247.50 | H100: 260.80 | I100: 264.10 | J100: 267.45 | K100: 260.75 | L100: 254.1 | M100: 38.99086
A101: 92 | B101: HINDUNILVR | C101: 1699.1 | D101: 1728.82 | E101: 1666.13 | F101: 1633.17 | G101: 1570.48 | H101: 1761.78 | I101: 1824.47 | J101: 1857.43 | K101: 1791.5 | L101: 1695.85 | M101: 17.44229
A102: 93 | B102: HINDZINC | C102: 298.7 | D102: 298.60 | E102: 295.20 | F102: 291.70 | G102: 288.30 | H102: 302.10 | I102: 305.50 | J102: 309.00 | K102: 302 | L102: 295.1 | M102: 7.23431
A103: 94 | B103: HUDCO | C103: 57.1 | D103: 56.87 | E103: 55.53 | F103: 53.97 | G103: 52.63 | H103: 58.43 | I103: 59.77 | J103: 61.33 | K103: 58.2 | L103: 55.3 | M103: 29.02141
A104: 95 | B104: HDFC | C104: 1944.8 | D104: 1940.97 | E104: 1931.93 | F104: 1919.07 | G104: 1910.03 | H104: 1953.83 | I104: 1962.87 | J104: 1975.73 | K104: 1950 | L104: 1928.1 | M104: 23.10201
A105: 96 | B105: ITC | C105: 313.2 | D105: 315.73 | E105: 308.52 | F105: 303.83 | G105: 296.62 | H105: 320.42 | I105: 327.63 | J105: 332.32 | K105: 322.95 | L105: 311.05 | M105: 91.12998
A106: 97 | B106: ICICIBANK | C106: 334.15 | D106: 336.90 | E106: 329.80 | F106: 325.45 | G106: 318.35 | H106: 341.25 | I106: 348.35 | J106: 352.70 | K106: 344 | L106: 332.55 | M106: 128.5945
A107: 98 | B107: ICICIPRULI | C107: 380.65 | D107: 380.63 | E107: 375.42 | F107: 370.18 | G107: 364.97 | H107: 385.87 | I107: 391.08 | J107: 396.32 | K107: 385.85 | L107: 375.4 | M107: 8.91998
A108: 99 | B108: IDBI | C108: 61.15 | D108: 61.82 | E108: 60.33 | F108: 59.52 | G108: 58.03 | H108: 62.63 | I108: 64.12 | J108: 64.93 | K108: 63.3 | L108: 61 | M108: 133.10652
A109: 100 | B109: IDFCBANK | C109: 47.9 | D109: 48.12 | E109: 47.38 | F109: 46.87 | G109: 46.13 | H109: 48.63 | I109: 49.37 | J109: 49.88 | K109: 48.85 | L109: 47.6 | M109: 64.84207
A110: 101 | B110: IDFC | C110: 52.2 | D110: 52.50 | E110: 51.70 | F110: 51.20 | G110: 50.40 | H110: 53.00 | I110: 53.80 | J110: 54.30 | K110: 53.3 | L110: 52 | M110: 19.43501
A111: 102 | B111: IRB | C111: 188.85 | D111: 189.70 | E111: 186.95 | F111: 185.05 | G111: 182.30 | H111: 191.60 | I111: 194.35 | J111: 196.25 | K111: 192.45 | L111: 187.8 | M111: 22.58838
A112: 103 | B112: IDEA | C112: 51.05 | D112: 51.02 | E112: 49.73 | F112: 48.42 | G112: 47.13 | H112: 52.33 | I112: 53.62 | J112: 54.93 | K112: 52.3 | L112: 49.7 | M112: 419.88542
A113: 104 | B113: IBULHSGFIN | C113: 1260.05 | D113: 1263.80 | E113: 1249.15 | F113: 1238.25 | G113: 1223.60 | H113: 1274.70 | I113: 1289.35 | J113: 1300.25 | K113: 1278.45 | L113: 1252.9 | M113: 8.73842
A114: 105 | B114: INDIANB | C114: 328.75 | D114: 331.65 | E114: 324.15 | F114: 319.55 | G114: 312.05 | H114: 336.25 | I114: 343.75 | J114: 348.35 | K114: 339.15 | L114: 327.05 | M114: 12.02419
A115: 106 | B115: INDHOTEL | C115: 136.35 | D115: 136.43 | E115: 133.37 | F115: 130.38 | G115: 127.32 | H115: 139.42 | I115: 142.48 | J115: 145.47 | K115: 139.5 | L115: 133.45 | M115: 5.19538
A116: 107 | B116: IOC | C116: 155 | D116: 155.53 | E116: 154.07 | F116: 153.13 | G116: 151.67 | H116: 156.47 | I116: 157.93 | J116: 158.87 | K116: 157 | L116: 154.6 | M116: 41.67775
A117: 108 | B117: IGL | C117: 290.3 | D117: 292.35 | E117: 286.80 | F117: 283.30 | G117: 277.75 | H117: 295.85 | I117: 301.40 | J117: 304.90 | K117: 297.9 | L117: 288.85 | M117: 20.21457
A118: 109 | B118: INDUSINDBK | C118: 1897 | D118: 1900.18 | E118: 1881.52 | F118: 1866.03 | G118: 1847.37 | H118: 1915.67 | I118: 1934.33 | J118: 1949.82 | K118: 1918.85 | L118: 1884.7 | M118: 9.37981
A119: 110 | B119: NAUKRI | C119: 1661 | D119: 1663.67 | E119: 1635.33 | F119: 1609.67 | G119: 1581.33 | H119: 1689.33 | I119: 1717.67 | J119: 1743.33 | K119: 1692 | L119: 1638 | M119: 1.53618
A120: 111 | B120: INFY | C120: 1434.25 | D120: 1444.05 | E120: 1420.20 | F120: 1406.15 | G120: 1382.30 | H120: 1458.10 | I120: 1481.95 | J120: 1496.00 | K120: 1467.9 | L120: 1430 | M120: 54.88164
A121: 112 | B121: INDIGO | C121: 948.95 | D121: 946.35 | E121: 936.60 | F121: 924.25 | G121: 914.50 | H121: 958.70 | I121: 968.45 | J121: 980.80 | K121: 956.1 | L121: 934 | M121: 9.74928
A122: 113 | B122: IPCALAB | C122: 768.25 | D122: 767.85 | E122: 760.60 | F122: 752.95 | G122: 745.70 | H122: 775.50 | I122: 782.75 | J122: 790.40 | K122: 775.1 | L122: 760.2 | M122: 0.96809
A123: 114 | B123: JSWENERGY | C123: 71.5 | D123: 72.42 | E123: 70.33 | F123: 69.17 | G123: 67.08 | H123: 73.58 | I123: 75.67 | J123: 76.83 | K123: 74.5 | L123: 71.25 | M123: 14.81902
A124: 115 | B124: JSWSTEEL | C124: 397 | D124: 397.53 | E124: 392.57 | F124: 388.13 | G124: 383.17 | H124: 401.97 | I124: 406.93 | J124: 411.37 | K124: 402.5 | L124: 393.1 | M124: 56.15281
A125: 116 | B125: JINDALSTEL | C125: 220.55 | D125: 221.45 | E125: 218.40 | F125: 216.25 | G125: 213.20 | H125: 223.60 | I125: 226.65 | J125: 228.80 | K125: 224.5 | L125: 219.3 | M125: 73.1076
A126: 117 | B126: JUBLFOOD | C126: 1526.25 | D126: 1534.35 | E126: 1510.70 | F126: 1495.15 | G126: 1471.50 | H126: 1549.90 | I126: 1573.55 | J126: 1589.10 | K126: 1558 | L126: 1518.8 | M126: 4.30144
A127: 118 | B127: JUBILANT | C127: 731.45 | D127: 733.17 | E127: 723.33 | F127: 715.22 | G127: 705.38 | H127: 741.28 | I127: 751.12 | J127: 759.23 | K127: 743 | L127: 725.05 | M127: 2.8059
A128: 119 | B128: KARURVYSYA | C128: 93.45 | D128: 93.68 | E128: 92.97 | F128: 92.48 | G128: 91.77 | H128: 94.17 | I128: 94.88 | J128: 95.37 | K128: 94.4 | L128: 93.2 | M128: 4.84264
A129: 120 | B129: KOTAKBANK | C129: 1269.1 | D129: 1276.37 | E129: 1257.73 | F129: 1246.37 | G129: 1227.73 | H129: 1287.73 | I129: 1306.37 | J129: 1317.73 | K129: 1295 | L129: 1265 | M129: 20.76747
A130: 121 | B130: L&TFH | C130: 180.15 | D130: 181.30 | E130: 178.40 | F130: 176.65 | G130: 173.75 | H130: 183.05 | I130: 185.95 | J130: 187.70 | K130: 184.2 | L130: 179.55 | M130: 35.71757
A131: 122 | B131: LICHSGFIN | C131: 519.95 | D131: 521.23 | E131: 517.22 | F131: 514.48 | G131: 510.47 | H131: 523.97 | I131: 527.98 | J131: 530.72 | K131: 525.25 | L131: 518.5 | M131: 13.93062
A132: 123 | B132: LT | C132: 1363 | D132: 1371.03 | E132: 1352.07 | F132: 1341.13 | G132: 1322.17 | H132: 1381.97 | I132: 1400.93 | J132: 1411.87 | K132: 1390 | L132: 1360.1 | M132: 23.47852
A133: 124 | B133: LUPIN | C133: 936.1 | D133: 941.85 | E133: 925.80 | F133: 915.50 | G133: 899.45 | H133: 952.15 | I133: 968.20 | J133: 978.50 | K133: 957.9 | L133: 931.55 | M133: 49.11304
A134: 125 | B134: MRF | C134: 73038.9 | D134: 73402.95 | E134: 72635.95 | F134: 72233.00 | G134: 71466.00 | H134: 73805.90 | I134: 74572.90 | J134: 74975.85 | K134: 74169.95 | L134: 73000 | M134: 0.03917
A135: 126 | B135: MGL | C135: 871.5 | D135: 871.63 | E135: 862.27 | F135: 853.03 | G135: 843.67 | H135: 880.87 | I135: 890.23 | J135: 899.47 | K135: 881 | L135: 862.4 | M135: 13.9725
A136: 127 | B136: M&MFIN | C136: 485.2 | D136: 487.75 | E136: 481.50 | F136: 477.80 | G136: 471.55 | H136: 491.45 | I136: 497.70 | J136: 501.40 | K136: 494 | L136: 484.05 | M136: 7.55198
A137: 128 | B137: M&M | C137: 947.8 | D137: 954.92 | E137: 934.88 | F137: 921.97 | G137: 901.93 | H137: 967.83 | I137: 987.87 | J137: 1000.78 | K137: 974.95 | L137: 942 | M137: 21.8945
A138: 129 | B138: MANAPPURAM | C138: 98.85 | D138: 99.45 | E138: 97.90 | F138: 96.95 | G138: 95.40 | H138: 100.40 | I138: 101.95 | J138: 102.90 | K138: 101 | L138: 98.5 | M138: 17.0888
A139: 130 | B139: MRPL | C139: 79.75 | D139: 80.22 | E139: 78.78 | F139: 77.82 | G139: 76.38 | H139: 81.18 | I139: 82.62 | J139: 83.58 | K139: 81.65 | L139: 79.25 | M139: 11.19402
A140: 131 | B140: MARICO | C140: 361 | D140: 365.07 | E140: 355.43 | F140: 349.87 | G140: 340.23 | H140: 370.63 | I140: 380.27 | J140: 385.83 | K140: 374.7 | L140: 359.5 | M140: 19.96863
A141: 132 | B141: MARUTI | C141: 8902.15 | D141: 8965.37 | E141: 8811.78 | F141: 8721.42 | G141: 8567.83 | H141: 9055.73 | I141: 9209.32 | J141: 9299.68 | K141: 9118.95 | L141: 8875 | M141: 9.92161
A142: 133 | B142: MFSL | C142: 448.2 | D142: 450.90 | E142: 443.45 | F142: 438.70 | G142: 431.25 | H142: 455.65 | I142: 463.10 | J142: 467.85 | K142: 458.35 | L142: 446.15 | M142: 2.66763
A143: 134 | B143: MINDTREE | C143: 1100.55 | D143: 1117.52 | E143: 1078.33 | F143: 1056.12 | G143: 1016.93 | H143: 1139.73 | I143: 1178.92 | J143: 1201.13 | K143: 1156.7 | L143: 1095.3 | M143: 44.0057
A144: 135 | B144: MOTHERSUMI | C144: 304.65 | D144: 305.42 | E144: 302.48 | F144: 300.32 | G144: 297.38 | H144: 307.58 | I144: 310.52 | J144: 312.68 | K144: 308.35 | L144: 303.25 | M144: 12.8719
A145: 136 | B145: MPHASIS | C145: 1247.95 | D145: 1254.23 | E145: 1231.92 | F145: 1215.88 | G145: 1193.57 | H145: 1270.27 | I145: 1292.58 | J145: 1308.62 | K145: 1276.55 | L145: 1238.2 | M145: 3.24353
A146: 137 | B146: MUTHOOTFIN | C146: 404.3 | D146: 407.07 | E146: 399.33 | F146: 394.37 | G146: 386.63 | H146: 412.03 | I146: 419.77 | J146: 424.73 | K146: 414.8 | L146: 402.1 | M146: 6.01928
A147: 138 | B147: NATCOPHARM | C147: 791.3 | D147: 795.37 | E147: 780.93 | F147: 770.57 | G147: 756.13 | H147: 805.73 | I147: 820.17 | J147: 830.53 | K147: 809.8 | L147: 785 | M147: 4.93306
A148: 139 | B148: NBCC | C148: 72.9 | D148: 73.07 | E148: 71.73 | F148: 70.57 | G148: 69.23 | H148: 74.23 | I148: 75.57 | J148: 76.73 | K148: 74.4 | L148: 71.9 | M148: 37.43712
A149: 140 | B149: NHPC | C149: 25.5 | D149: 25.50 | E149: 25.20 | F149: 24.90 | G149: 24.60 | H149: 25.80 | I149: 26.10 | J149: 26.40 | K149: 25.8 | L149: 25.2 | M149: 19.5751
A150: 141 | B150: NMDC | C150: 113.05 | D150: 113.03 | E150: 110.57 | F150: 108.08 | G150: 105.62 | H150: 115.52 | I150: 117.98 | J150: 120.47 | K150: 115.5 | L150: 110.55 | M150: 56.21928
A151: 142 | B151: NTPC | C151: 169.5 | D151: 169.90 | E151: 167.00 | F151: 164.50 | G151: 161.60 | H151: 172.40 | I151: 175.30 | J151: 177.80 | K151: 172.8 | L151: 167.4 | M151: 38.27473
A152: 143 | B152: NATIONALUM | C152: 75.2 | D152: 75.47 | E152: 74.33 | F152: 73.47 | G152: 72.33 | H152: 76.33 | I152: 77.47 | J152: 78.33 | K152: 76.6 | L152: 74.6 | M152: 64.93225
A153: 144 | B153: OBEROIRLTY | C153: 455.65 | D153: 450.25 | E153: 437.50 | F153: 419.35 | G153: 406.60 | H153: 468.40 | I153: 481.15 | J153: 499.30 | K153: 463 | L153: 432.1 | M153: 6.05164
A154: 145 | B154: ONGC | C154: 177.3 | D154: 178.23 | E154: 175.72 | F154: 174.13 | G154: 171.62 | H154: 179.82 | I154: 182.33 | J154: 183.92 | K154: 180.75 | L154: 176.65 | M154: 31.6848
A155: 146 | B155: OIL | C155: 211.85 | D155: 212.85 | E155: 210.20 | F155: 208.55 | G155: 205.90 | H155: 214.50 | I155: 217.15 | J155: 218.80 | K155: 215.5 | L155: 211.2 | M155: 4.20976
A156: 147 | B156: OFSS | C156: 4113.65 | D156: 4131.22 | E156: 4062.43 | F156: 4011.22 | G156: 3942.43 | H156: 4182.43 | I156: 4251.22 | J156: 4302.43 | K156: 4200 | L156: 4080 | M156: 0.97357
A157: 148 | B157: PCJEWELLER | C157: 90.75 | D157: 89.60 | E157: 84.55 | F157: 78.35 | G157: 73.30 | H157: 95.80 | I157: 100.85 | J157: 107.05 | K157: 94.65 | L157: 83.4 | M157: 347.8987
A158: 149 | B158: PIIND | C158: 769.2 | D158: 770.52 | E158: 766.03 | F158: 762.87 | G158: 758.38 | H158: 773.68 | I158: 778.17 | J158: 781.33 | K158: 775 | L158: 767.35 | M158: 2.31274
A159: 150 | B159: PNBHOUSING | C159: 1348.05 | D159: 1355.22 | E159: 1332.93 | F159: 1317.82 | G159: 1295.53 | H159: 1370.33 | I159: 1392.62 | J159: 1407.73 | K159: 1377.5 | L159: 1340.1 | M159: 0.88244
A160: 151 | B160: PAGEIND | C160: 34021.7 | D160: 34373.65 | E160: 33498.35 | F160: 32975.00 | G160: 32099.70 | H160: 34897.00 | I160: 35772.30 | J160: 36295.65 | K160: 35248.95 | L160: 33850.3 | M160: 0.28265
A161: 152 | B161: PETRONET | C161: 241.95 | D161: 244.13 | E161: 238.47 | F161: 234.98 | G161: 229.32 | H161: 247.62 | I161: 253.28 | J161: 256.77 | K161: 249.8 | L161: 240.65 | M161: 20.40957
A162: 153 | B162: PIDILITIND | C162: 1165.7 | D162: 1168.68 | E162: 1158.57 | F162: 1151.43 | G162: 1141.32 | H162: 1175.82 | I162: 1185.93 | J162: 1193.07 | K162: 1178.8 | L162: 1161.55 | M162: 4.03355
A163: 154 | B163: PEL | C163: 3078.8 | D163: 3128.72 | E163: 3002.28 | F163: 2925.77 | G163: 2799.33 | H163: 3205.23 | I163: 3331.67 | J163: 3408.18 | K163: 3255.15 | L163: 3052.2 | M163: 4.74058
A164: 155 | B164: PFC | C164: 84.75 | D164: 85.28 | E164: 83.67 | F164: 82.58 | G164: 80.97 | H164: 86.37 | I164: 87.98 | J164: 89.07 | K164: 86.9 | L164: 84.2 | M164: 59.0783
A165: 156 | B165: POWERGRID | C165: 194.5 | D165: 197.83 | E165: 190.67 | F165: 186.83 | G165: 179.67 | H165: 201.67 | I165: 208.83 | J165: 212.67 | K165: 205 | L165: 194 | M165: 50.62367
A166: 157 | B166: PRESTIGE | C166: 235.8 | D166: 236.82 | E166: 233.68 | F166: 231.57 | G166: 228.43 | H166: 238.93 | I166: 242.07 | J166: 244.18 | K166: 239.95 | L166: 234.7 | M166: 0.22319
A167: 158 | B167: PGHH | C167: 10089.65 | D167: 10165.95 | E167: 9936.90 | F167: 9784.15 | G167: 9555.10 | H167: 10318.70 | I167: 10547.75 | J167: 10700.50 | K167: 10395 | L167: 10013.2 | M167: 0.05799
A168: 159 | B168: PNB | C168: 86.35 | D168: 87.22 | E168: 85.13 | F168: 83.92 | G168: 81.83 | H168: 88.43 | I168: 90.52 | J168: 91.73 | K168: 89.3 | L168: 86 | M168: 306.10408
A169: 160 | B169: RBLBANK | C169: 623.9 | D169: 629.80 | E169: 616.10 | F169: 608.30 | G169: 594.60 | H169: 637.60 | I169: 651.30 | J169: 659.10 | K169: 643.5 | L169: 622 | M169: 15.32438
A170: 161 | B170: RAJESHEXPO | C170: 662.7 | D170: 666.90 | E170: 656.80 | F170: 650.90 | G170: 640.80 | H170: 672.80 | I170: 682.90 | J170: 688.80 | K170: 677 | L170: 661 | M170: 6.98839
A171: 162 | B171: RELCAPITAL | C171: 474.5 | D171: 477.15 | E171: 466.60 | F171: 458.70 | G171: 448.15 | H171: 485.05 | I171: 495.60 | J171: 503.50 | K171: 487.7 | L171: 469.25 | M171: 55.00472
A172: 163 | B172: RCOM | C172: 18.2 | D172: 18.33 | E172: 17.77 | F172: 17.33 | G172: 16.77 | H172: 18.77 | I172: 19.33 | J172: 19.77 | K172: 18.9 | L172: 17.9 | M172: 862.33625
A173: 164 | B173: RELIANCE | C173: 1229.15 | D173: 1237.70 | E173: 1217.50 | F173: 1205.85 | G173: 1185.65 | H173: 1249.35 | I173: 1269.55 | J173: 1281.20 | K173: 1257.9 | L173: 1226.05 | M173: 122.00022
A174: 165 | B174: RELINFRA | C174: 472.95 | D174: 475.92 | E174: 462.28 | F174: 451.62 | G174: 437.98 | H174: 486.58 | I174: 500.22 | J174: 510.88 | K174: 489.55 | L174: 465.25 | M174: 60.17035
A175: 166 | B175: RPOWER | C175: 37.85 | D175: 38.13 | E175: 36.97 | F175: 36.08 | G175: 34.92 | H175: 39.02 | I175: 40.18 | J175: 41.07 | K175: 39.3 | L175: 37.25 | M175: 157.43192
A176: 167 | B176: RECLTD | C176: 119.35 | D176: 120.28 | E176: 117.82 | F176: 116.28 | G176: 113.82 | H176: 121.82 | I176: 124.28 | J176: 125.82 | K176: 122.75 | L176: 118.75 | M176: 45.60959
A177: 168 | B177: SRF | C177: 2002.9 | D177: 2019.35 | E177: 1979.70 | F177: 1956.50 | G177: 1916.85 | H177: 2042.55 | I177: 2082.20 | J177: 2105.40 | K177: 2059 | L177: 1996.15 | M177: 1.86991
A178: 169 | B178: SHREECEM | C178: 19046.6 | D178: 19088.07 | E178: 18886.13 | F178: 18725.67 | G178: 18523.73 | H178: 19248.53 | I178: 19450.47 | J178: 19610.93 | K178: 19290 | L178: 18927.6 | M178: 0.20906
A179: 170 | B179: SRTRANSFIN | C179: 1313.65 | D179: 1329.07 | E179: 1290.58 | F179: 1267.52 | G179: 1229.03 | H179: 1352.13 | I179: 1390.62 | J179: 1413.68 | K179: 1367.55 | L179: 1306 | M179: 13.97305
A180: 171 | B180: SIEMENS | C180: 1009.35 | D180: 1013.77 | E180: 999.58 | F180: 989.82 | G180: 975.63 | H180: 1023.53 | I180: 1037.72 | J180: 1047.48 | K180: 1027.95 | L180: 1004 | M180: 1.23309
A181: 172 | B181: SBIN | C181: 306.35 | D181: 307.88 | E181: 303.27 | F181: 300.18 | G181: 295.57 | H181: 310.97 | I181: 315.58 | J181: 318.67 | K181: 312.5 | L181: 304.8 | M181: 147.08076
A182: 173 | B182: SAIL | C182: 79.95 | D182: 80.13 | E182: 79.02 | F182: 78.08 | G182: 76.97 | H182: 81.07 | I182: 82.18 | J182: 83.12 | K182: 81.25 | L182: 79.2 | M182: 93.41685
A183: 174 | B183: SPARC | C183: 396.1 | D183: 399.83 | E183: 390.02 | F183: 383.93 | G183: 374.12 | H183: 405.92 | I183: 415.73 | J183: 421.82 | K183: 409.65 | L183: 393.75 | M183: 6.40008
A184: 175 | B184: SUNPHARMA | C184: 656.2 | D184: 660.32 | E184: 647.13 | F184: 638.07 | G184: 624.88 | H184: 669.38 | I184: 682.57 | J184: 691.63 | K184: 673.5 | L184: 651.25 | M184: 121.85947
A185: 176 | B185: SUNTV | C185: 778.15 | D185: 779.03 | E185: 766.17 | F185: 754.18 | G185: 741.32 | H185: 791.02 | I185: 803.88 | J185: 815.87 | K185: 791.9 | L185: 767.05 | M185: 13.71446
A186: 177 | B186: SUZLON | C186: 7.15 | D186: 7.17 | E186: 7.08 | F186: 7.02 | G186: 6.93 | H186: 7.23 | I186: 7.32 | J186: 7.38 | K186: 7.25 | L186: 7.1 | M186: 156.18846
A187: 178 | B187: SYNDIBANK | C187: 41.15 | D187: 41.10 | E187: 40.00 | F187: 38.85 | G187: 37.75 | H187: 42.25 | I187: 43.35 | J187: 44.50 | K187: 42.2 | L187: 39.95 | M187: 60.06478
A188: 179 | B188: SYNGENE | C188: 599.55 | D188: 605.68 | E188: 586.37 | F188: 573.18 | G188: 553.87 | H188: 618.87 | I188: 638.18 | J188: 651.37 | K188: 625 | L188: 592.5 | M188: 4.6483
A189: 180 | B189: TV18BRDCST | C189: 46.65 | D189: 47.05 | E189: 45.60 | F189: 44.55 | G189: 43.10 | H189: 48.10 | I189: 49.55 | J189: 50.60 | K189: 48.5 | L189: 46 | M189: 106.4765
A190: 181 | B190: TVSMOTOR | C190: 565.5 | D190: 570.00 | E190: 559.00 | F190: 552.50 | G190: 541.50 | H190: 576.50 | I190: 587.50 | J190: 594.00 | K190: 581 | L190: 563.5 | M190: 11.83487
A191: 182 | B191: TATACHEM | C191: 767.95 | D191: 768.65 | E191: 755.30 | F191: 742.65 | G191: 729.30 | H191: 781.30 | I191: 794.65 | J191: 807.30 | K191: 782 | L191: 756 | M191: 10.81754
A192: 183 | B192: TATACOMM | C192: 531.7 | D192: 535.15 | E192: 524.60 | F192: 517.50 | G192: 506.95 | H192: 542.25 | I192: 552.80 | J192: 559.90 | K192: 545.7 | L192: 528.05 | M192: 2.37801
A193: 184 | B193: TCS | C193: 2052.9 | D193: 2063.77 | E193: 2037.53 | F193: 2022.17 | G193: 1995.93 | H193: 2079.13 | I193: 2105.37 | J193: 2120.73 | K193: 2090 | L193: 2048.4 | M193: 14.39711
A194: 185 | B194: TATAGLOBAL | C194: 236.7 | D194: 238.43 | E194: 233.32 | F194: 229.93 | G194: 224.82 | H194: 241.82 | I194: 246.93 | J194: 250.32 | K194: 243.55 | L194: 235.05 | M194: 52.42852
A195: 186 | B195: TATAMTRDVR | C195: 144.15 | D195: 143.80 | E195: 141.85 | F195: 139.55 | G195: 137.60 | H195: 146.10 | I195: 148.05 | J195: 150.35 | K195: 145.75 | L195: 141.5 | M195: 34.94093
A196: 187 | B196: TATAMOTORS | C196: 266.6 | D196: 268.28 | E196: 263.57 | F196: 260.53 | G196: 255.82 | H196: 271.32 | I196: 276.03 | J196: 279.07 | K196: 273 | L196: 265.25 | M196: 145.97832
A197: 188 | B197: TATAPOWER | C197: 78.2 | D197: 77.82 | E197: 76.63 | F197: 75.07 | G197: 73.88 | H197: 79.38 | I197: 80.57 | J197: 82.13 | K197: 79 | L197: 76.25 | M197: 93.67421
A198: 189 | B198: TATASTEEL | C198: 600.75 | D198: 602.90 | E198: 595.85 | F198: 590.95 | G198: 583.90 | H198: 607.80 | I198: 614.85 | J198: 619.75 | K198: 609.95 | L198: 598 | M198: 54.79133
A199: 190 | B199: TECHM | C199: 745.65 | D199: 754.55 | E199: 732.60 | F199: 719.55 | G199: 697.60 | H199: 767.60 | I199: 789.55 | J199: 802.60 | K199: 776.5 | L199: 741.5 | M199: 36.1099
A200: 191 | B200: RAMCOCEM | C200: 679.55 | D200: 682.28 | E200: 672.77 | F200: 665.98 | G200: 656.47 | H200: 689.07 | I200: 698.58 | J200: 705.37 | K200: 691.8 | L200: 675.5 | M200: 1.31963
A201: 192 | B201: TITAN | C201: 912.75 | D201: 908.42 | E201: 895.48 | F201: 878.22 | G201: 865.28 | H201: 925.68 | I201: 938.62 | J201: 955.88 | K201: 921.35 | L201: 891.15 | M201: 49.72521
A202: 193 | B202: TORNTPHARM | C202: 1824.9 | D202: 1830.07 | E202: 1802.93 | F202: 1780.97 | G202: 1753.83 | H202: 1852.03 | I202: 1879.17 | J202: 1901.13 | K202: 1857.2 | L202: 1808.1 | M202: 3.00031
A203: 194 | B203: TORNTPOWER | C203: 258.1 | D203: 261.45 | E203: 253.20 | F203: 248.30 | G203: 240.05 | H203: 266.35 | I203: 274.60 | J203: 279.50 | K203: 269.7 | L203: 256.55 | M203: 12.10731
A204: 195 | B204: UPL | C204: 720.65 | D204: 718.88 | E204: 711.77 | F204: 702.88 | G204: 695.77 | H204: 727.77 | I204: 734.88 | J204: 743.77 | K204: 726 | L204: 710 | M204: 22.29639
A205: 196 | B205: ULTRACEMCO | C205: 4373.55 | D205: 4399.32 | E205: 4328.63 | F205: 4283.72 | G205: 4213.03 | H205: 4444.23 | I205: 4514.92 | J205: 4559.83 | K205: 4470 | L205: 4354.4 | M205: 1.50383
... 30 more rows

Sheet MidCap Intra
L5: Back To Main Page
A6: FOR INTRA DAY TRADING | K6: =Main!B10 -> 2018-09-04
A9: Sr.no | B9: Scrip | C9: CLOSE RATE | D9: Pivot Point | E9: Supports | H9: Resistances
C10: Point | E10: S1 | F10: S2 | G10: S3 | H10: R1 | I10: R2 | J10: R3 | K10: HIGH | L10: LOW | M10: Total Trade Quanity in Lakhs
A11: 1 | B11: 3MINDIA | C11: 25981.7 | D11: 26150.52 | E11: 25639.03 | F11: 25296.37 | G11: 24784.88 | H11: 26493.18 | I11: 27004.67 | J11: 27347.33 | K11: 26662 | L11: 25807.85 | M11: 0.096
A12: 2 | B12: 8KMILES | C12: 319.5 | D12: 325.20 | E12: 311.40 | F12: 303.30 | G12: 289.50 | H12: 333.30 | I12: 347.10 | J12: 355.20 | K12: 339 | L12: 317.1 | M12: 0.58376
A13: 3 | B13: AARTIIND | C13: 1354.75 | D13: 1363.57 | E13: 1342.18 | F13: 1329.62 | G13: 1308.23 | H13: 1376.13 | I13: 1397.52 | J13: 1410.08 | K13: 1384.95 | L13: 1351 | M13: 0.15649
A14: 4 | B14: ABAN | C14: 114.4 | D14: 115.25 | E14: 112.70 | F14: 111.00 | G14: 108.45 | H14: 116.95 | I14: 119.50 | J14: 121.20 | K14: 117.8 | L14: 113.55 | M14: 4.13142
A15: 5 | B15: ABB | C15: 1305.55 | D15: 1312.48 | E15: 1295.07 | F15: 1284.58 | G15: 1267.17 | H15: 1322.97 | I15: 1340.38 | J15: 1350.87 | K15: 1329.9 | L15: 1302 | M15: 0.81094
A16: 6 | B16: ABCAPITAL | C16: 141.05 | D16: 141.60 | E16: 139.65 | F16: 138.25 | G16: 136.30 | H16: 143.00 | I16: 144.95 | J16: 146.35 | K16: 143.55 | L16: 140.2 | M16: 11.12249
A17: 7 | B17: ABFRL | C17: 202.05 | D17: 202.63 | E17: 199.02 | F17: 195.98 | G17: 192.37 | H17: 205.67 | I17: 209.28 | J17: 212.32 | K17: 206.25 | L17: 199.6 | M17: 14.19629
A18: 8 | B18: ACC | C18: 1662.1 | D18: 1657.33 | E18: 1635.77 | F18: 1609.43 | G18: 1587.87 | H18: 1683.67 | I18: 1705.23 | J18: 1731.57 | K18: 1678.9 | L18: 1631 | M18: 7.87758
A19: 9 | B19: ADANIPORTS | C19: 384.45 | D19: 385.28 | E19: 377.62 | F19: 370.78 | G19: 363.12 | H19: 392.12 | I19: 399.78 | J19: 406.62 | K19: 392.95 | L19: 378.45 | M19: 27.44322
A20: 10 | B20: ADANIPOWER | C20: 33.7 | D20: 34.33 | E20: 32.57 | F20: 31.43 | G20: 29.67 | H20: 35.47 | I20: 37.23 | J20: 38.37 | K20: 36.1 | L20: 33.2 | M20: 242.81514
A21: 11 | B21: ADANITRANS | C21: 217.95 | D21: 222.20 | E21: 213.25 | F21: 208.55 | G21: 199.60 | H21: 226.90 | I21: 235.85 | J21: 240.55 | K21: 231.15 | L21: 217.5 | M21: 10.05765
A22: 12 | B22: ADVENZYMES | C22: 210.05 | D22: 211.60 | E22: 207.95 | F22: 205.85 | G22: 202.20 | H22: 213.70 | I22: 217.35 | J22: 219.45 | K22: 215.25 | L22: 209.5 | M22: 1.0732
A23: 13 | B23: AEGISCHEM | C23: 215.65 | D23: 217.63 | E23: 211.82 | F23: 207.98 | G23: 202.17 | H23: 221.47 | I23: 227.28 | J23: 231.12 | K23: 223.45 | L23: 213.8 | M23: 2.0718
A24: 14 | B24: AIAENG | C24: 1714.9 | D24: 1733.63 | E24: 1687.27 | F24: 1659.63 | G24: 1613.27 | H24: 1761.27 | I24: 1807.63 | J24: 1835.27 | K24: 1780 | L24: 1706 | M24: 0.12507
A25: 15 | B25: AJANTPHARM | C25: 1249.2 | D25: 1259.17 | E25: 1228.53 | F25: 1207.87 | G25: 1177.23 | H25: 1279.83 | I25: 1310.47 | J25: 1331.13 | K25: 1289.8 | L25: 1238.5 | M25: 2.95728
A26: 16 | B26: AKZOINDIA | C26: 1728.3 | D26: 1734.48 | E26: 1710.07 | F26: 1691.83 | G26: 1667.42 | H26: 1752.72 | I26: 1777.13 | J26: 1795.37 | K26: 1758.9 | L26: 1716.25 | M26: 0.06265
A27: 17 | B27: ALBK | C27: 42.8 | D27: 43.23 | E27: 41.87 | F27: 40.93 | G27: 39.57 | H27: 44.17 | I27: 45.53 | J27: 46.47 | K27: 44.6 | L27: 42.3 | M27: 72.93552
A28: 18 | B28: ALKEM | C28: 2199.2 | D28: 2179.63 | E28: 2134.57 | F28: 2069.93 | G28: 2024.87 | H28: 2244.27 | I28: 2289.33 | J28: 2353.97 | K28: 2224.7 | L28: 2115 | M28: 3.75468
A29: 19 | B29: ALLCARGO | C29: 119 | D29: 119.85 | E29: 117.20 | F29: 115.40 | G29: 112.75 | H29: 121.65 | I29: 124.30 | J29: 126.10 | K29: 122.5 | L29: 118.05 | M29: 1.70267
A30: 20 | B30: AMARAJABAT | C30: 845.5 | D30: 849.87 | E30: 837.13 | F30: 828.77 | G30: 816.03 | H30: 858.23 | I30: 870.97 | J30: 879.33 | K30: 862.6 | L30: 841.5 | M30: 2.78207
A31: 21 | B31: AMBUJACEM | C31: 240 | D31: 241.25 | E31: 237.10 | F31: 234.20 | G31: 230.05 | H31: 244.15 | I31: 248.30 | J31: 251.20 | K31: 245.4 | L31: 238.35 | M31: 23.93818
A32: 22 | B32: ANDHRABANK | C32: 34.5 | D32: 34.60 | E32: 33.50 | F32: 32.50 | G32: 31.40 | H32: 35.60 | I32: 36.70 | J32: 37.70 | K32: 35.7 | L32: 33.6 | M32: 62.50572
A33: 23 | B33: APLAPOLLO | C33: 1612.75 | D33: 1614.12 | E33: 1590.23 | F33: 1567.72 | G33: 1543.83 | H33: 1636.63 | I33: 1660.52 | J33: 1683.03 | K33: 1638 | L33: 1591.6 | M33: 0.23067
A34: 24 | B34: APLLTD | C34: 605.35 | D34: 604.67 | E34: 600.33 | F34: 595.32 | G34: 590.98 | H34: 609.68 | I34: 614.02 | J34: 619.03 | K34: 609 | L34: 599.65 | M34: 0.63992
A35: 25 | B35: APOLLOHOSP | C35: 1173.35 | D35: 1179.43 | E35: 1157.57 | F35: 1141.78 | G35: 1119.92 | H35: 1195.22 | I35: 1217.08 | J35: 1232.87 | K35: 1201.3 | L35: 1163.65 | M35: 9.69364
A36: 26 | B36: APOLLOTYRE | C36: 250.3 | D36: 251.20 | E36: 247.90 | F36: 245.50 | G36: 242.20 | H36: 253.60 | I36: 256.90 | J36: 259.30 | K36: 254.5 | L36: 248.8 | M36: 16.74997
A37: 27 | B37: ARVIND | C37: 399.7 | D37: 402.40 | E37: 395.40 | F37: 391.10 | G37: 384.10 | H37: 406.70 | I37: 413.70 | J37: 418.00 | K37: 409.4 | L37: 398.1 | M37: 26.85304
A38: 28 | B38: ASAHIINDIA | C38: 344.15 | D38: 350.40 | E38: 334.80 | F38: 325.45 | G38: 309.85 | H38: 359.75 | I38: 375.35 | J38: 384.70 | K38: 366 | L38: 341.05 | M38: 1.65855
A39: 29 | B39: ASHOKA | C39: 139.35 | D39: 137.58 | E39: 134.77 | F39: 130.18 | G39: 127.37 | H39: 142.17 | I39: 144.98 | J39: 149.57 | K39: 140.4 | L39: 133 | M39: 2.92661
A40: 30 | B40: ASHOKLEY | C40: 133.45 | D40: 133.58 | E40: 132.17 | F40: 130.88 | G40: 129.47 | H40: 134.87 | I40: 136.28 | J40: 137.57 | K40: 135 | L40: 132.3 | M40: 327.52122
A41: 31 | B41: ASIANPAINT | C41: 1361.6 | D41: 1368.03 | E41: 1348.57 | F41: 1335.53 | G41: 1316.07 | H41: 1381.07 | I41: 1400.53 | J41: 1413.57 | K41: 1387.5 | L41: 1355 | M41: 8.17733
A42: 32 | B42: ASTRAL | C42: 1132.8 | D42: 1129.63 | E42: 1110.27 | F42: 1087.73 | G42: 1068.37 | H42: 1152.17 | I42: 1171.53 | J42: 1194.07 | K42: 1149 | L42: 1107.1 | M42: 0.36267
A43: 33 | B43: ATUL | C43: 3185.3 | D43: 3211.58 | E43: 3143.72 | F43: 3102.13 | G43: 3034.27 | H43: 3253.17 | I43: 3321.03 | J43: 3362.62 | K43: 3279.45 | L43: 3170 | M43: 0.12592
A44: 34 | B44: AUBANK | C44: 730.1 | D44: 730.03 | E44: 724.22 | F44: 718.33 | G44: 712.52 | H44: 735.92 | I44: 741.73 | J44: 747.62 | K44: 735.85 | L44: 724.15 | M44: 2.715
A45: 35 | B45: AUROPHARMA | C45: 699.9 | D45: 707.33 | E45: 689.17 | F45: 678.43 | G45: 660.27 | H45: 718.07 | I45: 736.23 | J45: 746.97 | K45: 725.5 | L45: 696.6 | M45: 37.89268
A46: 36 | B46: AVANTIFEED | C46: 420.85 | D46: 422.87 | E46: 418.03 | F46: 415.22 | G46: 410.38 | H46: 425.68 | I46: 430.52 | J46: 433.33 | K46: 427.7 | L46: 420.05 | M46: 2.32316
A47: 37 | B47: AXISBANK | C47: 631.8 | D47: 638.95 | E47: 622.45 | F47: 613.10 | G47: 596.60 | H47: 648.30 | I47: 664.80 | J47: 674.15 | K47: 655.45 | L47: 629.6 | M47: 64.94484
A48: 38 | B48: BAJAJ-AUTO | C48: 2771.9 | D48: 2776.53 | E48: 2745.37 | F48: 2718.83 | G48: 2687.67 | H48: 2803.07 | I48: 2834.23 | J48: 2860.77 | K48: 2807.7 | L48: 2750 | M48: 8.76984
A49: 39 | B49: BAJAJCORP | C49: 425.85 | D49: 427.85 | E49: 421.00 | F49: 416.15 | G49: 409.30 | H49: 432.70 | I49: 439.55 | J49: 444.40 | K49: 434.7 | L49: 423 | M49: 0.12591
A50: 40 | B50: BAJAJELEC | C50: 570.55 | D50: 569.17 | E50: 561.93 | F50: 553.32 | G50: 546.08 | H50: 577.78 | I50: 585.02 | J50: 593.63 | K50: 576.4 | L50: 560.55 | M50: 4.5859
A51: 41 | B51: BAJAJFINSV | C51: 6652.9 | D51: 6705.97 | E51: 6571.93 | F51: 6490.97 | G51: 6356.93 | H51: 6786.93 | I51: 6920.97 | J51: 7001.93 | K51: 6840 | L51: 6625 | M51: 1.96221
A52: 42 | B52: BAJAJHIND | C52: 6.85 | D52: 6.90 | E52: 6.80 | F52: 6.75 | G52: 6.65 | H52: 6.95 | I52: 7.05 | J52: 7.10 | K52: 7 | L52: 6.85 | M52: 9.81281
A53: 43 | B53: BAJAJHLDNG | C53: 3039 | D53: 3073.67 | E53: 2992.33 | F53: 2945.67 | G53: 2864.33 | H53: 3120.33 | I53: 3201.67 | J53: 3248.33 | K53: 3155 | L53: 3027 | M53: 0.1419
A54: 44 | B54: BAJFINANCE | C54: 2724.05 | D54: 2773.12 | E54: 2666.23 | F54: 2608.42 | G54: 2501.53 | H54: 2830.93 | I54: 2937.82 | J54: 2995.63 | K54: 2880 | L54: 2715.3 | M54: 25.1684
A55: 45 | B55: BALKRISIND | C55: 1264.1 | D55: 1291.20 | E55: 1227.40 | F55: 1190.70 | G55: 1126.90 | H55: 1327.90 | I55: 1391.70 | J55: 1428.40 | K55: 1355 | L55: 1254.5 | M55: 27.15518
A56: 46 | B56: BALLARPUR | C56: 9.35 | D56: 9.53 | E56: 9.12 | F56: 8.88 | G56: 8.47 | H56: 9.77 | I56: 10.18 | J56: 10.42 | K56: 9.95 | L56: 9.3 | M56: 11.13629
A57: 47 | B57: BALMLAWRIE | C57: 229.9 | D57: 230.10 | E57: 229.15 | F57: 228.40 | G57: 227.45 | H57: 230.85 | I57: 231.80 | J57: 232.55 | K57: 231.05 | L57: 229.35 | M57: 2.28192
A58: 48 | B58: BALRAMCHIN | C58: 76.5 | D58: 76.95 | E58: 75.05 | F58: 73.60 | G58: 71.70 | H58: 78.40 | I58: 80.30 | J58: 81.75 | K58: 78.85 | L58: 75.5 | M58: 40.20118
A59: 49 | B59: BANKBARODA | C59: 151.7 | D59: 153.03 | E59: 149.57 | F59: 147.43 | G59: 143.97 | H59: 155.17 | I59: 158.63 | J59: 160.77 | K59: 156.5 | L59: 150.9 | M59: 160.81701
A60: 50 | B60: BANKINDIA | C60: 99.65 | D60: 100.55 | E60: 98.10 | F60: 96.55 | G60: 94.10 | H60: 102.10 | I60: 104.55 | J60: 106.10 | K60: 103 | L60: 99 | M60: 87.51388
A61: 51 | B61: BASF | C61: 1947.35 | D61: 1954.45 | E61: 1922.90 | F61: 1898.45 | G61: 1866.90 | H61: 1978.90 | I61: 2010.45 | J61: 2034.90 | K61: 1986 | L61: 1930 | M61: 0.05223
A62: 52 | B62: BATAINDIA | C62: 1064.1 | D62: 1073.53 | E62: 1048.57 | F62: 1033.03 | G62: 1008.07 | H62: 1089.07 | I62: 1114.03 | J62: 1129.57 | K62: 1098.5 | L62: 1058 | M62: 6.81515
A63: 53 | B63: BBTC | C63: 1879.6 | D63: 1896.83 | E63: 1824.77 | F63: 1769.93 | G63: 1697.87 | H63: 1951.67 | I63: 2023.73 | J63: 2078.57 | K63: 1968.9 | L63: 1842 | M63: 5.38975
A64: 54 | B64: BEL | C64: 112.45 | D64: 113.32 | E64: 111.13 | F64: 109.82 | G64: 107.63 | H64: 114.63 | I64: 116.82 | J64: 118.13 | K64: 115.5 | L64: 112 | M64: 77.58259
A65: 55 | B65: BEML | C65: 841.15 | D65: 849.52 | E65: 828.68 | F65: 816.22 | G65: 795.38 | H65: 861.98 | I65: 882.82 | J65: 895.28 | K65: 870.35 | L65: 837.05 | M65: 12.11267
A66: 56 | B66: BERGEPAINT | C66: 328.4 | D66: 331.03 | E66: 323.57 | F66: 318.73 | G66: 311.27 | H66: 335.87 | I66: 343.33 | J66: 348.17 | K66: 338.5 | L66: 326.2 | M66: 3.75021
A67: 57 | B67: BFUTILITIE | C67: 330.7 | D67: 332.48 | E67: 327.42 | F67: 324.13 | G67: 319.07 | H67: 335.77 | I67: 340.83 | J67: 344.12 | K67: 337.55 | L67: 329.2 | M67: 1.9375
A68: 58 | B68: BGRENERGY | C68: 80.05 | D68: 80.25 | E68: 79.50 | F68: 78.95 | G68: 78.20 | H68: 80.80 | I68: 81.55 | J68: 82.10 | K68: 81 | L68: 79.7 | M68: 0.9513
A69: 59 | B69: BHARATFIN | C69: 1159.7 | D69: 1161.40 | E69: 1153.30 | F69: 1146.90 | G69: 1138.80 | H69: 1167.80 | I69: 1175.90 | J69: 1182.30 | K69: 1169.5 | L69: 1155 | M69: 2.37726
A70: 60 | B70: BHARATFORG | C70: 669.4 | D70: 675.35 | E70: 661.05 | F70: 652.70 | G70: 638.40 | H70: 683.70 | I70: 698.00 | J70: 706.35 | K70: 689.65 | L70: 667 | M70: 17.8621
A71: 61 | B71: BHARTIARTL | C71: 383.8 | D71: 383.83 | E71: 380.42 | F71: 377.03 | G71: 373.62 | H71: 387.22 | I71: 390.63 | J71: 394.02 | K71: 387.25 | L71: 380.45 | M71: 37.64539
A72: 62 | B72: BHEL | C72: 81.75 | D72: 81.82 | E72: 80.73 | F72: 79.72 | G72: 78.63 | H72: 82.83 | I72: 83.92 | J72: 84.93 | K72: 82.9 | L72: 80.8 | M72: 99.35832
A73: 63 | B73: BHUSANSTL | C73: 29.4 | D73: 29.07 | E73: 28.63 | F73: 27.87 | G73: 27.43 | H73: 29.83 | I73: 30.27 | J73: 31.03 | K73: 29.5 | L73: 28.3 | M73: 14.00851
A74: 64 | B74: BIOCON | C74: 614.85 | D74: 619.30 | E74: 608.60 | F74: 602.35 | G74: 591.65 | H74: 625.55 | I74: 636.25 | J74: 642.50 | K74: 630 | L74: 613.05 | M74: 19.45329
A75: 65 | B75: BIRLACORPN | C75: 761.05 | D75: 764.35 | E75: 751.70 | F75: 742.35 | G75: 729.70 | H75: 773.70 | I75: 786.35 | J75: 795.70 | K75: 777 | L75: 755 | M75: 0.32853
A76: 66 | B76: BLISSGVS | C76: 191.25 | D76: 192.52 | E76: 187.03 | F76: 182.82 | G76: 177.33 | H76: 196.73 | I76: 202.22 | J76: 206.43 | K76: 198 | L76: 188.3 | M76: 1.67366
A77: 67 | B77: BLUEDART | C77: 3444.9 | D77: 3456.63 | E77: 3413.32 | F77: 3381.73 | G77: 3338.42 | H77: 3488.22 | I77: 3531.53 | J77: 3563.12 | K77: 3499.95 | L77: 3425.05 | M77: 0.01553
A78: 68 | B78: BLUESTARCO | C78: 683.05 | D78: 682.05 | E78: 677.00 | F78: 670.95 | G78: 665.90 | H78: 688.10 | I78: 693.15 | J78: 699.20 | K78: 687.1 | L78: 676 | M78: 0.12076
A79: 69 | B79: BOMDYEING | C79: 266.25 | D79: 267.42 | E79: 262.83 | F79: 259.42 | G79: 254.83 | H79: 270.83 | I79: 275.42 | J79: 278.83 | K79: 272 | L79: 264 | M79: 1.29903
A80: 70 | B80: BOSCHLTD | C80: 21387.2 | D80: 21690.07 | E80: 21030.13 | F80: 20673.07 | G80: 20013.13 | H80: 22047.13 | I80: 22707.07 | J80: 23064.13 | K80: 22350 | L80: 21333 | M80: 0.39269
A81: 71 | B81: BPCL | C81: 360.1 | D81: 361.40 | E81: 357.30 | F81: 354.50 | G81: 350.40 | H81: 364.20 | I81: 368.30 | J81: 371.10 | K81: 365.5 | L81: 358.6 | M81: 21.79617
A82: 72 | B82: BRFL | C82: 14.75 | D82: 14.75 | E82: 14.75 | F82: 14.75 | G82: 14.75 | H82: 14.75 | I82: 14.75 | J82: 14.75 | K82: 14.75 | L82: 14.75 | M82: 0.20767
A83: 73 | B83: BRIGADE | C83: 218.4 | D83: 217.92 | E83: 212.83 | F83: 207.27 | G83: 202.18 | H83: 223.48 | I83: 228.57 | J83: 234.13 | K83: 223 | L83: 212.35 | M83: 3.94351
A84: 74 | B84: BRITANNIA | C84: 6565.85 | D84: 6637.60 | E84: 6460.25 | F84: 6354.65 | G84: 6177.30 | H84: 6743.20 | I84: 6920.55 | J84: 7026.15 | K84: 6814.95 | L84: 6532 | M84: 0.85052
A85: 75 | B85: BSE | C85: 746.15 | D85: 749.13 | E85: 740.77 | F85: 735.38 | G85: 727.02 | H85: 754.52 | I85: 762.88 | J85: 768.27 | K85: 757.5 | L85: 743.75 | M85: 1.16646
A86: 77 | B86: CADILAHC | C86: 405.45 | D86: 409.05 | E86: 397.80 | F86: 390.15 | G86: 378.90 | H86: 416.70 | I86: 427.95 | J86: 435.60 | K86: 420.3 | L86: 401.4 | M86: 50.92585
A87: 78 | B87: CANBK | C87: 284.85 | D87: 286.57 | E87: 280.38 | F87: 275.92 | G87: 269.73 | H87: 291.03 | I87: 297.22 | J87: 301.68 | K87: 292.75 | L87: 282.1 | M87: 83.44902
A88: 79 | B88: CANFINHOME | C88: 321.15 | D88: 323.42 | E88: 315.93 | F88: 310.72 | G88: 303.23 | H88: 328.63 | I88: 336.12 | J88: 341.33 | K88: 330.9 | L88: 318.2 | M88: 17.38538
A89: 80 | B89: CAPF | C89: 649.85 | D89: 651.77 | E89: 642.58 | F89: 635.32 | G89: 626.13 | H89: 659.03 | I89: 668.22 | J89: 675.48 | K89: 660.95 | L89: 644.5 | M89: 5.95734
A90: 81 | B90: CAPLIPOINT | C90: 450.6 | D90: 452.10 | E90: 437.50 | F90: 424.40 | G90: 409.80 | H90: 465.20 | I90: 479.80 | J90: 492.90 | K90: 466.7 | L90: 439 | M90: 0.72298
A91: 82 | B91: CARBORUNIV | C91: 376.4 | D91: 373.88 | E91: 368.52 | F91: 360.63 | G91: 355.27 | H91: 381.77 | I91: 387.13 | J91: 395.02 | K91: 379.25 | L91: 366 | M91: 0.76733
A92: 83 | B92: CARERATING | C92: 1298.65 | D92: 1312.18 | E92: 1276.37 | F92: 1254.08 | G92: 1218.27 | H92: 1334.47 | I92: 1370.28 | J92: 1392.57 | K92: 1348 | L92: 1289.9 | M92: 0.80149
A93: 84 | B93: CASTROLIND | C93: 158.85 | D93: 159.10 | E93: 158.00 | F93: 157.15 | G93: 156.05 | H93: 159.95 | I93: 161.05 | J93: 161.90 | K93: 160.2 | L93: 158.25 | M93: 10.5484
A94: 85 | B94: CCL | C94: 291.2 | D94: 290.98 | E94: 287.22 | F94: 283.23 | G94: 279.47 | H94: 294.97 | I94: 298.73 | J94: 302.72 | K94: 294.75 | L94: 287 | M94: 0.69309
A95: 86 | B95: CDSL | C95: 263.6 | D95: 263.77 | E95: 260.83 | F95: 258.07 | G95: 255.13 | H95: 266.53 | I95: 269.47 | J95: 272.23 | K95: 266.7 | L95: 261 | M95: 2.7506
A96: 87 | B96: CEATLTD | C96: 1389.5 | D96: 1398.05 | E96: 1371.95 | F96: 1354.40 | G96: 1328.30 | H96: 1415.60 | I96: 1441.70 | J96: 1459.25 | K96: 1424.15 | L96: 1380.5 | M96: 4.61219
A97: 88 | B97: CENTRALBK | C97: 68.6 | D97: 68.80 | E97: 68.25 | F97: 67.90 | G97: 67.35 | H97: 69.15 | I97: 69.70 | J97: 70.05 | K97: 69.35 | L97: 68.45 | M97: 1.87006
A98: 89 | B98: CENTURYPLY | C98: 222.35 | D98: 223.50 | E98: 220.00 | F98: 217.65 | G98: 214.15 | H98: 225.85 | I98: 229.35 | J98: 231.70 | K98: 227 | L98: 221.15 | M98: 1.64261
A99: 90 | B99: CENTURYTEX | C99: 969.05 | D99: 972.72 | E99: 953.38 | F99: 937.72 | G99: 918.38 | H99: 988.38 | I99: 1007.72 | J99: 1023.38 | K99: 992.05 | L99: 957.05 | M99: 16.42186
A100: 91 | B100: CERA | C100: 2717.05 | D100: 2726.33 | E100: 2691.72 | F100: 2666.38 | G100: 2631.77 | H100: 2751.67 | I100: 2786.28 | J100: 2811.62 | K100: 2760.95 | L100: 2701 | M100: 0.04795
A101: 92 | B101: CGPOWER | C101: 58.4 | D101: 58.73 | E101: 57.67 | F101: 56.93 | G101: 55.87 | H101: 59.47 | I101: 60.53 | J101: 61.27 | K101: 59.8 | L101: 58 | M101: 45.94784
A102: 93 | B102: CHAMBLFERT | C102: 166.9 | D102: 168.68 | E102: 163.37 | F102: 159.83 | G102: 154.52 | H102: 172.22 | I102: 177.53 | J102: 181.07 | K102: 174 | L102: 165.15 | M102: 6.80554
A103: 94 | B103: CHENNPETRO | C103: 308.65 | D103: 310.38 | E103: 304.37 | F103: 300.08 | G103: 294.07 | H103: 314.67 | I103: 320.68 | J103: 324.97 | K103: 316.4 | L103: 306.1 | M103: 1.62293
A104: 95 | B104: CHOLAFIN | C104: 1509.7 | D104: 1502.98 | E104: 1473.92 | F104: 1438.13 | G104: 1409.07 | H104: 1538.77 | I104: 1567.83 | J104: 1603.62 | K104: 1532.05 | L104: 1467.2 | M104: 3.43382
A105: 96 | B105: CIPLA | C105: 649.1 | D105: 655.63 | E105: 640.07 | F105: 631.03 | G105: 615.47 | H105: 664.67 | I105: 680.23 | J105: 689.27 | K105: 671.2 | L105: 646.6 | M105: 19.71733
A106: 97 | B106: COALINDIA | C106: 287.65 | D106: 287.87 | E106: 285.93 | F106: 284.22 | G106: 282.28 | H106: 289.58 | I106: 291.52 | J106: 293.23 | K106: 289.8 | L106: 286.15 | M106: 16.49749
A107: 98 | B107: COCHINSHIP | C107: 421 | D107: 422.47 | E107: 418.93 | F107: 416.87 | G107: 413.33 | H107: 424.53 | I107: 428.07 | J107: 430.13 | K107: 426 | L107: 420.4 | M107: 1.20221
A108: 99 | B108: COFFEEDAY | C108: 269.15 | D108: 271.77 | E108: 263.58 | F108: 258.02 | G108: 249.83 | H108: 277.33 | I108: 285.52 | J108: 291.08 | K108: 279.95 | L108: 266.2 | M108: 3.31881
A109: 100 | B109: COLPAL | C109: 1174.65 | D109: 1172.77 | E109: 1147.13 | F109: 1119.62 | G109: 1093.98 | H109: 1200.28 | I109: 1225.92 | J109: 1253.43 | K109: 1198.4 | L109: 1145.25 | M109: 13.01037
A110: 101 | B110: CONCOR | C110: 650.8 | D110: 651.18 | E110: 645.87 | F110: 640.93 | G110: 635.62 | H110: 656.12 | I110: 661.43 | J110: 666.37 | K110: 656.5 | L110: 646.25 | M110: 4.21335
A111: 102 | B111: COROMANDEL | C111: 416.95 | D111: 417.63 | E111: 413.42 | F111: 409.88 | G111: 405.67 | H111: 421.17 | I111: 425.38 | J111: 428.92 | K111: 421.85 | L111: 414.1 | M111: 0.52186
A112: 103 | B112: COX&KINGS | C112: 224.5 | D112: 225.53 | E112: 221.17 | F112: 217.83 | G112: 213.47 | H112: 228.87 | I112: 233.23 | J112: 236.57 | K112: 229.9 | L112: 222.2 | M112: 0.75294
A113: 104 | B113: CRISIL | C113: 1759.7 | D113: 1765.22 | E113: 1744.48 | F113: 1729.27 | G113: 1708.53 | H113: 1780.43 | I113: 1801.17 | J113: 1816.38 | K113: 1785.95 | L113: 1750 | M113: 0.05694
A114: 105 | B114: CROMPTON | C114: 250.4 | D114: 251.57 | E114: 248.83 | F114: 247.27 | G114: 244.53 | H114: 253.13 | I114: 255.87 | J114: 257.43 | K114: 254.3 | L114: 250 | M114: 2.18145
A115: 106 | B115: CUB | C115: 195.45 | D115: 197.95 | E115: 192.50 | F115: 189.55 | G115: 184.10 | H115: 200.90 | I115: 206.35 | J115: 209.30 | K115: 203.4 | L115: 195 | M115: 6.27302
A116: 107 | B116: CUMMINSIND | C116: 760.6 | D116: 763.02 | E116: 752.13 | F116: 743.67 | G116: 732.78 | H116: 771.48 | I116: 782.37 | J116: 790.83 | K116: 773.9 | L116: 754.55 | M116: 4.22511
A117: 108 | B117: CYIENT | C117: 737.1 | D117: 742.17 | E117: 726.43 | F117: 715.77 | G117: 700.03 | H117: 752.83 | I117: 768.57 | J117: 779.23 | K117: 757.9 | L117: 731.5 | M117: 6.97063
A118: 109 | B118: DABUR | C118: 466.35 | D118: 470.80 | E118: 460.55 | F118: 454.75 | G118: 444.50 | H118: 476.60 | I118: 486.85 | J118: 492.65 | K118: 481.05 | L118: 465 | M118: 26.67557
A119: 110 | B119: DBCORP | C119: 231.45 | D119: 229.90 | E119: 224.80 | F119: 218.15 | G119: 213.05 | H119: 236.55 | I119: 241.65 | J119: 248.30 | K119: 235 | L119: 223.25 | M119: 8.50419
A120: 111 | B120: DBL | C120: 818.7 | D120: 825.42 | E120: 808.53 | F120: 798.37 | G120: 781.48 | H120: 835.58 | I120: 852.47 | J120: 862.63 | K120: 842.3 | L120: 815.25 | M120: 1.20651
A121: 112 | B121: DBREALTY | C121: 28.25 | D121: 28.62 | E121: 27.78 | F121: 27.32 | G121: 26.48 | H121: 29.08 | I121: 29.92 | J121: 30.38 | K121: 29.45 | L121: 28.15 | M121: 11.5213
A122: 113 | B122: DCAL | C122: 305.7 | D122: 305.00 | E122: 295.20 | F122: 284.70 | G122: 274.90 | H122: 315.50 | I122: 325.30 | J122: 335.80 | K122: 314.8 | L122: 294.5 | M122: 4.90525
A123: 114 | B123: DCBBANK | C123: 170.9 | D123: 173.63 | E123: 167.07 | F123: 163.23 | G123: 156.67 | H123: 177.47 | I123: 184.03 | J123: 187.87 | K123: 180.2 | L123: 169.8 | M123: 21.10894
A124: 115 | B124: DCMSHRIRAM | C124: 385.25 | D124: 384.83 | E124: 381.67 | F124: 378.08 | G124: 374.92 | H124: 388.42 | I124: 391.58 | J124: 395.17 | K124: 388 | L124: 381.25 | M124: 1.23133
A125: 116 | B125: DEEPAKFERT | C125: 253.8 | D125: 254.40 | E125: 252.40 | F125: 251.00 | G125: 249.00 | H125: 255.80 | I125: 257.80 | J125: 259.20 | K125: 256.4 | L125: 253 | M125: 0.76807
A126: 117 | B126: DELTACORP | C126: 269.35 | D126: 271.92 | E126: 265.53 | F126: 261.72 | G126: 255.33 | H126: 275.73 | I126: 282.12 | J126: 285.93 | K126: 278.3 | L126: 268.1 | M126: 16.04126
A127: 118 | B127: DEN | C127: 51.6 | D127: 51.27 | E127: 49.93 | F127: 48.27 | G127: 46.93 | H127: 52.93 | I127: 54.27 | J127: 55.93 | K127: 52.6 | L127: 49.6 | M127: 1.96215
A128: 119 | B128: DENABANK | C128: 17.05 | D128: 17.13 | E128: 16.92 | F128: 16.78 | G128: 16.57 | H128: 17.27 | I128: 17.48 | J128: 17.62 | K128: 17.35 | L128: 17 | M128: 10.32355
A129: 120 | B129: DHFL | C129: 679.25 | D129: 677.02 | E129: 662.53 | F129: 645.82 | G129: 631.33 | H129: 693.73 | I129: 708.22 | J129: 724.93 | K129: 691.5 | L129: 660.3 | M129: 67.1617
A130: 121 | B130: DISHTV | C130: 70.9 | D130: 71.23 | E130: 70.17 | F130: 69.43 | G130: 68.37 | H130: 71.97 | I130: 73.03 | J130: 73.77 | K130: 72.3 | L130: 70.5 | M130: 14.87597
A131: 122 | B131: DIVISLAB | C131: 1287.1 | D131: 1297.37 | E131: 1267.73 | F131: 1248.37 | G131: 1218.73 | H131: 1316.73 | I131: 1346.37 | J131: 1365.73 | K131: 1327 | L131: 1278 | M131: 8.7382
A132: 123 | B132: DIXON | C132: 2872.35 | D132: 2915.77 | E132: 2806.58 | F132: 2740.82 | G132: 2631.63 | H132: 2981.53 | I132: 3090.72 | J132: 3156.48 | K132: 3024.95 | L132: 2850 | M132: 0.30828
A133: 124 | B133: DLF | C133: 212.45 | D133: 213.10 | E133: 209.65 | F133: 206.85 | G133: 203.40 | H133: 215.90 | I133: 219.35 | J133: 222.15 | K133: 216.55 | L133: 210.3 | M133: 90.75098
A134: 125 | B134: DMART | C134: 1604.65 | D134: 1604.88 | E134: 1589.77 | F134: 1574.88 | G134: 1559.77 | H134: 1619.77 | I134: 1634.88 | J134: 1649.77 | K134: 1620 | L134: 1590 | M134: 5.07075
A135: 126 | B135: DREDGECORP | C135: 466.65 | D135: 468.80 | E135: 462.85 | F135: 459.05 | G135: 453.10 | H135: 472.60 | I135: 478.55 | J135: 482.35 | K135: 474.75 | L135: 465 | M135: 0.81639
A136: 127 | B136: DRREDDY | C136: 2593.4 | D136: 2573.47 | E136: 2514.93 | F136: 2436.47 | G136: 2377.93 | H136: 2651.93 | I136: 2710.47 | J136: 2788.93 | K136: 2632 | L136: 2495 | M136: 30.39924
A137: 128 | B137: ECLERX | C137: 1054.45 | D137: 1060.33 | E137: 1041.62 | F137: 1028.78 | G137: 1010.07 | H137: 1073.17 | I137: 1091.88 | J137: 1104.72 | K137: 1079.05 | L137: 1047.5 | M137: 1.77573
A138: 129 | B138: EDELWEISS | C138: 278.65 | D138: 280.12 | E138: 276.53 | F138: 274.42 | G138: 270.83 | H138: 282.23 | I138: 285.82 | J138: 287.93 | K138: 283.7 | L138: 278 | M138: 15.6886
A139: 130 | B139: EICHERMOT | C139: 28885.85 | D139: 28658.28 | E139: 28317.57 | F139: 27749.28 | G139: 27408.57 | H139: 29226.57 | I139: 29567.28 | J139: 30135.57 | K139: 28999 | L139: 28090 | M139: 1.03052
A140: 131 | B140: EIDPARRY | C140: 215.55 | D140: 216.57 | E140: 214.28 | F140: 213.02 | G140: 210.73 | H140: 217.83 | I140: 220.12 | J140: 221.38 | K140: 218.85 | L140: 215.3 | M140: 1.31786
A141: 132 | B141: EIHOTEL | C141: 178.25 | D141: 178.45 | E141: 175.90 | F141: 173.55 | G141: 171.00 | H141: 180.80 | I141: 183.35 | J141: 185.70 | K141: 181 | L141: 176.1 | M141: 0.4772
A142: 133 | B142: EMAMILTD | C142: 578.65 | D142: 577.10 | E142: 566.20 | F142: 553.75 | G142: 542.85 | H142: 589.55 | I142: 600.45 | J142: 612.90 | K142: 588 | L142: 564.65 | M142: 6.20799
A143: 134 | B143: ENDURANCE | C143: 1543.25 | D143: 1530.92 | E143: 1512.38 | F143: 1481.52 | G143: 1462.98 | H143: 1561.78 | I143: 1580.32 | J143: 1611.18 | K143: 1549.45 | L143: 1500.05 | M143: 0.39882
A144: 135 | B144: ENGINERSIN | C144: 135.8 | D144: 134.17 | E144: 129.93 | F144: 124.07 | G144: 119.83 | H144: 140.03 | I144: 144.27 | J144: 150.13 | K144: 138.4 | L144: 128.3 | M144: 70.7568
A145: 136 | B145: EQUITAS | C145: 159.9 | D145: 159.72 | E145: 156.18 | F145: 152.47 | G145: 148.93 | H145: 163.43 | I145: 166.97 | J145: 170.68 | K145: 163.25 | L145: 156 | M145: 31.13264
A146: 137 | B146: ERIS | C146: 732.05 | D146: 732.00 | E146: 717.05 | F146: 702.05 | G146: 687.10 | H146: 747.00 | I146: 761.95 | J146: 776.95 | K146: 746.95 | L146: 717 | M146: 0.19279
A147: 138 | B147: EROSMEDIA | C147: 114.45 | D147: 114.15 | E147: 111.30 | F147: 108.15 | G147: 105.30 | H147: 117.30 | I147: 120.15 | J147: 123.30 | K147: 117 | L147: 111 | M147: 6.59399
A148: 139 | B148: ESCORTS | C148: 831.95 | D148: 845.35 | E148: 814.70 | F148: 797.45 | G148: 766.80 | H148: 862.60 | I148: 893.25 | J148: 910.50 | K148: 876 | L148: 828.1 | M148: 19.45
A149: 140 | B149: EVEREADY | C149: 248 | D149: 249.75 | E149: 244.50 | F149: 241.00 | G149: 235.75 | H149: 253.25 | I149: 258.50 | J149: 262.00 | K149: 255 | L149: 246.25 | M149: 0.81443
A150: 141 | B150: EXIDEIND | C150: 282.95 | D150: 284.48 | E150: 280.47 | F150: 277.98 | G150: 273.97 | H150: 286.97 | I150: 290.98 | J150: 293.47 | K150: 288.5 | L150: 282 | M150: 8.02551
A151: 142 | B151: FCONSUMER | C151: 55.4 | D151: 54.65 | E151: 53.30 | F151: 51.20 | G151: 49.85 | H151: 56.75 | I151: 58.10 | J151: 60.20 | K151: 56 | L151: 52.55 | M151: 69.56624
A152: 143 | B152: FEDERALBNK | C152: 80.75 | D152: 81.00 | E152: 80.15 | F152: 79.55 | G152: 78.70 | H152: 81.60 | I152: 82.45 | J152: 83.05 | K152: 81.85 | L152: 80.4 | M152: 71.72556
A153: 144 | B153: FINCABLES | C153: 551.9 | D153: 552.48 | E153: 547.52 | F153: 543.13 | G153: 538.17 | H153: 556.87 | I153: 561.83 | J153: 566.22 | K153: 557.45 | L153: 548.1 | M153: 0.25104
A154: 145 | B154: FINPIPE | C154: 630.3 | D154: 631.90 | E154: 625.00 | F154: 619.70 | G154: 612.80 | H154: 637.20 | I154: 644.10 | J154: 649.40 | K154: 638.8 | L154: 626.6 | M154: 0.15975
A155: 146 | B155: FLFL | C155: 428.7 | D155: 431.53 | E155: 423.37 | F155: 418.03 | G155: 409.87 | H155: 436.87 | I155: 445.03 | J155: 450.37 | K155: 439.7 | L155: 426.2 | M155: 0.50375
A156: 147 | B156: FSL | C156: 75.9 | D156: 76.17 | E156: 75.03 | F156: 74.17 | G156: 73.03 | H156: 77.03 | I156: 78.17 | J156: 79.03 | K156: 77.3 | L156: 75.3 | M156: 42.94252
A157: 148 | B157: GAIL | C157: 368.3 | D157: 370.48 | E157: 365.17 | F157: 362.03 | G157: 356.72 | H157: 373.62 | I157: 378.93 | J157: 382.07 | K157: 375.8 | L157: 367.35 | M157: 22.63662
A158: 149 | B158: GATI | C158: 98.7 | D158: 99.23 | E158: 97.72 | F158: 96.73 | G158: 95.22 | H158: 100.22 | I158: 101.73 | J158: 102.72 | K158: 100.75 | L158: 98.25 | M158: 5.96114
A159: 150 | B159: GDL | C159: 186.6 | D159: 186.33 | E159: 184.97 | F159: 183.33 | G159: 181.97 | H159: 187.97 | I159: 189.33 | J159: 190.97 | K159: 187.7 | L159: 184.7 | M159: 0.28694
A160: 151 | B160: GEPIL | C160: 775.25 | D160: 768.38 | E160: 756.92 | F160: 738.58 | G160: 727.12 | H160: 786.72 | I160: 798.18 | J160: 816.52 | K160: 779.85 | L160: 750.05 | M160: 0.35011
A161: 152 | B161: GESHIP | C161: 304.65 | D161: 305.82 | E161: 302.63 | F161: 300.62 | G161: 297.43 | H161: 307.83 | I161: 311.02 | J161: 313.03 | K161: 309 | L161: 303.8 | M161: 0.3919
A162: 153 | B162: GET&D | C162: 277.15 | D162: 278.65 | E162: 274.55 | F162: 271.95 | G162: 267.85 | H162: 281.25 | I162: 285.35 | J162: 287.95 | K162: 282.75 | L162: 276.05 | M162: 0.38031
A163: 154 | B163: GHCL | C163: 257.65 | D163: 259.87 | E163: 253.73 | F163: 249.82 | G163: 243.68 | H163: 263.78 | I163: 269.92 | J163: 273.83 | K163: 266 | L163: 255.95 | M163: 2.39824
A164: 155 | B164: GICRE | C164: 337.85 | D164: 337.20 | E164: 334.70 | F164: 331.55 | G164: 329.05 | H164: 340.35 | I164: 342.85 | J164: 346.00 | K164: 339.7 | L164: 334.05 | M164: 0.41108
A165: 156 | B165: GILLETTE | C165: 6810.35 | D165: 6769.78 | E165: 6690.57 | F165: 6570.78 | G165: 6491.57 | H165: 6889.57 | I165: 6968.78 | J165: 7088.57 | K165: 6849 | L165: 6650 | M165: 0.07328
A166: 157 | B166: GLAXO | C166: 3470.6 | D166: 3476.52 | E166: 3436.08 | F166: 3401.57 | G166: 3361.13 | H166: 3511.03 | I166: 3551.47 | J166: 3585.98 | K166: 3516.95 | L166: 3442 | M166: 0.50807
A167: 158 | B167: GLENMARK | C167: 663 | D167: 666.42 | E167: 656.58 | F167: 650.17 | G167: 640.33 | H167: 672.83 | I167: 682.67 | J167: 689.08 | K167: 676.25 | L167: 660 | M167: 9.4653
A168: 159 | B168: GMDCLTD | C168: 115 | D168: 115.43 | E168: 114.32 | F168: 113.63 | G168: 112.52 | H168: 116.12 | I168: 117.23 | J168: 117.92 | K168: 116.55 | L168: 114.75 | M168: 2.00894
A169: 160 | B169: GMRINFRA | C169: 20.25 | D169: 20.60 | E169: 19.70 | F169: 19.15 | G169: 18.25 | H169: 21.15 | I169: 22.05 | J169: 22.60 | K169: 21.5 | L169: 20.05 | M169: 429.73913
A170: 161 | B170: GNFC | C170: 391.3 | D170: 394.10 | E170: 387.20 | F170: 383.10 | G170: 376.20 | H170: 398.20 | I170: 405.10 | J170: 409.20 | K170: 401 | L170: 390 | M170: 5.70682
A171: 162 | B171: GODFRYPHLP | C171: 873.8 | D171: 878.85 | E171: 862.15 | F171: 850.50 | G171: 833.80 | H171: 890.50 | I171: 907.20 | J171: 918.85 | K171: 895.55 | L171: 867.2 | M171: 0.5282
A172: 163 | B172: GODREJAGRO | C172: 577.1 | D172: 581.07 | E172: 571.13 | F172: 565.17 | G172: 555.23 | H172: 587.03 | I172: 596.97 | J172: 602.93 | K172: 591 | L172: 575.1 | M172: 0.90607
A173: 164 | B173: GODREJCP | C173: 1433.55 | D173: 1439.55 | E173: 1414.10 | F173: 1394.65 | G173: 1369.20 | H173: 1459.00 | I173: 1484.45 | J173: 1503.90 | K173: 1465 | L173: 1420.1 | M173: 7.11944
A174: 165 | B174: GODREJIND | C174: 629.95 | D174: 635.67 | E174: 620.28 | F174: 610.62 | G174: 595.23 | H174: 645.33 | I174: 660.72 | J174: 670.38 | K174: 651.05 | L174: 626 | M174: 4.62628
A175: 166 | B175: GODREJPROP | C175: 696.05 | D175: 689.00 | E175: 673.05 | F175: 650.05 | G175: 634.10 | H175: 712.00 | I175: 727.95 | J175: 750.95 | K175: 704.95 | L175: 666 | M175: 1.5577
A176: 167 | B176: GPPL | C176: 109.1 | D176: 109.97 | E176: 107.93 | F176: 106.77 | G176: 104.73 | H176: 111.13 | I176: 113.17 | J176: 114.33 | K176: 112 | L176: 108.8 | M176: 0.97173
A177: 168 | B177: GRANULES | C177: 115.05 | D177: 115.68 | E177: 113.67 | F177: 112.28 | G177: 110.27 | H177: 117.07 | I177: 119.08 | J177: 120.47 | K177: 117.7 | L177: 114.3 | M177: 31.21308
A178: 169 | B178: GRAPHITE | C178: 1010.2 | D178: 1020.57 | E178: 996.13 | F178: 982.07 | G178: 957.63 | H178: 1034.63 | I178: 1059.07 | J178: 1073.13 | K178: 1045 | L178: 1006.5 | M178: 5.47233
A179: 170 | B179: GRASIM | C179: 1065.95 | D179: 1065.98 | E179: 1053.97 | F179: 1041.98 | G179: 1029.97 | H179: 1077.97 | I179: 1089.98 | J179: 1101.97 | K179: 1078 | L179: 1054 | M179: 9.07185
A180: 171 | B180: GREAVESCOT | C180: 153.6 | D180: 154.43 | E180: 151.57 | F180: 149.53 | G180: 146.67 | H180: 156.47 | I180: 159.33 | J180: 161.37 | K180: 157.3 | L180: 152.4 | M180: 3.79266
A181: 172 | B181: GREENPLY | C181: 205.3 | D181: 205.27 | E181: 203.33 | F181: 201.37 | G181: 199.43 | H181: 207.23 | I181: 209.17 | J181: 211.13 | K181: 207.2 | L181: 203.3 | M181: 0.26908
A182: 173 | B182: GRUH | C182: 331.55 | D182: 334.70 | E182: 326.80 | F182: 322.05 | G182: 314.15 | H182: 339.45 | I182: 347.35 | J182: 352.10 | K182: 342.6 | L182: 329.95 | M182: 3.68353
A183: 174 | B183: GSFC | C183: 121.3 | D183: 121.98 | E183: 119.17 | F183: 117.03 | G183: 114.22 | H183: 124.12 | I183: 126.93 | J183: 129.07 | K183: 124.8 | L183: 119.85 | M183: 35.30889
A184: 175 | B184: GSKCONS | C184: 7611.1 | D184: 7671.03 | E184: 7492.07 | F184: 7373.03 | G184: 7194.07 | H184: 7790.07 | I184: 7969.03 | J184: 8088.07 | K184: 7850 | L184: 7552 | M184: 0.25129
A185: 176 | B185: GSPL | C185: 191.8 | D185: 191.90 | E185: 189.00 | F185: 186.20 | G185: 183.30 | H185: 194.70 | I185: 197.60 | J185: 200.40 | K185: 194.8 | L185: 189.1 | M185: 9.17925
A186: 177 | B186: GUJALKALI | C186: 571.45 | D186: 574.23 | E186: 565.92 | F186: 560.38 | G186: 552.07 | H186: 579.77 | I186: 588.08 | J186: 593.62 | K186: 582.55 | L186: 568.7 | M186: 0.5506
A187: 178 | B187: GUJFLUORO | C187: 831.25 | D187: 817.08 | E187: 789.17 | F187: 747.08 | G187: 719.17 | H187: 859.17 | I187: 887.08 | J187: 929.17 | K187: 845 | L187: 775 | M187: 3.31655
A188: 179 | B188: GUJGASLTD | C188: 765.2 | D188: 771.05 | E188: 757.20 | F188: 749.20 | G188: 735.35 | H188: 779.05 | I188: 792.90 | J188: 800.90 | K188: 784.9 | L188: 763.05 | M188: 0.14456
A189: 180 | B189: GULFOILLUB | C189: 823.8 | D189: 822.07 | E189: 817.13 | F189: 810.47 | G189: 805.53 | H189: 828.73 | I189: 833.67 | J189: 840.33 | K189: 827 | L189: 815.4 | M189: 0.10094
A190: 181 | B190: GVKPIL | C190: 11.5 | D190: 11.55 | E190: 11.40 | F190: 11.30 | G190: 11.15 | H190: 11.65 | I190: 11.80 | J190: 11.90 | K190: 11.7 | L190: 11.45 | M190: 13.66658
A191: 182 | B191: HATHWAY | C191: 18.35 | D191: 18.45 | E191: 18.05 | F191: 17.75 | G191: 17.35 | H191: 18.75 | I191: 19.15 | J191: 19.45 | K191: 18.85 | L191: 18.15 | M191: 4.51569
A192: 183 | B192: HATSUN | C192: 766.75 | D192: 770.92 | E192: 755.83 | F192: 744.92 | G192: 729.83 | H192: 781.83 | I192: 796.92 | J192: 807.83 | K192: 786 | L192: 760 | M192: 0.20011
A193: 184 | B193: HAVELLS | C193: 716.4 | D193: 717.45 | E193: 706.15 | F193: 695.90 | G193: 684.60 | H193: 727.70 | I193: 739.00 | J193: 749.25 | K193: 728.75 | L193: 707.2 | M193: 11.60743
A194: 185 | B194: HCC | C194: 14.95 | D194: 14.73 | E194: 14.02 | F194: 13.08 | G194: 12.37 | H194: 15.67 | I194: 16.38 | J194: 17.32 | K194: 15.45 | L194: 13.8 | M194: 385.99166
A195: 186 | B195: HCL-INSYS | C195: 35.3 | D195: 35.60 | E195: 34.80 | F195: 34.30 | G195: 33.50 | H195: 36.10 | I195: 36.90 | J195: 37.40 | K195: 36.4 | L195: 35.1 | M195: 16.37189
A196: 187 | B196: HCLTECH | C196: 1049.15 | D196: 1051.58 | E196: 1042.17 | F196: 1035.18 | G196: 1025.77 | H196: 1058.57 | I196: 1067.98 | J196: 1074.97 | K196: 1061 | L196: 1044.6 | M196: 22.27153
A197: 188 | B197: HDFC | C197: 1944.8 | D197: 1940.97 | E197: 1931.93 | F197: 1919.07 | G197: 1910.03 | H197: 1953.83 | I197: 1962.87 | J197: 1975.73 | K197: 1950 | L197: 1928.1 | M197: 23.10201
A198: 189 | B198: HDFCBANK | C198: 2075.05 | D198: 2072.50 | E198: 2066.05 | F198: 2057.05 | G198: 2050.60 | H198: 2081.50 | I198: 2087.95 | J198: 2096.95 | K198: 2078.95 | L198: 2063.5 | M198: 19.15402
A199: 190 | B199: HDIL | C199: 34.65 | D199: 33.92 | E199: 31.98 | F199: 29.32 | G199: 27.38 | H199: 36.58 | I199: 38.52 | J199: 41.18 | K199: 35.85 | L199: 31.25 | M199: 298.86181
A200: 191 | B200: HEG | C200: 4261.85 | D200: 4278.32 | E200: 4218.63 | F200: 4175.42 | G200: 4115.73 | H200: 4321.53 | I200: 4381.22 | J200: 4424.43 | K200: 4338 | L200: 4235.1 | M200: 0.9987
A201: 192 | B201: HEIDELBERG | C201: 166.25 | D201: 165.83 | E201: 164.52 | F201: 162.78 | G201: 161.47 | H201: 167.57 | I201: 168.88 | J201: 170.62 | K201: 167.15 | L201: 164.1 | M201: 1.17318
A202: 193 | B202: HERITGFOOD | C202: 603.95 | D202: 611.82 | E202: 593.73 | F202: 583.52 | G202: 565.43 | H202: 622.03 | I202: 640.12 | J202: 650.33 | K202: 629.9 | L202: 601.6 | M202: 0.20966
A203: 194 | B203: HEROMOTOCO | C203: 3242.45 | D203: 3257.73 | E203: 3219.72 | F203: 3196.98 | G203: 3158.97 | H203: 3280.47 | I203: 3318.48 | J203: 3341.22 | K203: 3295.75 | L203: 3235 | M203: 2.92015
A204: 195 | B204: HEXAWARE | C204: 429.95 | D204: 434.67 | E204: 423.58 | F204: 417.22 | G204: 406.13 | H204: 441.03 | I204: 452.12 | J204: 458.48 | K204: 445.75 | L204: 428.3 | M204: 26.4651
A205: 196 | B205: HFCL | C205: 25.6 | D205: 25.82 | E205: 25.23 | F205: 24.87 | G205: 24.28 | H205: 26.18 | I205: 26.77 | J205: 27.13 | K205: 26.4 | L205: 25.45 | M205: 80.87226
A206: 197 | B206: HIMATSEIDE | C206: 293.2 | D206: 292.30 | E206: 289.40 | F206: 285.60 | G206: 282.70 | H206: 296.10 | I206: 299.00 | J206: 302.80 | K206: 295.2 | L206: 288.5 | M206: 0.44582
... 304 more rows

Sheet Bulk Deals
E6: Back To Main Page
A7: Subject : | B7: BULK DEAL | D7: =Main!B10 -> 2018-09-04
A9: Date | B9: Scrip code | C9: Scrip Name | D9: Client Name | E9: Buy / Sell | F9: Quantity Traded | G9: Trade Price / Wt.Avg.trade price | H9: Exchange
A10: 2018-09-03 | B10: 540694 | C10: ANG | D10: ANIL KUMAR GUPTA | E10: SELL | F10: 25,600 | G10: 64.09 | H10: BSE
A11: 2018-09-03 | B11: 540694 | C11: ANG | D11: ANIL KUMAR GUPTA | E11: BUY | F11: 33,600 | G11: 68.36 | H11: BSE
A12: 2018-09-03 | B12: 540024 | C12: ASHARI | D12: MANOJKUMAR GUNVANTRAI SOMANI | E12: SELL | F12: 33,138 | G12: 20.01 | H12: BSE
A13: 2018-09-03 | B13: 540024 | C13: ASHARI | D13: MANOJKUMAR GUNVANTRAI SOMANI | E13: BUY | F13: 55,643 | G13: 19.78 | H13: BSE
A14: 2018-09-03 | B14: 540024 | C14: ASHARI | D14: VIRPAL SINGH | E14: SELL | F14: 107,000 | G14: 20.05 | H14: BSE
A15: 2018-09-03 | B15: 532290 | C15: BLBLIMITED | D15: GOOD SKILL SECURITIES & SERVICES LIMITED | E15: SELL | F15: 859,515 | G15: 6.15 | H15: BSE
A16: 2018-09-03 | B16: 532290 | C16: BLBLIMITED | D16: ACN FINANCIAL SERVICES LIMITED | E16: BUY | F16: 828,300 | G16: 6.15 | H16: BSE
A17: 2018-09-03 | B17: 539335 | C17: CHPLIND | D17: ASHUTOSH DIXIT | E17: BUY | F17: 40,100 | G17: 18 | H17: BSE
A18: 2018-09-03 | B18: 539335 | C18: CHPLIND | D18: RASHMI RAVI SHARMA | E18: SELL | F18: 40,000 | G18: 18 | H18: BSE
A19: 2018-09-03 | B19: 539266 | C19: CONCRETE | D19: ALPABEN ANANTBHAI PATEL | E19: SELL | F19: 76,354 | G19: 8.88 | H19: BSE
A20: 2018-09-03 | B20: 523369 | C20: DCMSRMIND | D20: HB PORTFOLIO LIMITED | E20: SELL | F20: 98,057 | G20: 178.06 | H20: BSE
A21: 2018-09-03 | B21: 523369 | C21: DCMSRMIND | D21: FINQUEST FINANCIAL SOLUTIONS PVT. LTD. | E21: BUY | F21: 90,000 | G21: 178 | H21: BSE
A22: 2018-09-03 | B22: 539486 | C22: GEETANJ | D22: ANILKUMARJADALA | E22: SELL | F22: 26,009 | G22: 1.06 | H22: BSE
A23: 2018-09-03 | B23: 539486 | C23: GEETANJ | D23: SOHAM MULTITRADE | E23: BUY | F23: 26,953 | G23: 1.06 | H23: BSE
A24: 2018-09-03 | B24: 532951 | C24: GSS | D24: ARCADIA SHARE & STOCK BROKERS PVT. LTD | E24: SELL | F24: 101,073 | G24: 104.21 | H24: BSE
A25: 2018-09-03 | B25: 532951 | C25: GSS | D25: ARCADIA SHARE & STOCK BROKERS PVT. LTD | E25: BUY | F25: 101,073 | G25: 104.67 | H25: BSE
A26: 2018-09-03 | B26: 540654 | C26: GSTL | D26: AZURA PROJECTS PRIVATE LIMITED . | E26: SELL | F26: 98,000 | G26: 66.1 | H26: BSE
A27: 2018-09-03 | B27: 532011 | C27: POOJAENT | D27: HIMANSHU P SHETH | E27: SELL | F27: 100,000 | G27: 34.25 | H27: BSE
A28: 2018-09-03 | B28: 532011 | C28: POOJAENT | D28: VASHUDEV LILARAM BHAGNANI | E28: BUY | F28: 100,000 | G28: 34.25 | H28: BSE
A29: 2018-09-03 | B29: 509835 | C29: PREMSYN | D29: AGARWAL SHRADHA HANSKUMAR | E29: SELL | F29: 70,858 | G29: 309.88 | H29: BSE
A30: 2018-09-03 | B30: 509835 | C30: PREMSYN | D30: DHARMENDRA CHOTALAL SHAH | E30: SELL | F30: 75,015 | G30: 310.5 | H30: BSE
A31: 2018-09-03 | B31: 509835 | C31: PREMSYN | D31: DHARMENDRA CHOTALAL SHAH | E31: BUY | F31: 75,013 | G31: 311.01 | H31: BSE
A32: 2018-09-03 | B32: 509835 | C32: PREMSYN | D32: SURESHBHAI BHAVANBHAI PATEL | E32: SELL | F32: 31,000 | G32: 309.99 | H32: BSE
A33: 2018-09-03 | B33: 509835 | C33: PREMSYN | D33: SURESHBHAI BHAVANBHAI PATEL | E33: BUY | F33: 30,000 | G33: 309.36 | H33: BSE
A34: 2018-09-03 | B34: 509835 | C34: PREMSYN | D34: DEEPSIKHA DEALERS PRIVATE LIMITED | E34: SELL | F34: 41,140 | G34: 311.42 | H34: BSE
A35: 2018-09-03 | B35: 509835 | C35: PREMSYN | D35: DEEPSIKHA DEALERS PRIVATE LIMITED | E35: BUY | F35: 41,140 | G35: 276.68 | H35: BSE
A36: 2018-09-03 | B36: 509835 | C36: PREMSYN | D36: MEENADEVI RAHULKUMAR KOTHARI | E36: SELL | F36: 31,855 | G36: 310.81 | H36: BSE
A37: 2018-09-03 | B37: 512217 | C37: PRISMMEDI | D37: AJOONI BIOTECH LIMITED | E37: SELL | F37: 124,230 | G37: 30.08 | H37: BSE
A38: 2018-09-03 | B38: 514264 | C38: SEASONST | D38: KUSH BANSAL | E38: SELL | F38: 29,000 | G38: 11.38 | H38: BSE
A39: 2018-09-03 | B39: 514264 | C39: SEASONST | D39: KUSH BANSAL | E39: BUY | F39: 38,000 | G39: 12.49 | H39: BSE
A40: 2018-09-03 | B40: 541799 | C40: SMEL | D40: MAGIC TOUCH SECURITIES PRIVATE LIMITED | E40: BUY | F40: 90,000 | G40: 9.75 | H40: BSE
A41: 2018-09-03 | B41: 541799 | C41: SMEL | D41: SHASHANK PRAVINCHANDRA DOSHI | E41: SELL | F41: 90,000 | G41: 9.75 | H41: BSE
A42: 2018-09-03 | B42: 523826 | C42: SOVERDIA | D42: SUMER AJAY GEHANI | E42: BUY | F42: 266,869 | G42: 7.4 | H42: BSE
A43: 2018-09-03 | B43: 523826 | C43: SOVERDIA | D43: RENUKA MOHAN CHANDIRAMANI | E43: SELL | F43: 266,869 | G43: 7.4 | H43: BSE
A44: 2018-09-03 | B44: 531307 | C44: SRK | D44: JAIN | E44: BUY | F44: 1,000,000 | G44: 0.5 | H44: BSE
A45: 2018-09-03 | B45: 531307 | C45: SRK | D45: OTL MINERALS PVT LTD | E45: SELL | F45: 497,754 | G45: 0.5 | H45: BSE
A46: 2018-09-03 | B46: 532070 | C46: SUPRBPA | D46: KRITHIKA SUBRAMANIAN | E46: SELL | F46: 50,000 | G46: 30 | H46: BSE
A47: 2018-09-03 | B47: 539353 | C47: SWARAJAUTO | D47: VIBRANT INVESTMENTS | E47: SELL | F47: 15,708 | G47: 477.05 | H47: BSE
A48: 2018-09-03 | B48: 539353 | C48: SWARAJAUTO | D48: CHETAN RASIKLAL SHAH | E48: BUY | F48: 15,001 | G48: 477.05 | H48: BSE
A49: 2018-09-03 | B49: 531518 | C49: VIKASPROP | D49: PUNEET | E49: SELL | F49: 1,700,000 | G49: 1.34 | H49: BSE
A50: 2018-09-03 | B50: 512064 | C50: VISTR | D50: DIVYAKANDA | E50: BUY | F50: 1,820 | G50: 34.89 | H50: BSE
A51: 2018-09-03 | B51: AARON | C51: Aaron Industries Limited | D51: RUPAL SANDIPBHAI DOSHI | E51: BUY | F51: 54,000 | G51: 38.28 | H51: NSE
A52: 2018-09-03 | B52: AARON | C52: Aaron Industries Limited | D52: SABIRKHAN BASIRKHAN PATHAN | E52: BUY | F52: 42,000 | G52: 37.8 | H52: NSE
A53: 2018-09-03 | B53: CELESTIAL | C53: Celestial Biolabs Limited | D53: GANESH KUMAR . | E53: BUY | F53: 223,679 | G53: 18.21 | H53: NSE
A54: 2018-09-03 | B54: CELESTIAL | C54: Celestial Biolabs Limited | D54: GIGANTIC ENTERPRISES | E54: BUY | F54: 122,675 | G54: 18.76 | H54: NSE
A55: 2018-09-03 | B55: DANGEE | C55: Dangee Dums Limited | D55: AVNISH JAYENDRABHAI SHAH | E55: BUY | F55: 56,000 | G55: 89.9 | H55: NSE
A56: 2018-09-03 | B56: DANGEE | C56: Dangee Dums Limited | D56: PATEL CHHABILDAS UDAYKUMAR | E56: BUY | F56: 59,200 | G56: 93.07 | H56: NSE
A57: 2018-09-03 | B57: DANGEE | C57: Dangee Dums Limited | D57: SHAAN LEISURE LIMITED | E57: BUY | F57: 60,800 | G57: 93.17 | H57: NSE
A58: 2018-09-03 | B58: DANGEE | C58: Dangee Dums Limited | D58: SUKETU SAUMILLAL SHAH | E58: BUY | F58: 99,200 | G58: 93.75 | H58: NSE
A59: 2018-09-03 | B59: DANGEE | C59: Dangee Dums Limited | D59: SWAPNIL MEHTA | E59: BUY | F59: 80,000 | G59: 94.34 | H59: NSE
A60: 2018-09-03 | B60: GSS | C60: GSS Infotech Limited | D60: ARCADIA SHARE & STOCK BROKERS PRIVATE LIMITED | E60: BUY | F60: 213,192 | G60: 105.57 | H60: NSE
A61: 2018-09-03 | B61: GTNIND | C61: GTN Industries Limited | D61: GIRNAR TRANSPORT COMPNY | E61: BUY | F61: 96,671 | G61: 21.34 | H61: NSE
A62: 2018-09-03 | B62: HDIL | C62: Housing Development and I | D62: ADROIT FINANCIAL SERVICES PRIVATE LIMITED | E62: BUY | F62: 2,743,312 | G62: 34.56 | H62: NSE
A63: 2018-09-03 | B63: HIKAL | C63: Hikal Limited | D63: HIMALAYA FINANCE & INV. CO | E63: BUY | F63: 1,779,967 | G63: 166.5 | H63: NSE
A64: 2018-09-03 | B64: HIKAL | C64: Hikal Limited | D64: KACHOLIA ASHISH | E64: BUY | F64: 2,000,000 | G64: 166.5 | H64: NSE
A65: 2018-09-03 | B65: HUSYSLTD | C65: Husys Consulting Ltd. | D65: ROY AMALRAJ | E65: BUY | F65: 12,000 | G65: 39.22 | H65: NSE
A66: 2018-09-03 | B66: IGPL | C66: IG Petrochemicals Ltd. | D66: BIRLA MUTUAL FUND A/C BIRLA SUN LIFE PURE VALUE FUND | E66: BUY | F66: 500,000 | G66: 480 | H66: NSE
A67: 2018-09-03 | B67: IGPL | C67: IG Petrochemicals Ltd. | D67: BIRLA SUN LIFE TRUSTEE COMPANY PVT LTD A/C BIRLA SUN LIFE LONG TERM ADVANTAGE FUND SERIES 1 | E67: BUY | F67: 500,000 | G67: 480 | H67: NSE
A68: 2018-09-03 | B68: IGPL | C68: IG Petrochemicals Ltd. | D68: SHEKHAVATI INVESTMENT CORPORATION LIMITED | E68: BUY | F68: 6,019 | G68: 479.12 | H68: NSE
A69: 2018-09-03 | B69: KARDA | C69: Karda Constructions Ltd | D69: ALACRITY SECURITIES LTD. | E69: BUY | F69: 100,000 | G69: 190.15 | H69: NSE
A70: 2018-09-03 | B70: KARDA | C70: Karda Constructions Ltd | D70: DOSHI SUDHA SURESHCHANDRA | E70: BUY | F70: 100000 | G70: 182.5 | H70: NSE
A71: 2018-09-03 | B71: KARDA | C71: Karda Constructions Ltd | D71: KAMLESH BALCHAND SHAH | E71: BUY | F71: 100000 | G71: 200 | H71: NSE
A72: 2018-09-03 | B72: KARDA | C72: Karda Constructions Ltd | D72: PATEL MANAV NARESHBHAI | E72: BUY | F72: 209565 | G72: 194.22 | H72: NSE
A73: 2018-09-03 | B73: KARDA | C73: Karda Constructions Ltd | D73: SUNFLOWER COMBROKING PRIVATE LIMITED | E73: BUY | F73: 176078 | G73: 196.55 | H73: NSE
A74: 2018-09-03 | B74: MAHLIFE | C74: Mahindra Lifespace DevLtd | D74: FIRST STATE INVESTMENT (HONGKONG) LTD A/C FIRST STATE INDIAN SUB CONTINENT FUND | E74: BUY | F74: 304865 | G74: 440.25 | H74: NSE
A75: 2018-09-03 | B75: CALSOFT | C75: CaliforniaSoft- Roll Sett | D75: VINAYAK GOPALKRISHNA KUDVA | E75: SELL | F75: 70000 | G75: 42.75 | H75: NSE
A76: 2018-09-03 | B76: CELESTIAL | C76: Celestial Biolabs Limited | D76: GIGANTIC ENTERPRISES | E76: SELL | F76: 122675 | G76: 18.63 | H76: NSE
A77: 2018-09-03 | B77: GSS | C77: GSS Infotech Limited | D77: ARCADIA SHARE & STOCK BROKERS PRIVATE LIMITED | E77: SELL | F77: 234588 | G77: 104.29 | H77: NSE
A78: 2018-09-03 | B78: GTNIND | C78: GTN Industries Limited | D78: GIRNAR TRANSPORT COMPNY | E78: SELL | F78: 96671 | G78: 21.51 | H78: NSE
A79: 2018-09-03 | B79: HDIL | C79: Housing Development and I | D79: ADROIT FINANCIAL SERVICES PRIVATE LIMITED | E79: SELL | F79: 2777485 | G79: 34.55 | H79: NSE
A80: 2018-09-03 | B80: HIKAL | C80: Hikal Limited | D80: THE INTERNATIONAL FINANCE CORPORATION | E80: SELL | F80: 3982517 | G80: 166.51 | H80: NSE
A81: 2018-09-03 | B81: IGPL | C81: IG Petrochemicals Ltd. | D81: SHEKHAVATI INVESTMENT CORPORATION LIMITED | E81: SELL | F81: 1027804 | G81: 480.02 | H81: NSE
A82: 2018-09-03 | B82: KARDA | C82: Karda Constructions Ltd | D82: ALACRITY SECURITIES LTD. | E82: SELL | F82: 100000 | G82: 182.5 | H82: NSE
A83: 2018-09-03 | B83: KARDA | C83: Karda Constructions Ltd | D83: DOSHI SUDHA SURESHCHANDRA | E83: SELL | F83: 100000 | G83: 190 | H83: NSE
A84: 2018-09-03 | B84: KARDA | C84: Karda Constructions Ltd | D84: PATEL MANAV NARESHBHAI | E84: SELL | F84: 209565 | G84: 196.29 | H84: NSE
A85: 2018-09-03 | B85: KARDA | C85: Karda Constructions Ltd | D85: SUNFLOWER COMBROKING PRIVATE LIMITED | E85: SELL | F85: 176078 | G85: 196.62 | H85: NSE
A86: 2018-09-03 | B86: MAHLIFE | C86: Mahindra Lifespace DevLtd | D86: AMERICAN FUND INSURANCE A/C AMERICAN INSURANCE SERIES GLOBAL SMALL CAPITALISATION FUND | E86: SELL | F86: 711051 | G86: 440.42 | H86: NSE
A87: 2018-09-03 | B87: SANCO | C87: Sanco Industries Ltd. | D87: CHP FINANCE PRIVATE LIMITED | E87: SELL | F87: 81406 | G87: 14.46 | H87: NSE

Sheet Call Tracker (Equity & F&O)
M5: Back To Main Page
A6: Retail Research Technical Calls & Fundamental Performance Report for the month of August -2018
M7: =Main!B10 -> 2018-09-04
B8: Positional Call
A9: Sr.no | B9: Date | D9: Company | E9: Rec | F9: Rec Price | G9: Stop Loss*** | H9: Call Closed At | I9: Target | J9: Remark | K9: Profit / Loss per Share | L9: Gain / Loss % | M9: Status | N9: Closed Date | O9: NSE Closed Price
A10: 1 | B10: 2018-08-23 | D10: PARAGMILK | E10: Buy | F10: 303-305 | G10: 289.7 | I10: 332-336 | J10: Open | O10: =VLOOKUP(D10,Sheet2!$A$1:M2194,6,0) -> 309.6 | R10: R
A11: 2 | B11: 2018-08-31 | D11: SIEMENS | E11: Buy | F11: 990-1000 | G11: 945 | I11: 1085-1095 | J11: Open | O11: =VLOOKUP(D11,Sheet2!$A$1:M2195,6,0) -> 1019.75 | R11: R
A12: 3 | B12: 2018-08-31 | D12: SUNPHARMA | E12: Buy | F12: 651 | G12: 618 | H12: 672.5 | I12: 700-720 | J12: Part profit of Rs.21.5/- | K12: =H12-F12 -> 21.5 | L12: =K12/F12 -> 3.30% | M12: Successful | N12: 2018-09-03 | O12: =VLOOKUP(D12,Sheet2!$A$1:M2196,6,0) -> 652.85 | R12: H
A13: 4 | B13: 2018-09-03 | D13: RECLTD | E13: Buy | F13: 120-122 | G13: 116 | I13: 135-140 | J13: Open | O13: =VLOOKUP(D13,Sheet2!$A$1:M2197,6,0) -> 119.8 | R13: H
A21: CLBS = Closing Basis *** | F21: Reinitiated $
A22: Dividend adjusted <> | F22: Revised stoploss #
A23: Part book {}
A24: Master Trade High Risk
A25: Sr.no | B25: Date | D25: Company | E25: Rec | F25: Rec Price | G25: Stop Loss | H25: Call Closed At | I25: Target | J25: Remark | K25: Profit / Loss per share | L25: Gain / Loss per Lot | M25: Lot | N25: Status | O25: Closed Date
A35: Master Trade Medium Risk
A36: Sr.no | B36: Date | D36: Company | E36: Rec | F36: Rec Price | G36: Stop Loss | H36: Call Closed At | I36: Target | J36: Remark | K36: Profit/ Loss per lot | L36: Gain / Loss per Lot | M36: Lot | N36: Status | O36: Closed Date
A37: 1 | B37: 2018-09-03 | D37: NIFTY 11600 PE SEP | E37: Buy | F37: 107-109 | G37: 75 | I37: 180 | J37: Open | R37: A
B49: Smart Delivery Trade
A50: Sr.no | B50: Date | D50: Company | E50: Rec | F50: Rec Price | G50: Stop Loss*** | H50: Call Closed At | I50: Target | J50: Remark | K50: Profit / Loss per Share | L50: Gain / Loss % | M50: Status | N50: Closed Date | O50: NSE Closed Price
A51: 1 | B51: 2018-08-21 | D51: M&M | E51: Sell | F51: 965-972 | G51: 1002 | I51: 920-910 | J51: Open | O51: =VLOOKUP(D51,Sheet2!$A$1:M2240,6,0) -> 965.3 | R51: H
A52: 2 | B52: 2018-08-23 | D52: CIPLA | E52: Buy | F52: 660-665 | G52: 638 | I52: 695-710 | J52: Open | O52: =VLOOKUP(D52,Sheet2!$A$1:M2241,6,0) -> 662.15 | R52: H
A53: 3 | B53: 2018-08-24 | D53: COLPAL | E53: Buy | F53: 1167-1171 | G53: 1122 | I53: 1260-1270 | J53: Open | O53: =VLOOKUP(D53,Sheet2!$A$1:M2242,6,0) -> 1169 | R53: R
A54: 4 | B54: 2018-08-24 | D54: DMART | E54: Buy | F54: 1575-1580 | G54: 1530 | I54: 1670-1680 | J54: Open | O54: =VLOOKUP(D54,Sheet2!$A$1:M2243,6,0) -> 1604.5 | R54: R
A55: 5 | B55: 2018-08-30 | D55: CHOLAFIN | E55: Buy | F55: 1460 | G55: 1414.4 | H55: 1506.5 | I55: 1530-1540 | J55: Profit of Rs. 46.5/- | K55: =H55-F55 -> 46.5 | L55: =K55/F55 -> 3.18% | M55: Successful | N55: 2018-09-03 | O55: =VLOOKUP(D55,Sheet2!$A$1:M2244,6,0) -> 1476.15 | R55: R
A56: 6 | B56: 2018-08-31 | D56: IBULHSGFIN | E56: Buy | F56: 1269-1275 | G56: 1238 | I56: 1330-1350 | J56: Open | O56: =VLOOKUP(D56,Sheet2!$A$1:M2245,6,0) -> 1259.25 | R56: H
A57: 7 | B57: 2018-09-03 | D57: HINDALCO | E57: Sell | F57: 241-243 | G57: 251.3 | I57: 225-220 | J57: Open | O57: =VLOOKUP(D57,Sheet2!$A$1:M2246,6,0) -> 237.95 | R57: R
A61: CLBS = Closing Basis *** | F61: Reinitiated $
A62: Dividend adjusted <> | F62: Revised stoploss #
B65: Momentum Call
A66: Sr.no | B66: Date | D66: Company | E66: Rec | F66: Rec Price | G66: Stop Loss | H66: Call Closed At | I66: Target | J66: Remark | K66: Profit / Loss per Share/Lot | L66: Gain / Loss % | M66: Gain / Loss per Lot | N66: Lot | O66: Status | P66: Closed Date | Q66: NSE Closed Price
A67: 1 | B67: 2018-08-31 | D67: TATAMOTORS SEP FUT | E67: Buy | F67: 266.5 | G67: 259 | H67: 272.5 | I67: 275-280 | J67: Profit of Rs. 6/- | K67: =H67-F67 -> 6 | M67: =K67*N67 -> 9000 | N67: 1500 | O67: Successful | P67: 2018-09-03 | R67: H
A68: 2 | B68: 2018-08-31 | D68: DIVISLAB SEP FUT | E68: Buy | F68: 1319 | G68: 1305 | H68: 1327.5 | I68: 1340-1345 | J68: Profit of Rs. 8.5/- | K68: =H68-F68 -> 8.5 | M68: =K68*N68 -> 6800 | N68: 800 | O68: Successful | P68: 2018-09-03 | R68: N
A69: 3 | B69: 2018-09-03 | D69: GLENMARK SEP FUT | E69: Buy | F69: 674-676 | G69: 663 | I69: 700 | J69: Open | R69: N
A70: 4 | B70: 2018-09-03 | D70: IGL SEP FUT | E70: Buy | F70: 290.5-291.5 | G70: 286.5 | I70: 300 | J70: Open | R70: H
A74: CLBS = Closing Basis ***
A75: Dividend adjusted <> | F75: Reinitiated $
F76: Revised stoploss #
B77: Quick Pick Intraday
A78: Sr.no | B78: Date | D78: Company | E78: Rec | F78: Rec Price | G78: Stop Loss*** | H78: Call Closed At | I78: Target | J78: Remark | K78: Profit / Loss per Share | L78: Status | M78: Closed Date
A79: 1 | B79: 2018-09-03 | D79: RELIANCE | E79: Buy | F79: 1254.5 | G79: 1238 | H79: 1238 | I79: 1280 | J79: Loss of Rs. 16.5 | K79: =H79-F79 -> -16.5 | L79: Unsuccessful | M79: 2018-09-03 | R79: H
A92: Techno -Funda (positional)
A93: Sr.no | B93: Date | D93: Company | E93: Rec | F93: Rec Price | G93: Stop Loss*** | H93: Call Closed At | I93: Target | J93: Remark | K93: Profit / Loss per Share | L93: Gain / Loss % | M93: Status | N93: Closed Date | O93: NSE Closed Price
A96: CLBS = Closing Basis *** | F96: Reinitiated $
A97: Dividend adjusted <> | F97: Revised stoploss #
B102: Investment Idea
A103: Sr.no | B103: Date | D103: Company | E103: Rec | F103: Rec Price | G103: Point of Review | H103: Close Rate | I103: Target | J103: Remark | K103: Profit / Loss per Share | L103: Gain / Loss % | M103: Status | N103: Closed Date
A104: 1 | B104: 2013-11-01 | D104: L&T Finance Holding | E104: Accu | F104: 82.00 | G104: - | H104: 100 | I104: 100.00 | J104: Target Achieved | K104: =H104-F104 -> 18.00 | L104: =K104/F104 -> 21.95% | M104: Successful | N104: 2016-10-14
A105: 2 | B105: 2014-06-04 | D105: Finolex Inds | E105: Buy | F105: 257.00 | G105: - | H105: 300 | I105: 300.00 | J105: Target Achieved | K105: =H105-F105 -> 43.00 | L105: 16.73% | M105: Successful | N105: 2014-07-02
A106: =1+A105 -> 3 | B106: 2014-07-08 | D106: JK Cement | E106: Buy | F106: 393.00 | G106: - | H106: 468 | I106: 468.00 | J106: Target Achieved | K106: =H106-F106 -> 75.00 | L106: 19.08% | M106: Successful | N106: 2014-08-12
A107: 4 | B107: 2014-08-06 | D107: Finolex Cables | E107: Buy | F107: 205.00 | G107: - | H107: 275 | I107: 250.00 | J107: Target Achieved | K107: 70.00 | L107: 34.15% | M107: Successful | N107: 2014-11-19
A108: 5 | B108: 2014-09-04 | D108: Exide Inds | E108: Buy | F108: 162.00 | G108: - | H108: 190 | I108: 190.00 | J108: Target Achieved | K108: 28.00 | L108: 17.28% | M108: Successful | N108: 2015-01-02
A109: 6 | B109: 2014-09-04 | D109: Deepak Nitrite | E109: Buy | F109: 75.00 | G109: - | H109: 91.5 | I109: 95-100 | J109: Profit of Rs.16.50/- | K109: 16.50 | L109: 22.00% | M109: Successful | N109: 2014-11-11
A110: 7 | B110: 2014-10-01 | D110: Mercks | E110: Buy | F110: 850.00 | G110: - | H110: 982.5 | I110: 1050.00 | J110: Profit of Rs.132.50/- | K110: 132.50 | L110: 15.59% | M110: Successful | N110: 2015-02-04
A111: 8 | B111: 2014-10-01 | D111: Grindwell Norton | E111: Buy | F111: 475.00 | G111: - | H111: 515 | I111: 600.00 | J111: Profit of Rs.40/- | K111: 40.00 | L111: 8.42% | M111: Successful | N111: 2014-10-27
A112: 9 | B112: 2014-10-01 | D112: Snowman Logistics | E112: Buy | F112: 86.00 | G112: - | H112: 99 | I112: 140.00 | J112: Profit of Rs.13.00/- | K112: 13.00 | L112: 15.12% | M112: Successful | N112: 2014-10-27
A113: 10 | B113: 2014-10-14 | D113: Birla Corp | E113: Buy | F113: 496.60 | G113: - | H113: 621 | I113: 580.00 | J113: Target Achieved | K113: 124.40 | L113: 25.05% | M113: Successful | N113: 2016-08-23
A114: 11 | B114: 2014-10-14 | D114: Ultratech Cem | E114: Buy | F114: 2481.90 | G114: - | H114: 2840 | I114: 2870.00 | J114: Profit of Rs.358.10/- | K114: 358.10 | L114: 14.43% | M114: Successful | N114: 2015-01-13
A115: =1+A112 -> 10 | B115: 2014-10-16 | D115: Sintex Inds | E115: Buy | F115: 84.50 | G115: - | H115: 93 | I115: 110.00 | J115: Profit of Rs.8.50/- | K115: 8.50 | L115: 10.06% | M115: Successful | N115: 2014-10-27
A116: =1+A115 -> 11 | B116: 2014-10-16 | D116: HSIL | E116: Buy | F116: 401.00 | G116: - | H116: 428 | I116: 450.00 | J116: Profit of Rs.27.00/- | K116: 27.00 | L116: 6.73% | M116: Successful | N116: 2015-01-16
A117: 12 | B117: 2014-10-16 | D117: Eveready Inds | E117: Buy | F117: 101.00 | G117: - | H117: 112 | I117: 120.00 | J117: Profit of Rs.11.00/- | K117: 11.00 | L117: 10.89% | M117: Successful | N117: 2014-10-27
A118: 13 | B118: 2014-11-11 | D118: Pennar Inds | E118: Buy | F118: 59.00 | G118: - | H118: 76 | I118: 76.00 | J118: Target Achieved | K118: 17.00 | L118: 28.81% | M118: Successful | N118: 2017-10-24
A119: 14 | B119: 2014-11-11 | D119: Snowman Logistics | E119: Buy | F119: 99.00 | G119: - | H119: 120 | I119: 120.00 | J119: Profit of Rs.21/- | K119: 21.00 | L119: 21.21% | M119: Successful | N119: 2014-11-17
A120: 15 | B120: 2014-11-13 | D120: Dharamsi Morarji Chem | E120: Buy | F120: 22.00 | G120: - | H120: 33.55 | I120: 32.00 | J120: Profit of Rs 11.55/- | K120: 11.55 | L120: 52.50% | M120: Successful | N120: 2015-07-03
A121: 16 | B121: 2014-12-03 | D121: Tatachem | E121: Buy | F121: 440.00 | G121: - | H121: 520 | I121: 520.00 | J121: Profit of Rs 80.00/- | K121: 80.00 | L121: 18.18% | M121: Successful | N121: 2015-07-23
A122: 17 | B122: 2014-12-03 | D122: Advanta | E122: Buy | F122: 360.00 | G122: - | H122: 427 | I122: 425.00 | J122: Profit of Rs.67.00/- | K122: 67.00 | L122: 18.61% | M122: Successful | N122: 2015-02-23
A123: 18 | B123: 2015-01-08 | D123: GDL | E123: Buy | F123: 360.00 | G123: - | H123: 455 | I123: 420.00 | J123: Profit of Rs.95.00/- | K123: 95.00 | L123: 26.39% | M123: Successful | N123: 2015-01-20
A124: 19 | B124: 2015-01-08 | D124: NRB Bearing | E124: Buy | F124: 130.00 | H124: 175.5 | I124: 165.00 | J124: Profit of Rs 45.50/- | K124: 45.50 | L124: 35.00% | M124: Successful | N124: 2017-12-19
A125: 20 | B125: 2015-02-05 | D125: GSFC | E125: Accu | F125: 98.00 | H125: 120 | I125: 120.00 | J125: Target Achieved | K125: 22.00 | L125: 22.45% | M125: Successful | N125: 2017-01-18
A126: 21 | B126: 2015-02-05 | D126: Sundrmfast | E126: Accu | F126: 196.00 | H126: 262 | I126: 255.00 | J126: Target Achieved | K126: 66.00 | L126: 33.67% | M126: Successful | N126: 2016-08-17
A127: 22 | B127: 2015-03-04 | D127: GPPL | E127: Accu | F127: 230-240 | I127: 280-285 | J127: Open
A128: 23 | B128: 2015-03-04 | D128: ORIENTCEM | E128: Accu | F128: 185.00 | H128: 224 | I128: 220-225 | J128: Target Achieved | K128: 39.00 | L128: =K128/F128 -> 21.08% | M128: Successful | N128: 2016-10-04
A129: 24 | B129: 2015-03-27 | D129: PFS | E129: Accu | F129: 49-50 | I129: 67.00 | J129: Open
A130: 25 | B130: 2015-03-30 | D130: Walchandnagar Ind Ltd | E130: Accu | F130: 183.50 | H130: 219 | I130: 218.00 | J130: Profit of Rs.35.50/- | K130: 35.50 | L130: =K130/F130 -> 19.35% | M130: Successful | N130: 2015-04-09
A131: 26 | B131: 2015-04-20 | D131: Kalpataru Power Transmission Ltd | E131: Accu | F131: =(227+237)/2 -> 232.00 | H131: 298 | I131: 298.00 | J131: Target Achieved | K131: 66.00 | L131: 28.45% | M131: Successful | N131: 2017-03-29
A132: 27 | B132: 2015-05-04 | D132: Mastek Ltd | E132: Buy | F132: 385.00 | H132: =212.5+331 -> 543.5 | I132: 510.00 | J132: Profit of Rs 158.50/- | K132: 158.50 | L132: 41.17% | M132: Successful | N132: 2015-08-19
A133: 28 | B133: 2015-05-04 | D133: Suprajit Eng | E133: Buy | F133: 115.50 | H133: 146 | I133: 142.00 | J133: Profit of Rs 30.50/- | K133: 30.50 | L133: 26.41% | M133: Successful | N133: 2015-07-17
A134: 29 | B134: 2015-05-27 | D134: TCI | E134: Buy | F134: 237.50 | H134: 279.5 | I134: 278.00 | J134: Target Achieved | K134: 42.00 | L134: 17.68% | M134: Successful | N134: 2015-08-06
A135: 30 | B135: 2015-06-19 | D135: HSIL | E135: Accu | F135: 340.00 | H135: 448 | I135: 448.00 | J135: Target Achieved | K135: 108.00 | L135: 31.76% | M135: Successful | N135: 2017-10-10
A136: 31 | B136: 2015-07-06 | D136: Capital First | E136: Accu | F136: 390.00 | H136: 460 | I136: 460.00 | J136: Target Achieved | K136: 70.00 | L136: 17.95% | M136: Successful | N136: 2016-04-18
A137: 32 | B137: 2015-07-10 | D137: Dolphin OffShore | E137: Accu | F137: 122.5 | H137: 61.00 | I137: 172.00 | J137: Loss of Rs.61.50/- | K137: -61.50 | L137: -50.20% | M137: Unsuccessful | N137: 2018-08-21
A138: 33 | B138: 2015-08-03 | D138: Allcargo logistics | E138: Accu | F138: 297.50 | H138: 350 | I138: 360.00 | J138: Profit of Rs 52.50/- | K138: 52.50 | L138: =K138/F138 -> 17.65% | M138: Successful | N138: 2015-08-16
A139: 34 | B139: 2015-08-03 | D139: Camline Fine | E139: Accu | F139: 115.50 | H139: 149 | I139: 140.00 | J139: Profit of Rs 33.50/- | K139: 33.50 | L139: 29.00% | M139: Successful | N139: 2017-01-05
A140: 35 | B140: 2015-09-04 | D140: TCI | E140: Accu | F140: 226.00 | H140: 292 | I140: 292.00 | J140: Target Achieved | K140: 66.00 | L140: 29.20% | M140: Successful | N140: 2015-10-09
A141: 36 | B141: 2015-09-07 | D141: Kalpataru Power Transmission Ltd | E141: Accu | F141: 232.50 | H141: 312.5 | I141: 310.00 | J141: Target Achieved | K141: 80.00 | L141: 34.41% | M141: Successful | N141: 2017-03-29
A142: 37 | B142: 2015-09-21 | D142: LLOYD ELECTRIC & ENG LTD | E142: Accu | F142: 196.50 | H142: 238 | I142: 238.00 | J142: Target Achieved | K142: 41.50 | L142: 21.12% | M142: Successful | N142: 2015-10-14
A143: 38 | B143: 2015-09-24 | D143: L&T Finance Holding | E143: Accu | F143: 65.00 | H143: 82 | I143: 82.00 | J143: Target Achieved | K143: 17.00 | L143: 26.15% | M143: Successful | N143: 2016-07-27
A144: 39 | B144: 2015-10-14 | D144: KEC International ltd | E144: Accu | F144: 144.00 | H144: 182.5 | I144: 181.00 | J144: Target Achieved | K144: 38.50 | L144: 26.74% | M144: Successful | N144: 2017-03-23
A145: 40 | B145: 2015-10-14 | D145: Gruh Finance | E145: Accu | F145: 264.00 | H145: 311 | I145: 311.00 | J145: Target Achieved | K145: 47.00 | L145: 17.80% | M145: Successful | N145: 2016-08-22
A146: 41 | B146: 2015-11-10 | D146: Pidilitind | E146: Buy | F146: 549.50 | H146: 630 | I146: 630.00 | J146: Target Achieved | K146: 80.50 | L146: 14.65% | M146: Successful | N146: 2016-02-19
A147: 42 | B147: 2015-12-04 | D147: Zensar Technology | E147: Accu | F147: 1027.50 | H147: 1315 | I147: 1250.00 | J147: Target Achieved | K147: =H147-F147 -> 287.50 | L147: 27.98% | M147: Successful | N147: 2018-05-24
A148: 43 | B148: 2015-12-29 | D148: Vinati Organics Ltd | E148: Accu | F148: 465.00 | H148: 540 | I148: 540.00 | J148: Target Achieved | K148: 75.00 | L148: =K148/F148 -> 16.13% | M148: Successful | N148: 2016-06-09
A149: 44 | B149: 2016-01-11 | D149: GSFC | E149: Buy | F149: 81.00 | H149: 110 | I149: 110.00 | J149: Target Achieved | K149: 29.00 | L149: 35.80% | M149: Successful | N149: 2017-01-10
A150: 45 | B150: 2016-01-13 | D150: SSWL | E150: Buy | F150: 417.50 | H150: 547 | I150: 535.00 | J150: Target Achieved | K150: 129.50 | L150: 31.02% | M150: Successful | N150: 2016-07-27
A151: 46 | B151: 2016-02-08 | D151: Persistent System Ltd | E151: Accu | F151: 650.00 | H151: 800 | I151: 800.00 | J151: Target Achieved | K151: 150.00 | L151: 23.08% | M151: Successful | N151: 2018-02-23
A152: 47 | B152: 2016-03-04 | D152: UPL | E152: Accu | F152: 437.50 | H152: 504.5 | I152: 522.00 | J152: Profit of Rs.67/- | K152: 67.00 | L152: 15.31% | M152: Successful | N152: 2016-04-20
A153: 48 | B153: 2016-03-09 | D153: Ashoka Buildcon Ltd | E153: Accu | F153: 189.50 | H153: 218 | I153: 218.00 | J153: Target Achieved | K153: 28.50 | L153: 15.04% | M153: Successful | N153: 2017-10-26
A154: 49 | B154: 2016-04-11 | D154: PTC INDIA FIN SERV LTD | E154: Accu | F154: 36-37 | I154: 60.00 | J154: Open
A155: 50 | B155: 2016-04-12 | D155: CAMLINFINE $ | E155: Accu | F155: 93.00 | H155: 149 | I155: 140.00 | J155: Profit of Rs 56/- | K155: 56.00 | L155: =K155/F155 -> 60.22% | M155: Successful | N155: 2017-01-05
A156: 51 | B156: 2016-04-12 | D156: Greaves Cotton Ltd. | E156: Accu | F156: 130.00 | H156: 150 | I156: 150-155 | J156: Target Achieved | K156: 20.00 | L156: 15.38% | M156: Successful | N156: 2016-07-13
A157: 52 | B157: 2016-04-13 | D157: DHFL | E157: Accu | F157: 196.00 | H157: 299 | I157: 299.00 | J157: Target Achieved | K157: 103.00 | L157: 52.55% | M157: Successful | N157: 2016-09-07
A158: 53 | B158: 2016-04-13 | D158: Magma | E158: Accu | F158: 88.00 | H158: 103 | I158: 103.00 | J158: Target Achieved | K158: 15.00 | L158: 17.05% | M158: Successful | N158: 2016-06-09
A159: 54 | B159: 2016-05-02 | D159: KEC International ltd $ | E159: Accu | F159: 127.50 | H159: 148 | I159: 148-150 | J159: Target Achieved | K159: 20.50 | L159: 16.08% | M159: Successful | N159: 2016-07-13
A160: 55 | B160: 2016-05-03 | D160: Mindtree | E160: Accu | F160: 675.00 | H160: 815 | I160: 790-800 | J160: Target Achieved | K160: 140.00 | L160: 20.74% | M160: Successful | N160: 2018-02-23
A161: 56 | B161: 2016-06-01 | D161: Atulauto | E161: Accu | F161: 495-505 | I161: 565-570 | J161: Open
A162: 57 | B162: 2016-06-06 | D162: TRITURBINE | E162: Accu | F162: 110.00 | H162: 126.5 | I162: 125.00 | J162: Profit of Rs.16.50/- | K162: 16.50 | L162: =K162/F162 -> 15.00% | M162: Successful | N162: 2016-07-01
A163: 58 | B163: 2016-06-17 | D163: Pennar Industries Ltd | E163: Accu | F163: 44.00 | H163: 69.5 | I163: 69.50 | J163: Profit of Rs.25.50/- | K163: 25.50 | L163: =K163/F163 -> 57.95% | M163: Successful | N163: 2017-08-30
A164: 59 | B164: 2016-06-28 | D164: EVEREADY INDS. IND. LTD. | E164: Accu | F164: 262.50 | H164: 340 | I164: 333.00 | J164: Profit of Rs.77.50/- | K164: 77.50 | L164: =K164/F164 -> 29.52% | M164: Successful | N164: 2017-10-09
A165: 60 | B165: 2016-06-28 | D165: FIEM INDUSTRIES LIMITED | E165: Accu | F165: 840.00 | H165: 1230 | I165: 1230.00 | J165: Target Achieved | K165: 390.00 | L165: =K165/F165 -> 46.43% | M165: Successful | N165: 2016-10-06
A166: 61 | B166: 2016-07-05 | D166: Bajaj Corp Ltd | E166: Accu | F166: 395 | H166: 468.50 | I166: 510.00 | J166: Part profit of Rs.73.50/- | K166: 73.50 | L166: =K166/F166 -> 19% | M166: Successful | N166: 2017-08-30
A167: 62 | B167: 2016-08-02 | D167: GPPL $ | E167: Buy | F167: 167-172 | I167: 198-200 | J167: Open
A168: 63 | B168: 2016-08-04 | D168: WONDERLA HOLIDAYS LTD | E168: Accu | F168: 395-405 | I168: 475.00 | J168: Open
A169: 64 | B169: 2016-08-11 | D169: CAMLINFINE | E169: Accu | F169: 86.50 | H169: 130 | I169: 130.00 | J169: Profit of Rs.43.50/- | K169: =H169-F169 -> 43.50 | L169: =K169/F169 -> 50.29% | M169: Successful | N169: 2017-12-22
A170: 65 | B170: 2016-08-18 | D170: GRANULES | E170: Accu | F170: 133.5 | H170: 126.50 | I170: 178.00 | J170: Exit | K170: -7.00 | L170: -5.24% | M170: Unsuccessful | N170: 2016-09-02
A171: 66 | B171: 2016-08-31 | D171: VA TECH WABAG | E171: Accu | F171: 560.00 | H171: 725 | I171: 725.00 | J171: Target Achieved | K171: 165.00 | L171: 29.46% | M171: Successful | N171: 2016-03-27
A172: 67 | B172: 2016-09-01 | D172: SKIPPER LIMITED | E172: Accu | F172: 160.50 | H172: 210 | I172: 210.00 | J172: Target Achieved | K172: 49.50 | L172: 30.84% | M172: Successful | N172: 2017-05-16
A173: 68 | B173: 2016-10-03 | D173: IFB Industries | E173: Accu | F173: 430.00 | H173: 596 | I173: 575.00 | J173: Profit of Rs.166/- | K173: 166.00 | L173: 38.60% | M173: Successful | N173: 2017-02-03
A174: 69 | B174: 2016-10-14 | D174: ASIANTILES | E174: Accu | F174: 280.00 | H174: 345 | I174: 345.00 | J174: Target Achieved | K174: 65.00 | L174: 23.21% | M174: Successful | N174: 2017-03-20
A175: 70 | B175: 2016-10-14 | D175: DEEPIND | E175: Accu | F175: 245.00 | H175: 325.5 | I175: 330.00 | J175: Profit of Rs.80.5/- | K175: 80.50 | L175: 32.86% | M175: Successful | N175: 2017-02-03
A176: 71 | B176: 2016-10-17 | D176: DCBBANK | E176: Accu | F176: 125.00 | H176: 160 | I176: 160.00 | J176: Target Achieved | K176: 35.00 | L176: 28.00% | M176: Successful | N176: 2017-03-09
A177: 72 | B177: 2016-10-17 | D177: ORIENTREF | E177: Accu | F177: 114.00 | H177: 145 | I177: 145.00 | J177: Target Achieved | K177: 31.00 | L177: =K177/F177 -> 27.19% | M177: Successful | N177: 2017-05-04
A178: 73 | B178: 2016-10-17 | D178: GANECOS | E178: Accu | F178: 212.00 | H178: 280 | I178: 276.00 | J178: Profit of Rs.68/- | K178: 68.00 | L178: =K178/F178 -> 32.08% | M178: Successful | N178: 2017-05-03
A179: 74 | B179: 2016-11-04 | D179: NBCC | E179: Accu | F179: 155.00 | H179: 210 | I179: 210.00 | J179: Profit of Rs.55/- | K179: 55.00 | L179: =K179/F179 -> 35.48% | M179: Successful | N179: 2017-07-28
A180: 75 | B180: 2016-12-06 | D180: PRECAM | E180: Accu | F180: 150.5 | H180: 72.50 | I180: 174.00 | J180: Loss of Rs.78/- | K180: -78.00 | L180: =K180/F180 -> -51.83% | M180: Unsuccessful | N180: 2018-08-21
A181: 76 | B181: 2016-12-08 | D181: INFRATEL | E181: Accu | F181: 380.00 | H181: 478 | I181: 468.00 | J181: Target Achieved | K181: 98.00 | L181: =K181/F181 -> 25.79% | M181: Successful | N181: 2017-10-17
A182: 77 | B182: 2016-12-30 | D182: GODREJPROP | E182: Accu | F182: 305.00 | H182: 375 | I182: 375.00 | J182: Target Achieved | K182: 70.00 | L182: 22.95% | M182: Successful | N182: 2017-02-02
A183: 78 | B183: 2017-01-04 | D183: DEEPAKNTR | E183: Accu | F183: 99.50 | H183: 158 | I183: 158.00 | J183: Target Achieved | K183: 58.50 | L183: 58.79% | M183: Successful | N183: 2017-06-12
A184: 79 | B184: 2017-02-20 | D184: SUBROS | E184: Accu | F184: 202.50 | H184: 234 | I184: 234.00 | J184: Target Achieved | K184: 31.50 | L184: 15.56% | M184: Successful | N184: 2017-04-11
A185: 80 | B185: 2017-02-20 | D185: RECLTD | E185: Accu | F185: 140.50 | H185: 220 | I185: 220.00 | J185: Target Achieved | K185: 79.50 | L185: 56.58% | M185: Successful | N185: 2017-05-09
A186: 81 | B186: 2017-03-24 | D186: VRLLOG | E186: Accu | F186: 300.50 | H186: 417.5 | I186: 420.00 | J186: Profit of Rs.117/- | K186: 117.00 | L186: 38.94% | M186: Successful | N186: 2017-12-01
A187: 82 | B187: 2017-03-24 | D187: FIEMIND | E187: Accu | F187: 850.00 | H187: 1042.5 | I187: 1023.00 | J187: Profit of Rs 192.50/- | K187: 192.50 | L187: 22.65% | M187: Successful | N187: 2017-04-05
A188: 83 | B188: 2017-04-05 | D188: RATNAMANI | E188: Accu | F188: 785.00 | H188: 930 | I188: 920.00 | J188: Profit of Rs.145/- | K188: 145.00 | L188: 18.47% | M188: Successful | N188: 2017-08-29
A189: 84 | B189: 2017-04-06 | D189: ZEEMEDIA | E189: Accu | F189: 39-41 | I189: 60.00 | J189: Open
A190: 85 | B190: 2017-04-12 | D190: DABUR | E190: Accu | F190: 289.50 | H190: 354 | I190: 360.00 | J190: Profit of Rs.64.5/- | K190: 64.50 | L190: =K190/F190 -> 22.28% | M190: Successful | N190: 2017-11-01
A191: 86 | B191: 2017-04-20 | D191: KPRMILL | E191: Accu | F191: 700.00 | H191: 840 | I191: 840.00 | J191: Profit of Rs.140/- | K191: 140.00 | L191: =K191/F191 -> 20.00% | M191: Successful | N191: 2017-06-07
A192: 87 | B192: 2017-05-22 | D192: GREAVESCOT | E192: Accu | F192: 153-158 | I192: 190.00 | J192: Open
A193: 88 | B193: 2017-06-01 | D193: ESSELPACK | E193: Accu | F193: 260 | H193: 311.00 | I193: 340.00 | J193: Part profit of Rs.51/- | K193: =H193-F193 -> 51.00 | L193: =K193/F193 -> 20% | M193: Successful | N193: 2017-11-17
A194: 89 | B194: 2017-06-15 | D194: KEI | E194: Accu | F194: 214.50 | H194: 262 | I194: 262.00 | J194: Profit of Rs.47.5/- | K194: =H194-F194 -> 47.50 | L194: 22.14% | M194: Successful | N194: 2017-08-30
A195: 90 | B195: 2017-07-17 | D195: MAYURUNIQ | E195: Accu | F195: 370.00 | H195: 447.5 | I195: 450.00 | J195: Target Achieved | K195: 77.50 | L195: 20.95% | M195: Successful | N195: 2017-10-27
A196: 91 | B196: 2017-07-27 | D196: RAMCOCEM | E196: Accu | F196: 657.50 | H196: 825 | I196: 820.00 | J196: Target Achieved | K196: 167.50 | L196: 25.48% | M196: Successful | N196: 2017-12-21
A197: 92 | B197: 2017-08-17 | D197: FINPIPE | E197: Accu | F197: 605.00 | H197: 750 | I197: 750.00 | J197: Profit of Rs.145/- | K197: 145.00 | L197: 23.97% | M197: Successful | N197: 2017-10-19
A198: 93 | B198: 2017-09-01 | D198: SHK | E198: Accu | F198: 255 | H198: 307.50 | I198: 320.00 | J198: Part profit of Rs.52.5/- | K198: 52.50 | L198: 21% | M198: Successful | N198: 2017-12-29
A199: 94 | B199: 2017-09-19 | D199: SKIPPER | E199: Accu | F199: 215.00 | H199: 258 | I199: 258.00 | J199: Target Achieved | K199: 43.00 | L199: 20.00% | M199: Successful | N199: 2017-11-01
A200: 95 | B200: 2017-09-20 | D200: CAMLINFINE | E200: Accu | F200: 75.00 | H200: 90 | I200: 90.00 | J200: Profit of Rs.15.00/- | K200: 15.00 | L200: 20.00% | M200: Successful | N200: 2017-10-11
A201: 96 | B201: 2017-10-03 | D201: GNA | E201: Accu | F201: 315.00 | H201: 392 | I201: 384.00 | J201: Profit of Rs.77/- | K201: 77.00 | L201: 24.44% | M201: Successful | N201: 2017-10-09
A202: 97 | B202: 2017-10-05 | D202: NOCIL | E202: Accu | F202: 145.00 | H202: 179 | I202: 180.00 | J202: Profit of Rs.34/- | K202: 34.00 | L202: 23.45% | M202: Successful | N202: 2017-10-17
A203: 98 | B203: 2017-10-06 | D203: CENTURYPLY | E203: Accu | F203: 256.00 | H203: 323 | I203: 320.00 | J203: Target Achieved | K203: 67.00 | L203: 26.17% | M203: Successful | N203: 2017-11-28
A204: 99 | B204: 2017-10-09 | D204: RECLTD | E204: Accu | F204: 152.5 | H204: 183.50 | I204: 210.00 | J204: Part Profit of Rs.31/- | K204: 31.00 | L204: 20% | M204: Successful | N204: 2017-11-03
A205: 100 | B205: 2017-10-09 | D205: EIHOTEL | E205: Accu | F205: 137.50 | H205: 184 | I205: 183.00 | J205: Profit of Rs.46.5/- | K205: 46.50 | L205: 33.82% | M205: Successful | N205: 2018-01-08
A206: 101 | B206: 2017-10-10 | D206: BOROSIL | E206: Accu | F206: 895.00 | H206: 1122.5 | I206: 1078.00 | J206: Profit of Rs.227.5/- | K206: 227.50 | L206: 25.42% | M206: Successful | N206: 2018-01-17
A207: 102 | B207: 2017-10-10 | D207: NRBBEARING | E207: Accu | F207: 125.50 | H207: 158 | I207: 155.00 | J207: Profit of Rs.32.5/- | K207: 32.50 | L207: 25.90% | M207: Successful | N207: 2017-11-28
A208: 103 | B208: 2017-10-12 | D208: CYIENT | E208: Accu | F208: 525.00 | H208: 629 | I208: 629.00 | J208: Target Achieved | K208: 104.00 | L208: 19.81% | M208: Successful | N208: 2018-01-19
A209: 104 | B209: 2017-11-07 | D209: HATSUN | E209: Accu | F209: 740.00 | H209: 892.5 | I209: 900.00 | J209: Profit of Rs.152.5/- | K209: 152.50 | L209: 20.61% | M209: Successful | N209: 2017-11-13
A210: 105 | B210: 2017-12-04 | D210: SANGHIIND | E210: Accu | F210: 118.50 | H210: 143.5 | I210: 145.00 | J210: Profit of Rs.25/- | K210: 25.00 | L210: 21.10% | M210: Successful | N210: 2017-12-28
A211: 106 | B211: 2017-12-05 | D211: ALLCARGO | E211: Accu | F211: 177.5 | H211: 215.00 | I211: 230.00 | J211: Part Profit of Rs.37.5/- | K211: 37.50 | L211: 21% | M211: Successful | N211: 2017-12-27
A212: 107 | B212: 2017-12-21 | D212: KAJARIACER | E212: Accu | F212: 710-720 | I212: 872.00 | J212: Open
A213: 108 | B213: 2017-12-29 | D213: GNA | E213: Accu | F213: 435.00 | H213: 542.5 | I213: 539.00 | J213: Target Achieved | K213: =H213-F213 -> 107.50 | L213: =K213/F213 -> 24.71% | M213: Successful | N213: 2018-04-16
A214: 109 | B214: 2017-12-29 | D214: ZENSARTECH | E214: Accu | F214: 885.00 | H214: 1090 | I214: 1084.00 | J214: Target Achieved | K214: 205.00 | L214: =K214/F214 -> 23.16% | M214: Successful | N214: 2018-04-23
A215: 110 | B215: 2018-02-07 | D215: GREAVESCOT | E215: Accu | F215: 130-132 | I215: 190.00 | J215: Open
A216: 111 | B216: 2018-02-27 | D216: MOLDTKPAC | E216: Accu | F216: 320-330 | I216: 398.00 | J216: Open
A217: 112 | B217: 2018-03-05 | D217: LICHSGFIN | E217: Accu | F217: 505-515 | I217: 672.00 | J217: Open
A218: 113 | B218: 2018-04-02 | D218: EVERESTIND | E218: Accu | F218: 492.5 | H218: 589.00 | I218: 613.00 | J218: Part Profit of Rs.37.5/- | K218: =H218-F218 -> 96.50 | L218: =K218/F218 -> 20% | M218: Successful | N218: 2018-08-21
A219: 114 | B219: 2018-04-04 | D219: GPPL | E219: Accu | F219: 140-143 | I219: 180.00 | J219: Open
A220: 115 | B220: 2018-04-19 | D220: MANPASAND | E220: Accu | F220: 430 | H220: 220.00 | I220: 537.00 | J220: Loss of Rs.210/- | K220: =H220-F220 -> -210.00 | L220: =K220/F220 -> -48.84% | M220: Unsuccessful | N220: 2018-06-01
A221: 116 | B221: 2018-04-30 | D221: HEIDELBERG | E221: Accu | F221: 154-158 | I221: 196.00 | J221: Open
A222: 117 | B222: 2018-05-17 | D222: PHILIPCARB | E222: Accu | F222: 230-240 | I222: 348.00 | J222: Open
A223: 118 | B223: 2018-06-07 | D223: KEC | E223: Accu | F223: 340-345 | I223: 439.00 | J223: Open
A224: 119 | B224: 2018-07-04 | D224: ASHOKLEY | E224: Accu | F224: 125-130 | I224: 170.00 | J224: Open
A225: 120 | B225: 2018-07-13 | D225: FCONSUMER | E225: Accu | F225: 46-47 | I225: 59.00 | J225: Open
A226: 121 | B226: 2018-07-25 | D226: ZEEMEDIA | E226: Accu | F226: 27-28 | I226: 44.00 | J226: Open
A227: 122 | B227: 2018-08-06 | D227: GABRIEL | E227: Accu | F227: 148-152 | I227: 182.00 | J227: Open
A228: 123 | B228: 2018-08-23 | D228: INDIANHUME | E228: Accu | F228: 280-290 | I228: 364.00 | J228: Open
A229: 124 | B229: 2018-08-29 | D229: GRINDWELL | E229: Accu | F229: 520-530 | I229: 635.00 | J229: Open
F233: Reinitiated $
A235: Disclaimer:
A236: This document has been prepared by the Retail Research Desk of Asit C Mehta
A237: Investment Intermediates Ltd. and is meant for use of the recipient only
A238: and is not for circulation. This document is not to be reported or
A239: copied or made available to others. It should not be considered to be
A240: taken as an offer to sell or a solicitation to buy any security. The
A241: information contained herein is from sources believed reliable. We do
A242: not represent that it is accurate or complete and it should not be
A243: relied upon as such. We may from time to time have positions in and buy
A244: and sell securities referred to herein

Sheet Sheet2 (hidden)
A1: SYMBOL | B1: SERIES | C1: OPEN | D1: HIGH | E1: LOW | F1: CLOSE | G1: LAST | H1: PREVCLOSE | I1: TOTTRDQTY | J1: TOTTRDVAL | K1: TIMESTAMP | L1: TOTALTRADES | M1: ISIN | N1: ISIN
A2: 20MICRONS | B2: EQ | C2: 50 | D2: 50 | E2: 49 | F2: 49.25 | G2: 49.2 | H2: 49.2 | I2: 55136 | J2: 2719930.8 | K2: 2018-08-31 | L2: 539 | M2: INE144J01027
A3: 21STCENMGM | B3: EQ | C3: 34.65 | D3: 35.35 | E3: 34.65 | F3: 34.65 | G3: 34.65 | H3: 35.35 | I3: 2232 | J3: 77520.8 | K3: 2018-08-31 | L3: 17 | M3: INE253B01015
A4: 3IINFOTECH | B4: EQ | C4: 3.65 | D4: 3.65 | E4: 3.55 | F4: 3.6 | G4: 3.65 | H4: 3.6 | I4: 1733563 | J4: 6269914.9 | K4: 2018-08-31 | L4: 620 | M4: INE748C01020
A5: 3MINDIA | B5: EQ | C5: 26000 | D5: 26248.1 | E5: 25660 | F5: 25945 | G5: 25711 | H5: 26007.45 | I5: 3199 | J5: 82963931.1 | K5: 2018-08-31 | L5: 866 | M5: INE470A01017
A6: 3PLAND | B6: BE | C6: 12.35 | D6: 12.35 | E6: 12.35 | F6: 12.35 | G6: 12.35 | H6: 13 | I6: 3 | J6: 37.05 | K6: 2018-08-31 | L6: 1 | M6: INE105C01023
A7: 5PAISA | B7: EQ | C7: 309 | D7: 314.95 | E7: 295 | F7: 311.7 | G7: 312.4 | H7: 302.5 | I7: 5511 | J7: 1709368.75 | K7: 2018-08-31 | L7: 290 | M7: INE618L01018
A8: 63MOONS | B8: EQ | C8: 78 | D8: 81.55 | E8: 77.55 | F8: 79.75 | G8: 79.25 | H8: 78 | I8: 194419 | J8: 15555953.95 | K8: 2018-08-31 | L8: 2238 | M8: INE111B01023
A9: 8KMILES | B9: BE | C9: 321 | D9: 327.1 | E9: 312 | F9: 327.1 | G9: 327.1 | H9: 311.55 | I9: 48845 | J9: 15862143.35 | K9: 2018-08-31 | L9: 914 | M9: INE650K01021
A10: A2ZINFRA | B10: EQ | C10: 20.75 | D10: 21.45 | E10: 19.8 | F10: 20.65 | G10: 20.55 | H10: 20.55 | I10: 1105980 | J10: 22921985.85 | K10: 2018-08-31 | L10: 3347 | M10: INE619I01012
A11: AARTIDRUGS | B11: EQ | C11: 550 | D11: 574 | E11: 546.5 | F11: 554.95 | G11: 552 | H11: 547.9 | I11: 50210 | J11: 27985747.75 | K11: 2018-08-31 | L11: 1635 | M11: INE767A01016
A12: AARTIIND | B12: EQ | C12: 1386 | D12: 1389.95 | E12: 1354.55 | F12: 1375 | G12: 1376.9 | H12: 1381 | I12: 15196 | J12: 20861284.2 | K12: 2018-08-31 | L12: 1363 | M12: INE769A01020
A13: AARVEEDEN | B13: EQ | C13: 28.5 | D13: 28.5 | E13: 27.55 | F13: 27.95 | G13: 27.95 | H13: 27.95 | I13: 38556 | J13: 1079288.25 | K13: 2018-08-31 | L13: 197 | M13: INE273D01019
A14: ABAN | B14: EQ | C14: 115.95 | D14: 117.1 | E14: 114.4 | F14: 115.5 | G14: 115.2 | H14: 115.85 | I14: 404839 | J14: 46827537.35 | K14: 2018-08-31 | L14: 4674 | M14: INE421A01028
A15: ABB | B15: EQ | C15: 1316 | D15: 1325 | E15: 1302 | F15: 1308.4 | G15: 1310 | H15: 1309.55 | I15: 41420 | J15: 54484919.15 | K15: 2018-08-31 | L15: 4237 | M15: INE117A01022
A16: ABBOTINDIA | B16: EQ | C16: 8012 | D16: 8699 | E16: 7981 | F16: 8330.75 | G16: 8270 | H16: 7956.9 | I16: 54263 | J16: 449923926.2 | K16: 2018-08-31 | L16: 7669 | M16: INE358A01014
A17: ABCAPITAL | B17: EQ | C17: 142.8 | D17: 142.9 | E17: 140.3 | F17: 141.25 | G17: 141.1 | H17: 143.35 | I17: 1022709 | J17: 144609700.6 | K17: 2018-08-31 | L17: 10096 | M17: INE674K01013
A18: ABFRL | B18: EQ | C18: 197.7 | D18: 200.6 | E18: 195 | F18: 198.5 | G18: 199.6 | H18: 196.8 | I18: 1052464 | J18: 208009967.3 | K18: 2018-08-31 | L18: 11813 | M18: INE647O01011
A19: ABMINTLTD | B19: BE | C19: 17 | D19: 17 | E19: 17 | F19: 17 | G19: 17 | H19: 16.2 | I19: 18 | J19: 306 | K19: 2018-08-31 | L19: 2 | M19: INE251C01017
A20: ACC | B20: EQ | C20: 1628.5 | D20: 1645 | E20: 1622.45 | F20: 1638.75 | G20: 1643 | H20: 1624.05 | I20: 708924 | J20: 1157046915 | K20: 2018-08-31 | L20: 27213 | M20: INE012A01025
A21: ACCELYA | B21: EQ | C21: 995.1 | D21: 997.4 | E21: 990.25 | F21: 992.15 | G21: 991.9 | H21: 993.7 | I21: 6878 | J21: 6833210.25 | K21: 2018-08-31 | L21: 899 | M21: INE793A01012
A22: ACE | B22: EQ | C22: 137.1 | D22: 139.2 | E22: 134.5 | F22: 135.5 | G22: 135.5 | H22: 137.45 | I22: 171258 | J22: 23393124.05 | K22: 2018-08-31 | L22: 2064 | M22: INE731H01025
A23: ADANIENT | B23: EQ | C23: 225 | D23: 228.6 | E23: 222.35 | F23: 225.25 | G23: 224 | H23: 224 | I23: 14184713 | J23: 3198191938 | K23: 2018-08-31 | L23: 67367 | M23: INE423A01024
A24: ADANIGREEN | B24: EQ | C24: 59 | D24: 59.4 | E24: 56.9 | F24: 57.4 | G24: 57.15 | H24: 59.05 | I24: 611779 | J24: 35531856.5 | K24: 2018-08-31 | L24: 3877 | M24: INE364U01010
A25: ADANIPORTS | B25: EQ | C25: 384 | D25: 394 | E25: 381.2 | F25: 383.15 | G25: 382.6 | H25: 383.75 | I25: 3931829 | J25: 1515998483 | K25: 2018-08-31 | L25: 64798 | M25: INE742F01042
A26: ADANIPOWER | B26: EQ | C26: 34.55 | D26: 35.65 | E26: 33.55 | F26: 35.4 | G26: 35.6 | H26: 34.45 | I26: 30759470 | J26: 1067793748 | K26: 2018-08-31 | L26: 32961 | M26: INE814H01011
A27: ADANITRANS | B27: EQ | C27: 230 | D27: 236.7 | E27: 225.5 | F27: 228.9 | G27: 228.3 | H27: 230.45 | I27: 952355 | J27: 219540827.8 | K27: 2018-08-31 | L27: 11177 | M27: INE931S01010
A28: ADFFOODS | B28: EQ | C28: 263 | D28: 269 | E28: 261 | F28: 266.1 | G28: 266.2 | H28: 261.95 | I28: 75239 | J28: 19889055 | K28: 2018-08-31 | L28: 1170 | M28: INE982B01019
A29: ADHUNIK | B29: BE | C29: 3.55 | D29: 3.55 | E29: 3.4 | F29: 3.55 | G29: 3.55 | H29: 3.55 | I29: 22161 | J29: 75881.05 | K29: 2018-08-31 | L29: 32 | M29: INE400H01019
A30: ADHUNIKIND | B30: EQ | C30: 71.35 | D30: 72.65 | E30: 69.95 | F30: 71.9 | G30: 70.35 | H30: 71 | I30: 22786 | J30: 1629819.05 | K30: 2018-08-31 | L30: 159 | M30: INE452L01012
A31: ADLABS | B31: EQ | C31: 35.9 | D31: 37.4 | E31: 35.75 | F31: 36.7 | G31: 36.9 | H31: 36.45 | I31: 82448 | J31: 3021824.55 | K31: 2018-08-31 | L31: 872 | M31: INE172N01012
A32: ADORWELD | B32: EQ | C32: 345 | D32: 355.5 | E32: 344.1 | F32: 352.1 | G32: 353.4 | H32: 347.35 | I32: 6606 | J32: 2313026.5 | K32: 2018-08-31 | L32: 243 | M32: INE045A01017
A33: ADROITINFO | B33: BE | C33: 28.7 | D33: 30.15 | E33: 27.6 | F33: 29.85 | G33: 30 | H33: 28.75 | I33: 36400 | J33: 1057768.6 | K33: 2018-08-31 | L33: 49 | M33: INE737B01033
A34: ADSL | B34: EQ | C34: 14.85 | D34: 14.85 | E34: 14.25 | F34: 14.6 | G34: 14.7 | H34: 14.35 | I34: 12563 | J34: 183493.8 | K34: 2018-08-31 | L34: 41 | M34: INE102I01027
A35: ADVANIHOTR | B35: EQ | C35: 50 | D35: 50 | E35: 47.65 | F35: 48.2 | G35: 49.1 | H35: 48.35 | I35: 7135 | J35: 347711.5 | K35: 2018-08-31 | L35: 110 | M35: INE199C01026
A36: ADVENZYMES | B36: EQ | C36: 204.8 | D36: 213.4 | E36: 203.85 | F36: 209.45 | G36: 209.05 | H36: 204.1 | I36: 269393 | J36: 55966743.75 | K36: 2018-08-31 | L36: 4505 | M36: INE837H01020
A37: AEGISCHEM | B37: EQ | C37: 227.6 | D37: 228 | E37: 218.3 | F37: 220.55 | G37: 219.5 | H37: 227.6 | I37: 148945 | J37: 33037718.8 | K37: 2018-08-31 | L37: 3195 | M37: INE208C01025
A38: AFL | B38: EQ | C38: 84.75 | D38: 85.15 | E38: 77.1 | F38: 77.55 | G38: 77.25 | H38: 82.45 | I38: 103440 | J38: 8167760.3 | K38: 2018-08-31 | L38: 980 | M38: INE020G01017
A39: AGARIND | B39: EQ | C39: 294.9 | D39: 294.9 | E39: 272.25 | F39: 278.2 | G39: 287.5 | H39: 288.2 | I39: 616 | J39: 172435.6 | K39: 2018-08-31 | L39: 101 | M39: INE204E01012
A40: AGCNET | B40: EQ | C40: 105.85 | D40: 105.85 | E40: 102 | F40: 103.8 | G40: 103 | H40: 102.05 | I40: 3045 | J40: 314018.55 | K40: 2018-08-31 | L40: 68 | M40: INE676A01019
A41: AGLSL | B41: EQ | C41: 77.1 | D41: 81 | E41: 77.1 | F41: 79.45 | G41: 80 | H41: 78.55 | I41: 2800 | J41: 221877.05 | K41: 2018-08-31 | L41: 32 | M41: INE517U01013
A42: AGRITECH | B42: EQ | C42: 78.4 | D42: 79.3 | E42: 77.4 | F42: 77.85 | G42: 78.4 | H42: 77.95 | I42: 8501 | J42: 665313.2 | K42: 2018-08-31 | L42: 191 | M42: INE449G01018
A43: AHLEAST | B43: EQ | C43: 262 | D43: 267.05 | E43: 260.95 | F43: 264 | G43: 264 | H43: 266 | I43: 4018 | J43: 1054428.95 | K43: 2018-08-31 | L43: 334 | M43: INE926K01017
A44: AHLUCONT | B44: EQ | C44: 317 | D44: 319.45 | E44: 313.2 | F44: 314.35 | G44: 313.2 | H44: 317.4 | I44: 3611 | J44: 1141212.3 | K44: 2018-08-31 | L44: 161 | M44: INE758C01029
A45: AHLWEST | B45: EQ | C45: 311 | D45: 311 | E45: 297.45 | F45: 304.95 | G45: 301.25 | H45: 308 | I45: 3024 | J45: 916185.45 | K45: 2018-08-31 | L45: 99 | M45: INE915K01010
A46: AIAENG | B46: EQ | C46: 1730.45 | D46: 1772 | E46: 1710 | F46: 1758.75 | G46: 1763.5 | H46: 1729.45 | I46: 22497 | J46: 39333930.8 | K46: 2018-08-31 | L46: 3036 | M46: INE212H01026
A47: AICHAMP | B47: BE | C47: 19.35 | D47: 19.35 | E47: 18.4 | F47: 18.4 | G47: 18.4 | H47: 19.35 | I47: 900 | J47: 16721.5 | K47: 2018-08-31 | L47: 8 | M47: INE768E01024
A48: AIFL | B48: EQ | C48: 454.65 | D48: 459 | E48: 451.4 | F48: 455.65 | G48: 457 | H48: 454.4 | I48: 90108 | J48: 40836574.5 | K48: 2018-08-31 | L48: 1036 | M48: INE428O01016
A49: AJANTPHARM | B49: EQ | C49: 1258.4 | D49: 1290.45 | E49: 1253 | F49: 1270.75 | G49: 1270 | H49: 1249.65 | I49: 732774 | J49: 934138772.5 | K49: 2018-08-31 | L49: 23042 | M49: INE031B01049
A50: AJMERA | B50: EQ | C50: 222.05 | D50: 227.65 | E50: 220.8 | F50: 224.35 | G50: 224.25 | H50: 222.8 | I50: 41897 | J50: 9439843.2 | K50: 2018-08-31 | L50: 823 | M50: INE298G01027
A51: AKSHARCHEM | B51: EQ | C51: 500.8 | D51: 513.95 | E51: 491.1 | F51: 500.05 | G51: 502 | H51: 499.75 | I51: 2847 | J51: 1424503.25 | K51: 2018-08-31 | L51: 179 | M51: INE542B01011
A52: AKSHOPTFBR | B52: EQ | C52: 32.2 | D52: 32.85 | E52: 31.4 | F52: 31.75 | G52: 31.7 | H52: 32.15 | I52: 980624 | J52: 31468862.65 | K52: 2018-08-31 | L52: 2673 | M52: INE523B01011
A53: AKZOINDIA | B53: EQ | C53: 1724.75 | D53: 1742 | E53: 1714.1 | F53: 1716.25 | G53: 1722 | H53: 1724.75 | I53: 6174 | J53: 10623339.15 | K53: 2018-08-31 | L53: 832 | M53: INE133A01011
A54: ALANKIT | B54: EQ | C54: 23.9 | D54: 23.9 | E54: 23.05 | F54: 23.4 | G54: 23.4 | H54: 23.7 | I54: 962474 | J54: 22536116.25 | K54: 2018-08-31 | L54: 2994 | M54: INE914E01040
A55: ALBERTDAVD | B55: EQ | C55: 514.3 | D55: 617.15 | E55: 514.3 | F55: 617.15 | G55: 617.15 | H55: 514.3 | I55: 169600 | J55: 101032634.7 | K55: 2018-08-31 | L55: 7120 | M55: INE155C01010
A56: ALBK | B56: EQ | C56: 41.8 | D56: 42.9 | E56: 41.15 | F56: 42.65 | G56: 42.8 | H56: 41.85 | I56: 5039682 | J56: 211440403.2 | K56: 2018-08-31 | L56: 10213 | M56: INE428A01015
A57: ALCHEM | B57: BE | C57: 5.35 | D57: 5.45 | E57: 5.05 | F57: 5.35 | G57: 5.35 | H57: 5.2 | I57: 1606 | J57: 8338 | K57: 2018-08-31 | L57: 22 | M57: INE964B01033
A58: ALEMBICLTD | B58: EQ | C58: 46.4 | D58: 47.95 | E58: 46.35 | F58: 47.45 | G58: 47.5 | H58: 46.25 | I58: 789841 | J58: 37415313.6 | K58: 2018-08-31 | L58: 3497 | M58: INE426A01027
A59: ALICON | B59: EQ | C59: 615 | D59: 630 | E59: 604.1 | F59: 621.3 | G59: 630 | H59: 610.1 | I59: 2322 | J59: 1434171.2 | K59: 2018-08-31 | L59: 174 | M59: INE062D01024
A60: ALKALI | B60: EQ | C60: 70.5 | D60: 70.5 | E60: 68.05 | F60: 69 | G60: 69.8 | H60: 69.45 | I60: 5516 | J60: 379892.75 | K60: 2018-08-31 | L60: 58 | M60: INE773I01017
A61: ALKEM | B61: EQ | C61: 2095.35 | D61: 2125.95 | E61: 2086.05 | F61: 2114.7 | G61: 2115 | H61: 2091.15 | I61: 32692 | J61: 68943207.3 | K61: 2018-08-31 | L61: 4814 | M61: INE540L01014
A62: ALKYLAMINE | B62: EQ | C62: 645.3 | D62: 659.9 | E62: 645.3 | F62: 651.3 | G62: 650 | H62: 652.55 | I62: 1430 | J62: 934249.35 | K62: 2018-08-31 | L62: 78 | M62: INE150B01021
A63: ALLCARGO | B63: EQ | C63: 117.7 | D63: 119.2 | E63: 117 | F63: 118.05 | G63: 117.7 | H63: 117.25 | I63: 120577 | J63: 14240016.5 | K63: 2018-08-31 | L63: 1649 | M63: INE418H01029
A64: ALLSEC | B64: EQ | C64: 239 | D64: 239.9 | E64: 230.8 | F64: 234.25 | G64: 234 | H64: 235 | I64: 5322 | J64: 1242809.5 | K64: 2018-08-31 | L64: 162 | M64: INE835G01018
A65: ALMONDZ | B65: BE | C65: 39.75 | D65: 39.75 | E65: 37.5 | F65: 37.6 | G65: 37.6 | H65: 38 | I65: 2423 | J65: 92405.75 | K65: 2018-08-31 | L65: 12 | M65: INE326B01027
A66: ALOKTEXT | B66: BE | C66: 4.55 | D66: 4.55 | E66: 4.2 | F66: 4.3 | G66: 4.3 | H66: 4.4 | I66: 2933437 | J66: 12597763.1 | K66: 2018-08-31 | L66: 1826 | M66: INE270A01011
A67: ALPA | B67: EQ | C67: 31 | D67: 31.5 | E67: 30 | F67: 30.55 | G67: 30.5 | H67: 30.65 | I67: 15680 | J67: 482258.75 | K67: 2018-08-31 | L67: 156 | M67: INE385I01010
A68: ALPHAGEO | B68: EQ | C68: 679 | D68: 691 | E68: 675.25 | F68: 679.85 | G68: 680 | H68: 678.9 | I68: 19122 | J68: 13062788.3 | K68: 2018-08-31 | L68: 1374 | M68: INE137C01018
A69: ALPSINDUS | B69: BE | C69: 2.8 | D69: 2.85 | E69: 2.8 | F69: 2.85 | G69: 2.85 | H69: 2.75 | I69: 11860 | J69: 33796 | K69: 2018-08-31 | L69: 10 | M69: INE093B01015
A70: AMARAJABAT | B70: EQ | C70: 846.8 | D70: 854.3 | E70: 835.65 | F70: 845.9 | G70: 846.25 | H70: 842.5 | I70: 328265 | J70: 276957726.1 | K70: 2018-08-31 | L70: 12828 | M70: INE885A01032
A71: AMBER | B71: EQ | C71: 960 | D71: 994.25 | E71: 960 | F71: 984.35 | G71: 980 | H71: 962.55 | I71: 24302 | J71: 23924834.55 | K71: 2018-08-31 | L71: 2476 | M71: INE371P01015
A72: AMBIKCO | B72: EQ | C72: 1272.05 | D72: 1279.9 | E72: 1261.15 | F72: 1276.4 | G72: 1279.45 | H72: 1260.2 | I72: 6296 | J72: 7999467 | K72: 2018-08-31 | L72: 339 | M72: INE540G01014
A73: AMBUJACEM | B73: EQ | C73: 238 | D73: 243.4 | E73: 236.6 | F73: 241.35 | G73: 242.5 | H73: 237.9 | I73: 2735230 | J73: 657375997.4 | K73: 2018-08-31 | L73: 27138 | M73: INE079A01024
A74: AMDIND | B74: EQ | C74: 27.4 | D74: 27.4 | E74: 26.35 | F74: 26.6 | G74: 26.55 | H74: 26.5 | I74: 4429 | J74: 118605 | K74: 2018-08-31 | L74: 37 | M74: INE005I01014
A75: AMJLAND | B75: EQ | C75: 27.9 | D75: 27.9 | E75: 26.1 | F75: 26.3 | G75: 26.1 | H75: 27.3 | I75: 20561 | J75: 546788.85 | K75: 2018-08-31 | L75: 198 | M75: INE606A01024
A76: AMRUTANJAN | B76: EQ | C76: 308 | D76: 320 | E76: 306.95 | F76: 309.9 | G76: 311.95 | H76: 307.3 | I76: 61262 | J76: 19087269.55 | K76: 2018-08-31 | L76: 2107 | M76: INE098F01031
A77: ANANTRAJ | B77: EQ | C77: 47.1 | D77: 51 | E77: 46.8 | F77: 49.65 | G77: 49.6 | H77: 47.15 | I77: 3677092 | J77: 180952022.7 | K77: 2018-08-31 | L77: 15531 | M77: INE242C01024
A78: ANDHRABANK | B78: EQ | C78: 33.4 | D78: 34.15 | E78: 32.8 | F78: 33.9 | G78: 33.95 | H78: 33.5 | I78: 4149745 | J78: 139000892 | K78: 2018-08-31 | L78: 6344 | M78: INE434A01013
A79: ANDHRACEMT | B79: EQ | C79: 8.55 | D79: 8.7 | E79: 8.35 | F79: 8.45 | G79: 8.5 | H79: 8.45 | I79: 125489 | J79: 1064179.5 | K79: 2018-08-31 | L79: 225 | M79: INE666E01012
A80: ANDHRSUGAR | B80: EQ | C80: 376.5 | D80: 383.7 | E80: 371 | F80: 381.1 | G80: 381.95 | H80: 376 | I80: 21056 | J80: 7938101.85 | K80: 2018-08-31 | L80: 868 | M80: INE715B01013
A81: ANGIND | B81: BE | C81: 2.55 | D81: 2.55 | E81: 2.35 | F81: 2.55 | G81: 2.55 | H81: 2.45 | I81: 4110 | J81: 10234.1 | K81: 2018-08-31 | L81: 29 | M81: INE017D01010
A82: ANIKINDS | B82: EQ | C82: 29.1 | D82: 29.8 | E82: 28.55 | F82: 28.95 | G82: 28.65 | H82: 29.35 | I82: 6664 | J82: 194645.7 | K82: 2018-08-31 | L82: 62 | M82: INE087B01017
A83: ANKITMETAL | B83: BE | C83: 0.75 | D83: 0.75 | E83: 0.7 | F83: 0.75 | G83: 0.75 | H83: 0.7 | I83: 26565 | J83: 18919.8 | K83: 2018-08-31 | L83: 11 | M83: INE106I01010
A84: ANSALAPI | B84: EQ | C84: 15.2 | D84: 15.85 | E84: 15 | F84: 15.65 | G84: 15.5 | H84: 15.4 | I84: 76291 | J84: 1176150.75 | K84: 2018-08-31 | L84: 196 | M84: INE436A01026
A85: ANSALHSG | B85: EQ | C85: 15.25 | D85: 15.8 | E85: 14.7 | F85: 14.95 | G85: 15 | H85: 14.85 | I85: 57147 | J85: 852751.3 | K85: 2018-08-31 | L85: 203 | M85: INE880B01015
A86: ANTGRAPHIC | B86: BE | C86: 0.45 | D86: 0.55 | E86: 0.45 | F86: 0.55 | G86: 0.55 | H86: 0.5 | I86: 341532 | J86: 165948.65 | K86: 2018-08-31 | L86: 96 | M86: INE414B01021
A87: APARINDS | B87: EQ | C87: 615.8 | D87: 621.8 | E87: 609.6 | F87: 616.3 | G87: 618.65 | H87: 615.8 | I87: 77650 | J87: 47660476.2 | K87: 2018-08-31 | L87: 570 | M87: INE372A01015
A88: APCL | B88: EQ | C88: 154.9 | D88: 157.95 | E88: 147.5 | F88: 156.25 | G88: 156.95 | H88: 151.15 | I88: 2162 | J88: 330372.7 | K88: 2018-08-31 | L88: 109 | M88: INE071F01012
A89: APCOTEXIND | B89: EQ | C89: 610 | D89: 617.35 | E89: 605 | F89: 607.55 | G89: 606.3 | H89: 608.7 | I89: 3661 | J89: 2224450.55 | K89: 2018-08-31 | L89: 206 | M89: INE116A01024
A90: APEX | B90: EQ | C90: 412 | D90: 412 | E90: 403.3 | F90: 406.55 | G90: 406.55 | H90: 404.35 | I90: 44072 | J90: 17932820.5 | K90: 2018-08-31 | L90: 1584 | M90: INE346W01013
A91: APLAPOLLO | B91: EQ | C91: 1632.3 | D91: 1638.8 | E91: 1608.1 | F91: 1634.8 | G91: 1630 | H91: 1636.55 | I91: 17358 | J91: 28240733.9 | K91: 2018-08-31 | L91: 1538 | M91: INE702C01019
A92: APLLTD | B92: EQ | C92: 590 | D92: 605 | E92: 590 | F92: 599.6 | G92: 600.45 | H92: 592.05 | I92: 70918 | J92: 42581890.15 | K92: 2018-08-31 | L92: 2405 | M92: INE901L01018
A93: APOLLO | B93: EQ | C93: 158.05 | D93: 164.7 | E93: 158.05 | F93: 160.5 | G93: 160 | H93: 158.85 | I93: 33005 | J93: 5341814.15 | K93: 2018-08-31 | L93: 1095 | M93: INE713T01010
A94: APOLLOHOSP | B94: EQ | C94: 1201.1 | D94: 1201.1 | E94: 1174.05 | F94: 1182.7 | G94: 1178.55 | H94: 1192.2 | I94: 739373 | J94: 874917237.7 | K94: 2018-08-31 | L94: 21134 | M94: INE437A01024
A95: APOLLOTYRE | B95: EQ | C95: 251.4 | D95: 254.85 | E95: 250.65 | F95: 251.4 | G95: 251.35 | H95: 250.55 | I95: 2067525 | J95: 522062625.9 | K95: 2018-08-31 | L95: 16419 | M95: INE438A01022
A96: APOLSINHOT | B96: EQ | C96: 1394.95 | D96: 1404 | E96: 1378.2 | F96: 1383.1 | G96: 1382.6 | H96: 1383.95 | I96: 309 | J96: 429120.35 | K96: 2018-08-31 | L96: 60 | M96: INE451F01016
A97: APTECHT | B97: EQ | C97: 227.85 | D97: 231 | E97: 226 | F97: 227.45 | G97: 227 | H97: 227.75 | I97: 192184 | J97: 43908545.85 | K97: 2018-08-31 | L97: 2964 | M97: INE266F01018
A98: ARCHIDPLY | B98: EQ | C98: 58 | D98: 60.05 | E98: 57.8 | F98: 58.1 | G98: 58.6 | H98: 58.5 | I98: 22396 | J98: 1318239.35 | K98: 2018-08-31 | L98: 271 | M98: INE877I01016
A99: ARCHIES | B99: EQ | C99: 27.1 | D99: 27.7 | E99: 26.95 | F99: 27.15 | G99: 27.1 | H99: 27.25 | I99: 47197 | J99: 1281377.65 | K99: 2018-08-31 | L99: 259 | M99: INE731A01020
A100: ARCOTECH | B100: BE | C100: 14.25 | D100: 14.55 | E100: 14 | F100: 14.25 | G100: 14.25 | H100: 14.35 | I100: 35795 | J100: 507826.05 | K100: 2018-08-31 | L100: 177 | M100: INE574I01035
A101: ARENTERP | B101: EQ | C101: 8.75 | D101: 8.75 | E101: 8.75 | F101: 8.75 | G101: 8.75 | H101: 8.35 | I101: 100 | J101: 875 | K101: 2018-08-31 | L101: 1 | M101: INE610C01014
A102: ARIES | B102: EQ | C102: 118 | D102: 119.6 | E102: 114.7 | F102: 116.35 | G102: 116.1 | H102: 117.75 | I102: 30361 | J102: 3544330.25 | K102: 2018-08-31 | L102: 532 | M102: INE298I01015
A103: ARIHANT | B103: EQ | C103: 36.5 | D103: 38.75 | E103: 36.5 | F103: 38.75 | G103: 38.75 | H103: 38.75 | I103: 120 | J103: 4605 | K103: 2018-08-31 | L103: 2 | M103: INE413D01011
A104: ARIHANTSUP | B104: EQ | C104: 70.95 | D104: 72.95 | E104: 70.25 | F104: 72.05 | G104: 72.5 | H104: 70.8 | I104: 40102 | J104: 2873751.1 | K104: 2018-08-31 | L104: 539 | M104: INE643K01018
A105: ARMANFIN | B105: EQ | C105: 410.9 | D105: 410.9 | E105: 400.6 | F105: 404.05 | G105: 402 | H105: 406.65 | I105: 3807 | J105: 1535379.45 | K105: 2018-08-31 | L105: 73 | M105: INE109C01017
A106: AROGRANITE | B106: EQ | C106: 62.8 | D106: 63.35 | E106: 61 | F106: 61.7 | G106: 62.9 | H106: 62.9 | I106: 14966 | J106: 936448.7 | K106: 2018-08-31 | L106: 186 | M106: INE210C01013
A107: ARROWGREEN | B107: EQ | C107: 125.05 | D107: 135.35 | E107: 124 | F107: 135.35 | G107: 135.35 | H107: 128.95 | I107: 57199 | J107: 7615807.15 | K107: 2018-08-31 | L107: 995 | M107: INE570D01018
A108: ARROWTEX | B108: EQ | C108: 30.4 | D108: 30.5 | E108: 29 | F108: 29.15 | G108: 29.1 | H108: 29.95 | I108: 25705 | J108: 759443.15 | K108: 2018-08-31 | L108: 205 | M108: INE933J01015
A109: ARSHIYA | B109: EQ | C109: 47 | D109: 47 | E109: 44.9 | F109: 45.55 | G109: 46 | H109: 45.25 | I109: 62138 | J109: 2822450.5 | K109: 2018-08-31 | L109: 262 | M109: INE968D01022
A110: ARSSINFRA | B110: EQ | C110: 25.75 | D110: 26.75 | E110: 25.4 | F110: 26.6 | G110: 26.7 | H110: 25.5 | I110: 16129 | J110: 425748.2 | K110: 2018-08-31 | L110: 113 | M110: INE267I01010
A111: ARVIND | B111: EQ | C111: 403.45 | D111: 407.3 | E111: 394.15 | F111: 399.25 | G111: 403 | H111: 401.4 | I111: 1591561 | J111: 636993829.1 | K111: 2018-08-31 | L111: 17430 | M111: INE034A01011
A112: ARVSMART | B112: EQ | C112: 156.65 | D112: 158.95 | E112: 155.55 | F112: 156.6 | G112: 155.75 | H112: 157.65 | I112: 11200 | J112: 1758409.1 | K112: 2018-08-31 | L112: 153 | M112: INE034S01021
A113: ASAHIINDIA | B113: EQ | C113: 323.95 | D113: 345.95 | E113: 318.45 | F113: 341.05 | G113: 342.6 | H113: 323.75 | I113: 141633 | J113: 46334323 | K113: 2018-08-31 | L113: 2234 | M113: INE439A01020
A114: ASAHISONG | B114: EQ | C114: 279.85 | D114: 279.85 | E114: 266.1 | F114: 270 | G114: 270 | H114: 269.75 | I114: 5770 | J114: 1557008.5 | K114: 2018-08-31 | L114: 127 | M114: INE228I01012
A115: ASAL | B115: EQ | C115: 56.9 | D115: 57 | E115: 55.7 | F115: 56.55 | G115: 56.9 | H115: 56.15 | I115: 3001 | J115: 169318.75 | K115: 2018-08-31 | L115: 70 | M115: INE900C01027
A116: ASHAPURMIN | B116: EQ | C116: 47.5 | D116: 48.8 | E116: 47.3 | F116: 47.5 | G116: 47.75 | H116: 47.4 | I116: 86287 | J116: 4137509.1 | K116: 2018-08-31 | L116: 527 | M116: INE348A01023
A117: ASHIANA | B117: EQ | C117: 152 | D117: 152.5 | E117: 148.4 | F117: 150.55 | G117: 151.8 | H117: 150.25 | I117: 24344 | J117: 3666152.65 | K117: 2018-08-31 | L117: 408 | M117: INE365D01021
A118: ASHIMASYN | B118: EQ | C118: 19.85 | D118: 20.35 | E118: 19.8 | F118: 20.05 | G118: 20 | H118: 19.75 | I118: 66506 | J118: 1342285.55 | K118: 2018-08-31 | L118: 265 | M118: INE440A01010
A119: ASHOKA | B119: EQ | C119: 138.5 | D119: 140.2 | E119: 136.55 | F119: 138.25 | G119: 137.75 | H119: 137.7 | I119: 64380 | J119: 8886511.05 | K119: 2018-08-31 | L119: 2390 | M119: INE442H01029
A120: ASHOKLEY | B120: EQ | C120: 131.1 | D120: 131.75 | E120: 127.8 | F120: 129.05 | G120: 129.55 | H120: 130.85 | I120: 17591019 | J120: 2276290768 | K120: 2018-08-31 | L120: 66931 | M120: INE208A01029
A121: ASIANHOTNR | B121: EQ | C121: 228.05 | D121: 234 | E121: 228 | F121: 229.8 | G121: 229.05 | H121: 228.95 | I121: 13186 | J121: 3043405.5 | K121: 2018-08-31 | L121: 183 | M121: INE363A01022
A122: ASIANPAINT | B122: EQ | C122: 1383 | D122: 1392 | E122: 1364.2 | F122: 1372.45 | G122: 1372.45 | H122: 1378.7 | I122: 1006329 | J122: 1383921516 | K122: 2018-08-31 | L122: 45657 | M122: INE021A01026
A123: ASIANTILES | B123: EQ | C123: 236.7 | D123: 241.8 | E123: 234.1 | F123: 234.65 | G123: 234.1 | H123: 239.65 | I123: 62681 | J123: 14847686 | K123: 2018-08-31 | L123: 1340 | M123: INE022I01019
A124: ASPINWALL | B124: EQ | C124: 240 | D124: 251.5 | E124: 240 | F124: 243.75 | G124: 244 | H124: 239.15 | I124: 18028 | J124: 4428596.5 | K124: 2018-08-31 | L124: 306 | M124: INE991I01015
A125: ASSAMCO | B125: BE | C125: 4.75 | D125: 4.75 | E125: 4.55 | F125: 4.55 | G125: 4.55 | H125: 4.75 | I125: 263266 | J125: 1203013.4 | K125: 2018-08-31 | L125: 178 | M125: INE442A01024
A126: ASTEC | B126: EQ | C126: 621.5 | D126: 626.8 | E126: 618 | F126: 623.8 | G126: 623 | H126: 622.85 | I126: 7057 | J126: 4399190.9 | K126: 2018-08-31 | L126: 344 | M126: INE563J01010
A127: ASTERDM | B127: EQ | C127: 178.5 | D127: 180 | E127: 176 | F127: 177.8 | G127: 176.6 | H127: 178.75 | I127: 53447 | J127: 9586105.1 | K127: 2018-08-31 | L127: 2354 | M127: INE914M01019
A128: ASTRAL | B128: EQ | C128: 1127 | D128: 1154.7 | E128: 1101 | F128: 1106.4 | G128: 1106.95 | H128: 1126.9 | I128: 39187 | J128: 44439784.65 | K128: 2018-08-31 | L128: 3786 | M128: INE006I01046
A129: ASTRAMICRO | B129: EQ | C129: 97.9 | D129: 99.85 | E129: 97 | F129: 97.9 | G129: 97.9 | H129: 97.7 | I129: 135711 | J129: 13348569.9 | K129: 2018-08-31 | L129: 1350 | M129: INE386C01029
A130: ASTRAZEN | B130: EQ | C130: 1858 | D130: 1916 | E130: 1822 | F130: 1891.25 | G130: 1888.45 | H130: 1858.7 | I130: 55185 | J130: 103692264.7 | K130: 2018-08-31 | L130: 4812 | M130: INE203A01020
A131: ASTRON | B131: EQ | C131: 112.9 | D131: 114.5 | E131: 112 | F131: 113.95 | G131: 114.05 | H131: 112.35 | I131: 200495 | J131: 22812348.65 | K131: 2018-08-31 | L131: 1447 | M131: INE646X01014
A132: ATFL | B132: EQ | C132: 630.25 | D132: 657.3 | E132: 628.25 | F132: 651.8 | G132: 652 | H132: 629.2 | I132: 32113 | J132: 20611362.15 | K132: 2018-08-31 | L132: 751 | M132: INE209A01019
A133: ATLANTA | B133: EQ | C133: 39 | D133: 39 | E133: 37.95 | F133: 38.25 | G133: 38 | H133: 38.15 | I133: 45370 | J133: 1737688.75 | K133: 2018-08-31 | L133: 374 | M133: INE285H01022
A134: ATLASCYCLE | B134: BE | C134: 134 | D134: 142.65 | E134: 134 | F134: 139.4 | G134: 138.5 | H134: 141.05 | I134: 8904 | J134: 1210031.95 | K134: 2018-08-31 | L134: 176 | M134: INE446A01025
A135: ATUL | B135: EQ | C135: 3330 | D135: 3365.35 | E135: 3215 | F135: 3232.3 | G135: 3230 | H135: 3320.9 | I135: 23726 | J135: 77500929.2 | K135: 2018-08-31 | L135: 3130 | M135: INE100A01010
A136: ATULAUTO | B136: EQ | C136: 387.4 | D136: 390.45 | E136: 384 | F136: 385.6 | G136: 387 | H136: 385.5 | I136: 9007 | J136: 3488635.5 | K136: 2018-08-31 | L136: 473 | M136: INE951D01028
A137: AUBANK | B137: EQ | C137: 730.5 | D137: 744.7 | E137: 722.1 | F137: 735.1 | G137: 731 | H137: 736.75 | I137: 385568 | J137: 282392980.1 | K137: 2018-08-31 | L137: 14940 | M137: INE949L01017
A138: AURIONPRO | B138: EQ | C138: 193.95 | D138: 194.9 | E138: 187.15 | F138: 190.15 | G138: 191 | H138: 192.6 | I138: 24911 | J138: 4724416.8 | K138: 2018-08-31 | L138: 274 | M138: INE132H01018
A139: AUROPHARMA | B139: EQ | C139: 689.5 | D139: 719.95 | E139: 689 | F139: 712.75 | G139: 712.8 | H139: 687 | I139: 5812880 | J139: 4128981029 | K139: 2018-08-31 | L139: 105434 | M139: INE406A01037
A140: AUSOMENT | B140: EQ | C140: 69.55 | D140: 71.7 | E140: 69 | F140: 69.65 | G140: 69.75 | H140: 69.85 | I140: 14984 | J140: 1051897.1 | K140: 2018-08-31 | L140: 309 | M140: INE218C01016
A141: AUTOAXLES | B141: EQ | C141: 1400 | D141: 1409.35 | E141: 1367 | F141: 1374.9 | G141: 1389 | H141: 1398.9 | I141: 32963 | J141: 45550422.45 | K141: 2018-08-31 | L141: 2065 | M141: INE449A01011
A142: AUTOIND | B142: EQ | C142: 60 | D142: 62 | E142: 59.8 | F142: 61.45 | G142: 61.95 | H142: 60.15 | I142: 17708 | J142: 1080414.45 | K142: 2018-08-31 | L142: 350 | M142: INE718H01014
A143: AUTOLITIND | B143: EQ | C143: 56.35 | D143: 56.95 | E143: 55.2 | F143: 55.6 | G143: 55.8 | H143: 56.2 | I143: 11107 | J143: 618725.7 | K143: 2018-08-31 | L143: 117 | M143: INE448A01013
A144: AVADHSUGAR | B144: EQ | C144: 350 | D144: 365 | E144: 349.15 | F144: 359 | G144: 357 | H144: 355.55 | I144: 10573 | J144: 3786907.25 | K144: 2018-08-31 | L144: 475 | M144: INE349W01017
A145: AVANTIFEED | B145: EQ | C145: 427.4 | D145: 429.55 | E145: 421 | F145: 421.95 | G145: 422 | H145: 429 | I145: 276626 | J145: 117432492.8 | K145: 2018-08-31 | L145: 8334 | M145: INE871C01038
A146: AVTNPL | B146: EQ | C146: 32.4 | D146: 32.9 | E146: 32.05 | F146: 32.45 | G146: 32.1 | H146: 32.4 | I146: 34050 | J146: 1100741.05 | K146: 2018-08-31 | L146: 274 | M146: INE488D01021
A147: AXISBANK | B147: EQ | C147: 649.5 | D147: 653.5 | E147: 641.25 | F147: 649.25 | G147: 649.3 | H147: 649.75 | I147: 10207700 | J147: 6616008894 | K147: 2018-08-31 | L147: 179155 | M147: INE238A01034
A148: AXISCADES | B148: EQ | C148: 99.9 | D148: 103.05 | E148: 99.85 | F148: 101.3 | G148: 101.5 | H148: 99.3 | I148: 41283 | J148: 4200620 | K148: 2018-08-31 | L148: 650 | M148: INE555B01013
A149: AXISGOLD | B149: EQ | C149: 2696 | D149: 2731 | E149: 2690 | F149: 2695 | G149: 2695 | H149: 2696.8 | I149: 187 | J149: 507506.75 | K149: 2018-08-31 | L149: 31 | M149: INF846K01347
A150: AXISNIFTY | B150: EQ | C150: 1190.01 | D150: 1190.01 | E150: 1188.02 | F150: 1188.02 | G150: 1188.02 | H150: 1177.81 | I150: 55 | J150: 65441.54 | K150: 2018-08-31 | L150: 3 | M150: INF846K01ZL0
A151: AYMSYNTEX | B151: EQ | C151: 40 | D151: 41 | E151: 39.25 | F151: 39.35 | G151: 39.25 | H151: 40.4 | I151: 9841 | J151: 391218.15 | K151: 2018-08-31 | L151: 82 | M151: INE193B01039
A152: BAFNAPHARM | B152: EQ | C152: 19.1 | D152: 19.95 | E152: 19.1 | F152: 19.5 | G152: 19.5 | H152: 19.2 | I152: 7978 | J152: 156558.2 | K152: 2018-08-31 | L152: 91 | M152: INE878I01014
A153: BAGFILMS | B153: BE | C153: 6.7 | D153: 6.75 | E153: 6.25 | F153: 6.5 | G153: 6.55 | H153: 6.5 | I153: 263341 | J153: 1710838.35 | K153: 2018-08-31 | L153: 456 | M153: INE116D01028
A154: BAJAJ-AUTO | B154: EQ | C154: 2720 | D154: 2755 | E154: 2705.8 | F154: 2744.85 | G154: 2753.95 | H154: 2701.65 | I154: 512215 | J154: 1398878527 | K154: 2018-08-31 | L154: 32880 | M154: INE917I01010
A155: BAJAJCORP | B155: EQ | C155: 437.85 | D155: 440 | E155: 428.1 | F155: 431.25 | G155: 432 | H155: 439.25 | I155: 64260 | J155: 27905505.7 | K155: 2018-08-31 | L155: 2793 | M155: INE933K01021
A156: BAJAJELEC | B156: EQ | C156: 543 | D156: 571.2 | E156: 542.8 | F156: 566.7 | G156: 565.25 | H156: 544.95 | I156: 823414 | J156: 463176256.6 | K156: 2018-08-31 | L156: 15724 | M156: INE193E01025
A157: BAJAJFINSV | B157: EQ | C157: 6940 | D157: 6968.4 | E157: 6725 | F157: 6747.8 | G157: 6753 | H157: 6929.9 | I157: 223887 | J157: 1522506144 | K157: 2018-08-31 | L157: 29065 | M157: INE918I01018
A158: BAJAJHIND | B158: EQ | C158: 6.9 | D158: 7 | E158: 6.85 | F158: 6.9 | G158: 6.85 | H158: 6.85 | I158: 703952 | J158: 4860599.15 | K158: 2018-08-31 | L158: 1284 | M158: INE306A01021
A159: BAJAJHLDNG | B159: EQ | C159: 3125 | D159: 3211 | E159: 3105 | F159: 3117.25 | G159: 3115 | H159: 3128 | I159: 29559 | J159: 93153973.4 | K159: 2018-08-31 | L159: 4038 | M159: INE118A01012
A160: BAJFINANCE | B160: EQ | C160: 2935 | D160: 2954.85 | E160: 2841.1 | F160: 2856.6 | G160: 2856 | H160: 2926.75 | I160: 1357206 | J160: 3905962686 | K160: 2018-08-31 | L160: 103666 | M160: INE296A01024
A161: BALAJITELE | B161: EQ | C161: 111.5 | D161: 112.9 | E161: 109.4 | F161: 109.8 | G161: 109.6 | H161: 110.8 | I161: 35773 | J161: 3951863.6 | K161: 2018-08-31 | L161: 583 | M161: INE794B01026
A162: BALAMINES | B162: EQ | C162: 587.9 | D162: 598.95 | E162: 580 | F162: 584 | G162: 584 | H162: 583.4 | I162: 44630 | J162: 26280241.05 | K162: 2018-08-31 | L162: 2097 | M162: INE050E01027
A163: BALKRISHNA | B163: EQ | C163: 65.5 | D163: 66.6 | E163: 64.2 | F163: 65.35 | G163: 65.6 | H163: 65.5 | I163: 15384 | J163: 1009576.75 | K163: 2018-08-31 | L163: 165 | M163: INE875R01011
A164: BALKRISIND | B164: EQ | C164: 1407.05 | D164: 1422 | E164: 1352 | F164: 1360.1 | G164: 1357 | H164: 1403.85 | I164: 751107 | J164: 1034942005 | K164: 2018-08-31 | L164: 19268 | M164: INE787D01026
A165: BALLARPUR | B165: EQ | C165: 9.5 | D165: 9.85 | E165: 9.4 | F165: 9.45 | G165: 9.4 | H165: 9.45 | I165: 1654813 | J165: 15952556.75 | K165: 2018-08-31 | L165: 1464 | M165: INE294A01037
A166: BALMLAWRIE | B166: EQ | C166: 230 | D166: 230.05 | E166: 228.4 | F166: 229.95 | G166: 230.05 | H166: 229.9 | I166: 121554 | J166: 27909356.95 | K166: 2018-08-31 | L166: 2068 | M166: INE164A01016
A167: BALPHARMA | B167: EQ | C167: 87.3 | D167: 89.75 | E167: 87.1 | F167: 88.05 | G167: 88 | H167: 87.65 | I167: 28193 | J167: 2492251.45 | K167: 2018-08-31 | L167: 437 | M167: INE083D01012
A168: BALRAMCHIN | B168: EQ | C168: 74.8 | D168: 77.85 | E168: 74.8 | F168: 76.45 | G168: 76.3 | H168: 76.2 | I168: 4825342 | J168: 369754239.9 | K168: 2018-08-31 | L168: 14443 | M168: INE119A01028
A169: BANARBEADS | B169: EQ | C169: 51.5 | D169: 51.5 | E169: 48.5 | F169: 49.1 | G169: 49 | H169: 49.5 | I169: 1016 | J169: 50090 | K169: 2018-08-31 | L169: 19 | M169: INE655B01011
A170: BANARISUG | B170: EQ | C170: 1450 | D170: 1495 | E170: 1401.2 | F170: 1478.05 | G170: 1495 | H170: 1450.55 | I170: 1547 | J170: 2244920.4 | K170: 2018-08-31 | L170: 183 | M170: INE459A01010
A171: BANCOINDIA | B171: EQ | C171: 226.9 | D171: 227.5 | E171: 222.95 | F171: 226.95 | G171: 226.8 | H171: 225.05 | I171: 49983 | J171: 11289842.25 | K171: 2018-08-31 | L171: 672 | M171: INE213C01025
A172: BANDHANBNK | B172: EQ | C172: 677.45 | D172: 698.25 | E172: 672.7 | F172: 694.8 | G172: 696 | H172: 677.4 | I172: 737840 | J172: 507015456.2 | K172: 2018-08-31 | L172: 23660 | M172: INE545U01014
A173: BANG | B173: EQ | C173: 47.85 | D173: 47.85 | E173: 45.55 | F173: 46.1 | G173: 45.55 | H173: 46.7 | I173: 13945 | J173: 645200.7 | K173: 2018-08-31 | L173: 70 | M173: INE863I01016
A174: BANKBARODA | B174: EQ | C174: 149.05 | D174: 153.45 | E174: 147.2 | F174: 152.95 | G174: 153.1 | H174: 150.15 | I174: 19943774 | J174: 3000641026 | K174: 2018-08-31 | L174: 72784 | M174: INE028A01039
A175: BANKBEES | B175: EQ | C175: 2859.19 | D175: 2870 | E175: 2850 | F175: 2862.93 | G175: 2864.19 | H175: 2864.59 | I175: 26953 | J175: 77062838.95 | K175: 2018-08-31 | L175: 110 | M175: INF732E01078
A176: BANKINDIA | B176: EQ | C176: 99 | D176: 101 | E176: 96.45 | F176: 100.45 | G176: 100.9 | H176: 99.85 | I176: 11090429 | J176: 1094472680 | K176: 2018-08-31 | L176: 37034 | M176: INE084A01016
A177: BANSWRAS | B177: EQ | C177: 83.75 | D177: 83.75 | E177: 79.95 | F177: 80 | G177: 80 | H177: 81.95 | I177: 4448 | J177: 358405.15 | K177: 2018-08-31 | L177: 76 | M177: INE629D01012
A178: BARTRONICS | B178: EQ | C178: 9.15 | D178: 9.15 | E178: 8.95 | F178: 9.05 | G178: 9.05 | H178: 9.05 | I178: 37079 | J178: 335639.75 | K178: 2018-08-31 | L178: 84 | M178: INE855F01034
A179: BASF | B179: EQ | C179: 1960.05 | D179: 1998 | E179: 1938 | F179: 1963.25 | G179: 1964 | H179: 1964.25 | I179: 12800 | J179: 25246327.65 | K179: 2018-08-31 | L179: 1799 | M179: INE373A01013
A180: BASML | B180: EQ | C180: 210 | D180: 228.9 | E180: 210 | F180: 212.95 | G180: 211.05 | H180: 209.3 | I180: 313 | J180: 66605.6 | K180: 2018-08-31 | L180: 28 | M180: INE186H01014
A181: BATAINDIA | B181: EQ | C181: 1087.7 | D181: 1099.15 | E181: 1069.2 | F181: 1082.4 | G181: 1083.1 | H181: 1087.2 | I181: 645525 | J181: 698668238.6 | K181: 2018-08-31 | L181: 15730 | M181: INE176A01028
A182: BAYERCROP | B182: EQ | C182: 4480 | D182: 4485 | E182: 4345.05 | F182: 4403.45 | G182: 4421 | H182: 4433.2 | I182: 9944 | J182: 43808580.05 | K182: 2018-08-31 | L182: 2812 | M182: INE462A01022
A183: BBL | B183: EQ | C183: 1340 | D183: 1379.9 | E183: 1323 | F183: 1356.25 | G183: 1358 | H183: 1340.9 | I183: 13132 | J183: 17684321 | K183: 2018-08-31 | L183: 1317 | M183: INE464A01028
A184: BBTC | B184: EQ | C184: 1916 | D184: 1935 | E184: 1857.55 | F184: 1866.3 | G184: 1863.55 | H184: 1916.05 | I184: 208575 | J184: 393790898.5 | K184: 2018-08-31 | L184: 11214 | M184: INE050A01025
A185: BDL | B185: EQ | C185: 352 | D185: 352 | E185: 348.6 | F185: 349.95 | G185: 349.7 | H185: 351.65 | I185: 15469 | J185: 5414083.8 | K185: 2018-08-31 | L185: 931 | M185: INE171Z01018
A186: BEARDSELL | B186: EQ | C186: 34 | D186: 36 | E186: 34 | F186: 35.05 | G186: 35.1 | H186: 35.1 | I186: 1048 | J186: 37149.95 | K186: 2018-08-31 | L186: 34 | M186: INE520H01022
A187: BEDMUTHA | B187: EQ | C187: 17.7 | D187: 18.95 | E187: 17.7 | F187: 18.65 | G187: 18.55 | H187: 19 | I187: 2629 | J187: 49345.55 | K187: 2018-08-31 | L187: 23 | M187: INE844K01012
A188: BEL | B188: EQ | C188: 114.2 | D188: 117.4 | E188: 113.05 | F188: 113.5 | G188: 113.7 | H188: 114.2 | I188: 9746380 | J188: 1116119484 | K188: 2018-08-31 | L188: 51417 | M188: INE263A01024
A189: BEML | B189: EQ | C189: 824.5 | D189: 854 | E189: 821.6 | F189: 840.4 | G189: 840 | H189: 818.95 | I189: 1650124 | J189: 1389410536 | K189: 2018-08-31 | L189: 39084 | M189: INE258A01016
A190: BEPL | B190: EQ | C190: 131.6 | D190: 134.4 | E190: 130 | F190: 130.35 | G190: 130.85 | H190: 131.6 | I190: 316719 | J190: 41750252.25 | K190: 2018-08-31 | L190: 3794 | M190: INE922A01025
A191: BERGEPAINT | B191: EQ | C191: 336 | D191: 341.9 | E191: 332.85 | F191: 334.7 | G191: 335 | H191: 337.1 | I191: 936212 | J191: 315763306.6 | K191: 2018-08-31 | L191: 12211 | M191: INE463A01038
A192: BFINVEST | B192: EQ | C192: 328.85 | D192: 344.3 | E192: 327.55 | F192: 334.35 | G192: 332.6 | H192: 328.9 | I192: 413844 | J192: 139372731.2 | K192: 2018-08-31 | L192: 8776 | M192: INE878K01010
A193: BFUTILITIE | B193: EQ | C193: 328.35 | D193: 341.65 | E193: 324 | F193: 334.55 | G193: 333 | H193: 328.25 | I193: 801527 | J193: 268667127 | K193: 2018-08-31 | L193: 16213 | M193: INE243D01012
A194: BGLOBAL | B194: BE | C194: 2.9 | D194: 2.9 | E194: 2.75 | F194: 2.9 | G194: 2.9 | H194: 2.8 | I194: 4993 | J194: 14162.75 | K194: 2018-08-31 | L194: 17 | M194: INE224M01013
A195: BGRENERGY | B195: EQ | C195: 80.05 | D195: 81 | E195: 79.3 | F195: 79.75 | G195: 79.65 | H195: 79.65 | I195: 65542 | J195: 5253390.05 | K195: 2018-08-31 | L195: 653 | M195: INE661I01014
A196: BHAGERIA | B196: EQ | C196: 300.65 | D196: 300.65 | E196: 295.5 | F196: 296.55 | G196: 296.5 | H196: 300.55 | I196: 5726 | J196: 1708492.25 | K196: 2018-08-31 | L196: 186 | M196: INE354C01027
A197: BHAGYANGR | B197: BE | C197: 35.35 | D197: 36 | E197: 34.9 | F197: 35.2 | G197: 35.1 | H197: 35.35 | I197: 7691 | J197: 271092.5 | K197: 2018-08-31 | L197: 57 | M197: INE458B01036
A198: BHAGYAPROP | B198: EQ | C198: 24.6 | D198: 24.6 | E198: 24.4 | F198: 24.4 | G198: 24.4 | H198: 24.6 | I198: 365 | J198: 8954 | K198: 2018-08-31 | L198: 3 | M198: INE363W01018
A199: BHANDARI | B199: EQ | C199: 2.7 | D199: 2.75 | E199: 2.55 | F199: 2.6 | G199: 2.6 | H199: 2.6 | I199: 430110 | J199: 1139196.4 | K199: 2018-08-31 | L199: 345 | M199: INE474E01029
A200: BHARATFIN | B200: EQ | C200: 1133.55 | D200: 1169.9 | E200: 1133.55 | F200: 1162.6 | G200: 1164 | H200: 1142.7 | I200: 513902 | J200: 595152208.5 | K200: 2018-08-31 | L200: 17468 | M200: INE180K01011
... 1454 more rows
